Workbook

Sheet README
B6: Landscape Monetisation Workbook
B8: TAG and VfM references
B9: TAG Unit A3 - Environmental Impact Appraisal
B10: Supplementary VfM Guidance on Landscape Monetisation
B12: Notes
B13: This tool should be used to derive indicative monetary estimates of a scheme's landscape impacts, in accordance with supplementary VfM guidance.
B14: The Landscape Values worksheet provides present value and annual per-hectare values for a range of broad land types to be used for landscape monetisation. Users are advised to check that the selected appraisal year is correct before applying the values in an appraisal.
B15: The Ecosystem Services worksheets - Inputs (ESS), Calculations (ESS) and Outputs (ESS) - should be used to derive indicative monetary estimates of impacts associated with (i) air quality regulation by vegetation and (ii) carbon sequestration.
B16: Users should refer to the supplementary landscape VfM guidance for further details on the scheme information required for the valuation of these services.
B18: Version Control
B19: Date | C19: Description
B20: 2025-12-01 | C20: Updated GDP Deflator, GDP per capita growth, and population growth in line with latest TAG Data book (v2.02 December 2025)
B21: 2025-05-01 | C21: Updated GDP Deflator, GDP per capita growth, population growth, and carbon values (appraisal) in line with latest TAG Data book (v2.01 May 2025)
B22: 2024-11-01 | C22: Forthcoming Change version. Updated default price and discounting base years (2023); updated economic and demographic assumptions in line with TAG Data Book v2.0 FC, Nov 2024.
B23: 2024-11-01 | C23: Updated economic and demographic assumptions in line with TAG Data Book v1.24, Nov 2024; corrected discounting; minor corrections to ESS calculations.
B24: 2024-05-01 | C24: Updated GDP Deflator, GDP per capita and population in line with latest TAG Data book (v1.23, May 2024)
B25: 2023-11-01 | C25: Updated carbon values (incl. market price adjustment), GDP deflator, GDP per capita and population in line with TAG Data Book v1.22.
B26: 2023-05-01 | C26: Updated GDP Deflator, GDP per capita and population in line with latest TAG Data book (v1.21, May 2023)
B27: 2022-11-01 | C27: Updated GDP Deflator, GDP per capita and population in line with latest TAG Data book (v1.20.1, November 2022)
B28: 2022-05-01 | C28: Updated GDP Deflator, GDP per capita and population in line with latest TAG Data book (v1.18, May 2022)
B29: 2021-11-01 | C29: Updated GDP Deflator, GDP per capita and population in line with latest TAG Data book (v1.17, November 2021)
B30: 2021-07-01 | C30: Initial release
B32: Contact
B33: Transport Appraisal and Strategic Modelling (TASM) Division
B34: Department for Transport
B35: Zone 2/25 Great Minster House
B36: 33 Horseferry Road
B37: London
B38: SW1P 4DR
B39: tasm@dft.gov.uk

Sheet Inputs (values)
B3: Appraisal assumptions
C5: Year values
C6: Source: NA
C8: Appraisal year | H8: 2025 | I8: user input
C10: Values base year for published landscape values | H10: 2010
C11: Price base year for published landscape values | H11: 2010
C12: Default price base year | H12: 2023
C13: Default discount base year | H13: 2023
C15: Discount rates
C16: Source: TAG Data Book v2.02 (December 2025)
C19: Year | H19: STPR
C20: =$H$13-$H$8 -> -2 | H20: 0.035
C21: 31 | H21: 0.03
C22: 76 | H22: 0.025
C23: 126 | H23: 0.02
C24: 201 | H24: 0.015
C25: 301 | H25: 0.01
B28: Published landscape value per land type
C30: Land type £/ha/year (2010 prices)
C31: Source: | E31: DfT supplementary VfM guidance on landscape monetisation (May 2017)
C34: Urban Core (City Park) | H34: 75153
C35: Urban Fringe (Greenbelt) | H35: 1237
C36: Urban Fringe (forested Land) | H36: 3758
C37: Rural (forested amenity land) | H37: 9222
C38: Agricultural land (extensive) | H38: 4384
C39: Agricultural land (intensive) | H39: 143
C40: Natural and semi-natural land (wetlands) | H40: 9208
C43: Land type perpetual present value (2010 prices)
C44: Source: | E44: DfT supplementary VfM guidance on landscape monetisation (May 2017)
C47: Urban Core (City Park) | H47: 15031000
C48: Urban Fringe (Greenbelt) | H48: 247000
C49: Urban Fringe (forested Land) | H49: 752000
C50: Rural (forested amenity land) | H50: 1844000
C51: Agricultural land (extensive) | H51: 877000
C52: Agricultural land (intensive) | H52: 29000
C53: Natural and semi-natural land (wetlands) | H53: 1842000
B56: Key Parameters
C58: Annual parameters
C59: Source: TAG Data Book v2.02 (December 2025)
H60: Year | DD60: .
H61: 2000 | I61: 2001 | J61: 2002 | K61: 2003 | L61: 2004 | M61: 2005 | N61: 2006 | O61: 2007 | P61: 2008 | Q61: 2009 | R61: 2010 | S61: 2011 | T61: 2012 | U61: 2013 | V61: 2014 | W61: 2015 | X61: 2016 | Y61: 2017 | Z61: 2018 | AA61: 2019 | AB61: 2020 | AC61: 2021 | AD61: 2022 | AE61: 2023 | AF61: 2024 | AG61: 2025 | AH61: 2026 | AI61: 2027 | AJ61: 2028 | AK61: 2029 | AL61: 2030 | AM61: 2031 | AN61: 2032 | AO61: 2033 | AP61: 2034 | AQ61: 2035 | AR61: 2036 | AS61: 2037 | AT61: 2038 | AU61: 2039 | AV61: 2040 | AW61: 2041 | AX61: 2042 | AY61: 2043 | AZ61: 2044 | BA61: 2045 | BB61: 2046 | BC61: 2047 | BD61: 2048 | BE61: 2049 | BF61: 2050 | BG61: 2051 | BH61: 2052 | BI61: 2053 | BJ61: 2054 | BK61: 2055 | BL61: 2056 | BM61: 2057 | BN61: 2058 | BO61: 2059 | BP61: 2060 | BQ61: 2061 | BR61: 2062 | BS61: 2063 | BT61: 2064 | BU61: 2065 | BV61: 2066 | BW61: 2067 | BX61: 2068 | BY61: 2069 | BZ61: 2070 | CA61: 2071 | CB61: 2072 | CC61: 2073 | CD61: 2074 | CE61: 2075 | CF61: 2076 | CG61: 2077 | CH61: 2078 | CI61: 2079 | CJ61: 2080 | CK61: 2081 | CL61: 2082 | CM61: 2083 | CN61: 2084 | CO61: 2085 | CP61: 2086 | CQ61: 2087 | CR61: 2088 | CS61: 2089 | CT61: 2090 | CU61: 2091 | CV61: 2092 | CW61: 2093 | CX61: 2094 | CY61: 2095 | CZ61: 2096 | DA61: 2097 | DB61: 2098 | DC61: 2099 | DD61: 2100 | DE61: 2101 | DF61: 2102 | DG61: 2103 | DH61: 2104 | DI61: 2105 | DJ61: 2106 | DK61: 2107 | DL61: 2108 | DM61: 2109 | DN61: 2110 | DO61: 2111 | DP61: 2112 | DQ61: 2113 | DR61: 2114 | DS61: 2115 | DT61: 2116 | DU61: 2117 | DV61: 2118 | DW61: 2119 | DX61: 2120 | DY61: 2121 | DZ61: 2122 | EA61: 2123 | EB61: 2124 | EC61: 2125 | ED61: 2126 | EE61: 2127 | EF61: 2128 | EG61: 2129 | EH61: 2130 | EI61: 2131 | EJ61: 2132 | EK61: 2133 | EL61: 2134 | EM61: 2135 | EN61: 2136 | EO61: 2137 | EP61: 2138 | EQ61: 2139 | ER61: 2140 | ES61: 2141 | ET61: 2142 | EU61: 2143 | EV61: 2144 | EW61: 2145 | EX61: 2146 | EY61: 2147 | EZ61: 2148 | FA61: 2149 | FB61: 2150 | FC61: 2151 | FD61: 2152 | FE61: 2153 | FF61: 2154 | FG61: 2155 | FH61: 2156 | FI61: 2157 | FJ61: 2158 | FK61: 2159 | FL61: 2160 | FM61: 2161 | FN61: 2162 | FO61: 2163 | FP61: 2164 | FQ61: 2165 | FR61: 2166 | FS61: 2167 | FT61: 2168 | FU61: 2169 | FV61: 2170 | FW61: 2171 | FX61: 2172 | FY61: 2173 | FZ61: 2174 | GA61: 2175 | GB61: 2176 | GC61: 2177 | GD61: 2178 | GE61: 2179 | GF61: 2180 | GG61: 2181 | GH61: 2182 | GI61: 2183 | GJ61: 2184 | GK61: 2185 | GL61: 2186 | GM61: 2187 | GN61: 2188 | GO61: 2189 | GP61: 2190 | GQ61: 2191 | GR61: 2192 | GS61: 2193 | GT61: 2194 | GU61: 2195 | GV61: 2196 | GW61: 2197 | GX61: 2198 | GY61: 2199 | GZ61: 2200 | HA61: 2201 | HB61: 2202 | HC61: 2203 | HD61: 2204 | HE61: 2205 | HF61: 2206 | HG61: 2207 | HH61: 2208 | HI61: 2209 | HJ61: 2210 | HK61: 2211 | HL61: 2212 | HM61: 2213 | HN61: 2214 | HO61: 2215 | HP61: 2216 | HQ61: 2217 | HR61: 2218 | HS61: 2219 | HT61: 2220 | HU61: 2221 | HV61: 2222 | HW61: 2223 | HX61: 2224 | HY61: 2225 | HZ61: 2226 | IA61: 2227 | IB61: 2228 | IC61: 2229 | ID61: 2230 | IE61: 2231 | IF61: 2232 | IG61: 2233 | IH61: 2234 | II61: 2235 | IJ61: 2236 | IK61: 2237 | IL61: 2238 | IM61: 2239 | IN61: 2240 | IO61: 2241 | IP61: 2242 | IQ61: 2243 | IR61: 2244 | IS61: 2245 | IT61: 2246 | IU61: 2247 | IV61: 2248 | IW61: 2249 | IX61: 2250 | IY61: 2251 | IZ61: 2252 | JA61: 2253 | JB61: 2254 | JC61: 2255 | JD61: 2256 | JE61: 2257 | JF61: 2258 | JG61: 2259 | JH61: 2260 | JI61: 2261 | JJ61: 2262 | JK61: 2263 | JL61: 2264 | JM61: 2265 | JN61: 2266 | JO61: 2267 | JP61: 2268 | JQ61: 2269 | JR61: 2270 | JS61: 2271 | JT61: 2272 | JU61: 2273 | JV61: 2274 | JW61: 2275 | JX61: 2276 | JY61: 2277 | JZ61: 2278 | KA61: 2279 | KB61: 2280 | KC61: 2281 | KD61: 2282 | KE61: 2283 | KF61: 2284 | KG61: 2285 | KH61: 2286 | KI61: 2287 | KJ61: 2288 | KK61: 2289 | KL61: 2290 | KM61: 2291 | KN61: 2292 | KO61: 2293 | KP61: 2294 | KQ61: 2295 | KR61: 2296 | KS61: 2297 | KT61: 2298 | KU61: 2299 | KV61: 2300
C62: GDP Deflator | H62: 57.18439172 | I62: 58.04831094 | J62: 59.2758654 | K62: 60.69063696 | L62: 62.26147471 | M62: 64.09273425 | N62: 65.88453595 | O62: 67.36430913 | P62: 69.69128386 | Q62: 70.99858471 | R62: 72.12521014 | S62: 73.7100658 | T62: 74.84624418 | U62: 76.42393513 | V62: 77.43166783 | W62: 77.94327 | X62: 79.47163863 | Y62: 80.94736219 | Z62: 82.50293598 | AA62: 84.26151001 | AB62: 88.63946221 | AC62: 88.51402778 | AD62: 93.32352425 | AE62: 100 | AF62: 103.8364451 | AG62: 107.3521808 | AH62: 109.768469 | AI62: 112.0237924 | AJ62: 114.1829988 | AK62: 116.2689982 | AL62: 118.5137852 | AM62: 121.07412 | AN62: 123.8588248 | AO62: 126.7075777 | AP62: 129.621852 | AQ62: 132.6031546 | AR62: 135.6530272 | AS62: 138.7730468 | AT62: 141.9648269 | AU62: 145.2300179 | AV62: 148.5703083 | AW62: 151.9874254 | AX62: 155.4831362 | AY62: 159.0592483 | AZ62: 162.717611 | BA62: 166.4601161 | BB62: 170.2886987 | BC62: 174.2053388 | BD62: 178.2120616 | BE62: 182.310939 | BF62: 186.5040906 | BG62: 190.7936847 | BH62: 195.1819394 | BI62: 199.6711241 | BJ62: 204.2635599 | BK62: 208.9616218 | BL62: 213.7677391 | BM62: 218.6843971 | BN62: 223.7141382 | BO62: 228.8595634 | BP62: 234.1233334 | BQ62: 239.50817 | BR62: 245.0168579 | BS62: 250.6522457 | BT62: 256.4172473 | BU62: 262.314844 | BV62: 268.3480854 | BW62: 274.5200914 | BX62: 280.8340535 | BY62: 287.2932367 | BZ62: 293.9009812 | CA62: 300.6607037 | CB62: 307.5758999 | CC62: 314.6501456 | CD62: 321.887099 | CE62: 329.2905022 | CF62: 336.8641838 | CG62: 344.61206 | CH62: 352.5381374 | CI62: 360.6465146 | CJ62: 368.9413844 | CK62: 377.4270362 | CL62: 386.1078581 | CM62: 394.9883388 | CN62: 404.0730706 | CO62: 413.3667512 | CP62: 422.8741865 | CQ62: 432.6002928 | CR62: 442.5500995 | CS62: 452.7287518 | CT62: 463.1415131 | CU62: 473.7937679 | CV62: 484.6910246 | CW62: 495.8389181 | CX62: 507.2432132 | CY62: 518.9098071 | CZ62: 530.8447327 | DA62: 543.0541616 | DB62: 555.5444073 | DC62: 568.3219286 | DD62: 581.393333 | DE62: =DD62*($DD62/$DC62) -> 594.7653797 | DF62: =DE62*($DD62/$DC62) -> 608.4449834 | DG62: 622.439218 | DH62: 636.75532 | DI62: 651.4006924 | DJ62: 666.3829083 | DK62: 681.7097152 | DL62: 697.3890387 | DM62: 713.4289865 | DN62: 729.8378532 | DO62: 746.6241239 | DP62: 763.7964787 | DQ62: 781.3637977 | DR62: 799.3351651 | DS62: 817.7198739 | DT62: 836.527431 | DU62: 855.7675619 | DV62: 875.4502158 | DW62: 895.5855708 | DX62: 916.1840389 | DY62: 937.2562718 | DZ62: 958.813166 | EA62: 980.8658688 | EB62: 1003.425784 | EC62: 1026.504577 | ED62: 1050.114182 | EE62: 1074.266808 | EF62: 1098.974945 | EG62: 1124.251369 | EH62: 1150.10915 | EI62: 1176.561661 | EJ62: 1203.622579 | EK62: 1231.305898 | EL62: 1259.625934 | EM62: 1288.59733 | EN62: 1318.235069 | EO62: 1348.554475 | EP62: 1379.571228 | EQ62: 1411.301367 | ER62: 1443.761298 | ES62: 1476.967808 | ET62: 1510.938067 | EU62: 1545.689643 | EV62: 1581.240505 | EW62: 1617.609036 | EX62: 1654.814044 | EY62: 1692.874767 | EZ62: 1731.810887 | FA62: 1771.642537 | FB62: 1812.390316 | FC62: 1854.075293 | FD62: 1896.719025 | FE62: 1940.343562 | FF62: 1984.971464 | FG62: 2030.625808 | FH62: 2077.330201 | FI62: 2125.108796 | FJ62: 2173.986298 | FK62: 2223.987983 | FL62: 2275.139707 | FM62: 2327.46792 | FN62: 2380.999682 | FO62: 2435.762675 | FP62: 2491.785216 | FQ62: 2549.096276 | FR62: =FQ62*($DD62/$DC62) -> 2607.725491 | FS62: 2667.703177 | FT62: 2729.06035 | FU62: 2791.828738 | FV62: 2856.040799 | FW62: 2921.729738 | FX62: 2988.929522 | FY62: 3057.6749 | FZ62: 3128.001423 | GA62: 3199.945456 | GB62: 3273.544201 | GC62: 3348.835718 | GD62: 3425.85894 | GE62: 3504.653695 | GF62: 3585.26073 | GG62: 3667.721727 | GH62: 3752.079327 | GI62: 3838.377151 | GJ62: 3926.659826 | GK62: 4016.973002 | GL62: 4109.363381 | GM62: 4203.878738 | GN62: 4300.567949 | GO62: 4399.481012 | GP62: 4500.669076 | GQ62: 4604.184464 | GR62: 4710.080707 | GS62: 4818.412563 | GT62: 4929.236052 | GU62: 5042.608481 | GV62: 5158.588476 | GW62: 5277.236011 | GX62: 5398.61244 | GY62: 5522.780526 | GZ62: 5649.804478 | HA62: 5779.749981 | HB62: 5912.68423 | HC62: 6048.675968 | HD62: 6187.795515 | HE62: 6330.114812 | HF62: 6475.707453 | HG62: 6624.648724 | HH62: 6777.015645 | HI62: 6932.887004 | HJ62: 7092.343406 | HK62: 7255.467304 | HL62: 7422.343052 | HM62: 7593.056942 | HN62: 7767.697252 | HO62: 7946.354288 | HP62: 8129.120437 | HQ62: 8316.090207 | HR62: 8507.360282 | HS62: 8703.029568 | HT62: 8903.199248 | HU62: 9107.972831 | HV62: 9317.456206 | HW62: 9531.757699 | HX62: 9750.988126 | HY62: 9975.260853 | HZ62: 10204.69185 | IA62: 10439.39977 | IB62: 10679.50596 | IC62: 10925.1346 | ID62: =IC62*($DD62/$DC62) -> 11176.41269 | IE62: 11433.47018 | IF62: 11696.44 | IG62: 11965.45812 | IH62: 12240.66366 | II62: 12522.19892 | IJ62: 12810.20949 | IK62: 13104.84431 | IL62: 13406.25573 | IM62: 13714.59961 | IN62: 14030.03541 | IO62: 14352.72622 | IP62: 14682.83892 | IQ62: 15020.54422 | IR62: 15366.01673 | IS62: 15719.43512 | IT62: 16080.98213 | IU62: 16450.84472 | IV62: 16829.21415 | IW62: 17216.28607 | IX62: 17612.26065 | IY62: 18017.34264 | IZ62: 18431.74153 | JA62: 18855.67158 | JB62: 19289.35203 | JC62: 19733.00712 | JD62: 20186.86629 | JE62: 20651.16421 | JF62: 21126.14099 | JG62: 21612.04223 | JH62: 22109.1192 | JI62: 22617.62895 | JJ62: 23137.83441 | JK62: 23670.0046 | JL62: 24214.41471 | JM62: 24771.34625 | JN62: 25341.08721 | JO62: 25923.93222 | JP62: 26520.18266 | JQ62: 27130.14686 | JR62: 27754.14024 | JS62: 28392.48546 | JT62: 29045.51263 | JU62: 29713.55942 | JV62: 30396.97128 | JW62: 31096.10162 | JX62: 31811.31196 | JY62: 32542.97214 | JZ62: 33291.46049 | KA62: 34057.16409 | KB62: 34840.47886 | KC62: 35641.80987 | KD62: 36461.5715 | KE62: 37300.18765 | KF62: 38158.09196 | KG62: 39035.72808 | KH62: 39933.54982 | KI62: 40852.02147 | KJ62: 41791.61796 | KK62: 42752.82517 | KL62: 43736.14015 | KM62: 44742.07138 | KN62: 45771.13902 | KO62: 46823.87522 | KP62: =KO62*($DD62/$DC62) -> 47900.82435 | KQ62: 49002.54331 | KR62: 50129.6018 | KS62: 51282.58264 | KT62: 52462.08204 | KU62: 53668.70993 | KV62: 54903.09026
C63: GDP per capita growth (index) | H63: 124.4845426 | I63: 127.1971403 | J63: 128.9300112 | K63: 132.3899816 | L63: 134.934222 | M63: 137.559368 | N63: 139.876156 | O63: 142.3959674 | P63: 140.8821296 | Q63: 133.4300952 | R63: 135.3254154 | S63: 135.7292004 | T63: 136.8567572 | U63: 138.3906004 | V63: 141.7490909 | W63: 143.8568114 | X63: 145.4614407 | Y63: 148.5131977 | Z63: 149.8665023 | AA63: 151.5197775 | AB63: 135.6869808 | AC63: 146.7968935 | AD63: 152.4906586 | AE63: 151.5885131 | AF63: 151.5071077 | AG63: 153.0386301 | AH63: 154.5464784 | AI63: 156.3458925 | AJ63: 157.9993587 | AK63: 159.7057817 | AL63: 161.4654002 | AM63: 163.9572813 | AN63: 166.5583934 | AO63: 169.2823307 | AP63: 172.1085377 | AQ63: 175.0102023 | AR63: 178.0086704 | AS63: 181.1878679 | AT63: 184.3179905 | AU63: 187.4102124 | AV63: 190.4372091 | AW63: 193.4289482 | AX63: 196.3850137 | AY63: 199.3349352 | AZ63: 202.2968479 | BA63: 205.2528338 | BB63: 208.240569 | BC63: 211.2536228 | BD63: 214.2985246 | BE63: 217.3734352 | BF63: 220.4908589 | BG63: 223.6661856 | BH63: 226.8945988 | BI63: 230.1592381 | BJ63: 233.4604455 | BK63: 236.7936909 | BL63: 240.1427767 | BM63: 243.5114877 | BN63: 246.8987869 | BO63: 250.3231834 | BP63: 253.756262 | BQ63: 257.2668955 | BR63: 260.7695387 | BS63: 264.2793528 | BT63: 267.8044586 | BU63: 271.3817252 | BV63: 274.9994955 | BW63: 278.6598961 | BX63: 282.4268491 | BY63: 286.3965918 | BZ63: 290.5296524 | CA63: 294.7437295 | CB63: 299.0142785 | CC63: 303.3618639 | CD63: 307.0682904 | CE63: 310.7335421 | CF63: 314.2490147 | CG63: 317.8460035 | CH63: 321.4567527 | CI63: 325.0589529 | CJ63: 328.7240765 | CK63: 332.5809253 | CL63: 336.6262549 | CM63: 340.766964 | CN63: 344.937946 | CO63: 349.3296157 | CP63: 353.9153928 | CQ63: 358.6397196 | CR63: 363.5406321 | CS63: 368.6763103 | CT63: 373.8571996 | CU63: 379.3863918 | CV63: 385.0184979 | CW63: 390.7237579 | CX63: 396.5266456 | CY63: 402.4344834 | CZ63: 408.4420977 | DA63: 414.5388569 | DB63: 420.7199803 | DC63: 426.9819648 | DD63: 433.3228501 | DE63: =DD63*($DD63/$DC63) -> 439.7579005 | DF63: =DE63*($DD63/$DC63) -> 446.2885145 | DG63: 452.9161113 | DH63: 459.642131 | DI63: 466.4680353 | DJ63: 473.3953075 | DK63: 480.4254531 | DL63: 487.5599996 | DM63: 494.8004975 | DN63: 502.1485203 | DO63: 509.6056647 | DP63: 517.1735512 | DQ63: 524.8538245 | DR63: 532.6481535 | DS63: 540.5582319 | DT63: 548.5857788 | DU63: 556.7325386 | DV63: 565.0002817 | DW63: 573.3908046 | DX63: 581.9059308 | DY63: 590.5475107 | DZ63: 599.3174222 | EA63: 608.217571 | EB63: 617.2498913 | EC63: 626.4163458 | ED63: 635.7189265 | EE63: 645.159655 | EF63: 654.7405828 | EG63: 664.4637919 | EH63: 674.3313953 | EI63: 684.3455373 | EJ63: 694.5083941 | EK63: 704.8221741 | EL63: =EK63*($DD63/$DC63) -> 715.2891187 | EM63: 725.9115024 | EN63: 736.6916336 | EO63: 747.6318548 | EP63: 758.7345435 | EQ63: 770.0021124 | ER63: 781.43701 | ES63: 793.0417214 | ET63: 804.8187682 | EU63: 816.7707098 | EV63: 828.9001434 | EW63: 841.2097048 | EX63: 853.7020691 | EY63: 866.3799509 | EZ63: 879.2461054 | FA63: 892.3033283 | FB63: 905.5544572 | FC63: 919.0023717 | FD63: 932.6499941 | FE63: 946.5002902 | FF63: 960.5562697 | FG63: 974.8209873 | FH63: 989.2975427 | FI63: 1003.989082 | FJ63: 1018.898797 | FK63: 1034.029929 | FL63: 1049.385765 | FM63: 1064.969643 | FN63: 1080.784949 | FO63: 1096.83512 | FP63: 1113.123643 | FQ63: 1129.654059 | FR63: =FQ63*($DD63/$DC63) -> 1146.429959 | FS63: 1163.454989 | FT63: 1180.732849 | FU63: 1198.267294 | FV63: 1216.062133 | FW63: 1234.121234 | FX63: 1252.448522 | FY63: 1271.047978 | FZ63: 1289.923645 | GA63: 1309.079625 | GB63: 1328.52008 | GC63: 1348.249235 | GD63: 1368.271378 | GE63: 1388.590859 | GF63: 1409.212093 | GG63: 1430.139563 | GH63: 1451.377816 | GI63: 1472.931467 | GJ63: 1494.8052 | GK63: 1517.003769 | GL63: 1539.531996 | GM63: 1562.394779 | GN63: 1585.597084 | GO63: 1609.143955 | GP63: 1633.040509 | GQ63: 1657.291937 | GR63: 1681.903511 | GS63: 1706.880578 | GT63: 1732.228566 | GU63: 1757.952985 | GV63: 1784.059423 | GW63: 1810.553554 | GX63: =GW63*($DD63/$DC63) -> 1837.441136 | GY63: 1864.728011 | GZ63: 1892.420109 | HA63: 1920.523447 | HB63: 1949.044134 | HC63: 1977.988367 | HD63: 2007.362435 | HE63: 2037.172722 | HF63: 2067.425706 | HG63: 2098.127961 | HH63: 2129.28616 | HI63: 2160.907072 | HJ63: 2192.99757 | HK63: 2225.564627 | HL63: 2258.615321 | HM63: 2292.156833 | HN63: 2326.196452 | HO63: 2360.741576 | HP63: 2395.799711 | HQ63: 2431.378477 | HR63: 2467.485604 | HS63: 2504.128939 | HT63: 2541.316445 | HU63: 2579.056203 | HV63: 2617.356414 | HW63: 2656.225402 | HX63: 2695.671613 | HY63: 2735.703619 | HZ63: 2776.330119 | IA63: 2817.559942 | IB63: 2859.402048 | IC63: 2901.865528 | ID63: =IC63*($DD63/$DC63) -> 2944.959612 | IE63: 2988.693663 | IF63: 3033.077186 | IG63: 3078.119825 | IH63: 3123.831368 | II63: 3170.22175 | IJ63: 3217.301051 | IK63: 3265.079503 | IL63: 3313.567486 | IM63: 3362.77554 | IN63: 3412.714356 | IO63: 3463.394788 | IP63: 3514.827848 | IQ63: 3567.024714 | IR63: 3619.996728 | IS63: 3673.755401 | IT63: 3728.312416 | IU63: 3783.679629 | IV63: 3839.869072 | IW63: 3896.892954 | IX63: 3954.763668 | IY63: 4013.49379 | IZ63: 4073.096082 | JA63: 4133.583497 | JB63: 4194.969178 | JC63: 4257.266466 | JD63: 4320.488898 | JE63: 4384.650214 | JF63: 4449.764355 | JG63: 4515.845473 | JH63: 4582.907926 | JI63: 4650.966289 | JJ63: =JI63*($DD63/$DC63) -> 4720.035351 | JK63: 4790.130121 | JL63: 4861.265832 | JM63: 4933.457943 | JN63: 5006.72214 | JO63: 5081.074345 | JP63: 5156.530717 | JQ63: 5233.107651 | JR63: 5310.821789 | JS63: 5389.690019 | JT63: 5469.72948 | JU63: 5550.957564 | JV63: 5633.391925 | JW63: 5717.050475 | JX63: 5801.951394 | JY63: 5888.113132 | JZ63: 5975.554413 | KA63: 6064.294239 | KB63: 6154.351893 | KC63: 6245.746947 | KD63: 6338.49926 | KE63: 6432.628989 | KF63: 6528.15659 | KG63: 6625.102821 | KH63: 6723.488749 | KI63: 6823.335756 | KJ63: 6924.665538 | KK63: 7027.500115 | KL63: 7131.861835 | KM63: 7237.773376 | KN63: 7345.257753 | KO63: 7454.338325 | KP63: =KO63*($DD63/$DC63) -> 7565.038796 | KQ63: 7677.38322 | KR63: 7791.396014 | KS63: 7907.101951 | KT63: 8024.526176 | KU63: 8143.694207 | KV63: 8264.63194
C64: GDP per capita % change | I64: =(I63-H63)/H63 -> 0.02179063899 | J64: 0.0136235056 | K64: 0.0268360353 | L64: 0.01921777126 | M64: 0.01945500526 | N64: 0.01684209542 | O64: 0.01801458882 | P64: -0.01063118471 | Q64: -0.05289552603 | R64: 0.01420459284 | S64: 0.00298380731 | T64: 0.008307400368 | U64: 0.0112076542 | V64: 0.02426819847 | W64: 0.01486937549 | X64: 0.01115435032 | Y64: 0.02097983516 | Z64: 0.009112352306 | AA64: 0.0110316526 | AB64: -0.1044932678 | AC64: 0.08187898856 | AD64: 0.03878668645 | AE64: -0.005916070824 | AF64: -0.000537015668 | AG64: 0.01010858447 | AH64: 0.00985273007 | AI64: 0.01164319055 | AJ64: 0.01057569318 | AK64: 0.01080018987 | AL64: 0.01101787586 | AM64: 0.01543291056 | AN64: 0.01586457199 | AO64: =(AO63-AN63)/AN63 -> 0.01635424834 | AP64: 0.01669522704 | AQ64: 0.01685950454 | AR64: 0.01713310462 | AS64: 0.01785978989 | AT64: 0.01727556404 | AU64: 0.0167765602 | AV64: 0.0161517171 | AW64: 0.01570984533 | AX64: 0.01528243587 | AY64: 0.01502111304 | AZ64: 0.01485897454 | BA64: 0.01461212052 | BB64: 0.01455636486 | BC64: 0.01446910111 | BD64: 0.01441348918 | BE64: 0.01434872503 | BF64: 0.01434132755 | BG64: 0.0144011718 | BH64: 0.01443406907 | BI64: 0.01438835193 | BJ64: 0.01434314541 | BK64: 0.01427755949 | BL64: 0.01414347543 | BM64: 0.01402795041 | BN64: 0.01391022371 | BO64: 0.01386963687 | BP64: 0.01371458507 | BQ64: 0.01383466715 | BR64: 0.01361482316 | BS64: 0.01345944789 | BT64: 0.01333855937 | BU64: =(BU63-BT63)/BT63 -> 0.01335775591 | BV64: 0.01333092808 | BW64: 0.01331057227 | BX64: 0.01351810228 | BY64: 0.01405582612 | BZ64: 0.01443124923 | CA64: 0.01450480913 | CB64: 0.01448902415 | CC64: 0.01453972505 | CD64: 0.01221783916 | CE64: 0.0119362755 | CF64: 0.0113134635 | CG64: 0.0114463011 | CH64: 0.01136005846 | CI64: 0.01120586272 | CJ64: 0.01127525806 | CK64: 0.0117327846 | CL64: 0.01216344435 | CM64: 0.0123006125 | CN64: 0.01223998357 | CO64: 0.0127317673 | CP64: 0.01312736411 | CQ64: 0.01334874635 | CR64: 0.01366528094 | CS64: 0.01412683417 | CT64: 0.01405267748 | CU64: 0.01478958316 | CV64: 0.01484530355 | CW64: 0.01481814519 | CX64: 0.01485163776 | CY64: 0.01489896783 | CZ64: 0.01492817984 | DA64: =(DA63-CZ63)/CZ63 -> 0.01492686297 | DB64: 0.01491084207 | DC64: 0.01488397204 | DD64: 0.01485047571 | DE64: 0.01485047571 | DF64: =(DF63-DE63)/DE63 -> 0.01485047571 | DG64: =(DG63-DF63)/DF63 -> 0.01485047571 | DH64: =(DH63-DG63)/DG63 -> 0.01485047571 | DI64: =(DI63-DH63)/DH63 -> 0.01485047571 | DJ64: =(DJ63-DI63)/DI63 -> 0.01485047571 | DK64: =(DK63-DJ63)/DJ63 -> 0.01485047571 | DL64: =(DL63-DK63)/DK63 -> 0.01485047571 | DM64: =(DM63-DL63)/DL63 -> 0.01485047571 | DN64: =(DN63-DM63)/DM63 -> 0.01485047571 | DO64: =(DO63-DN63)/DN63 -> 0.01485047571 | DP64: =(DP63-DO63)/DO63 -> 0.01485047571 | DQ64: =(DQ63-DP63)/DP63 -> 0.01485047571 | DR64: =(DR63-DQ63)/DQ63 -> 0.01485047571 | DS64: =(DS63-DR63)/DR63 -> 0.01485047571 | DT64: =(DT63-DS63)/DS63 -> 0.01485047571 | DU64: =(DU63-DT63)/DT63 -> 0.01485047571 | DV64: =(DV63-DU63)/DU63 -> 0.01485047571 | DW64: =(DW63-DV63)/DV63 -> 0.01485047571 | DX64: =(DX63-DW63)/DW63 -> 0.01485047571 | DY64: =(DY63-DX63)/DX63 -> 0.01485047571 | DZ64: =(DZ63-DY63)/DY63 -> 0.01485047571 | EA64: =(EA63-DZ63)/DZ63 -> 0.01485047571 | EB64: =(EB63-EA63)/EA63 -> 0.01485047571 | EC64: =(EC63-EB63)/EB63 -> 0.01485047571 | ED64: =(ED63-EC63)/EC63 -> 0.01485047571 | EE64: =(EE63-ED63)/ED63 -> 0.01485047571 | EF64: =(EF63-EE63)/EE63 -> 0.01485047571 | EG64: =(EG63-EF63)/EF63 -> 0.01485047571 | EH64: =(EH63-EG63)/EG63 -> 0.01485047571 | EI64: =(EI63-EH63)/EH63 -> 0.01485047571 | EJ64: =(EJ63-EI63)/EI63 -> 0.01485047571 | EK64: =(EK63-EJ63)/EJ63 -> 0.01485047571 | EL64: =(EL63-EK63)/EK63 -> 0.01485047571 | EM64: =(EM63-EL63)/EL63 -> 0.01485047571 | EN64: =(EN63-EM63)/EM63 -> 0.01485047571 | EO64: =(EO63-EN63)/EN63 -> 0.01485047571 | EP64: =(EP63-EO63)/EO63 -> 0.01485047571 | EQ64: =(EQ63-EP63)/EP63 -> 0.01485047571 | ER64: =(ER63-EQ63)/EQ63 -> 0.01485047571 | ES64: =(ES63-ER63)/ER63 -> 0.01485047571 | ET64: =(ET63-ES63)/ES63 -> 0.01485047571 | EU64: =(EU63-ET63)/ET63 -> 0.01485047571 | EV64: =(EV63-EU63)/EU63 -> 0.01485047571 | EW64: =(EW63-EV63)/EV63 -> 0.01485047571 | EX64: =(EX63-EW63)/EW63 -> 0.01485047571 | EY64: =(EY63-EX63)/EX63 -> 0.01485047571 | EZ64: =(EZ63-EY63)/EY63 -> 0.01485047571 | FA64: =(FA63-EZ63)/EZ63 -> 0.01485047571 | FB64: =(FB63-FA63)/FA63 -> 0.01485047571 | FC64: =(FC63-FB63)/FB63 -> 0.01485047571 | FD64: =(FD63-FC63)/FC63 -> 0.01485047571 | FE64: =(FE63-FD63)/FD63 -> 0.01485047571 | FF64: =(FF63-FE63)/FE63 -> 0.01485047571 | FG64: =(FG63-FF63)/FF63 -> 0.01485047571 | FH64: =(FH63-FG63)/FG63 -> 0.01485047571 | FI64: =(FI63-FH63)/FH63 -> 0.01485047571 | FJ64: =(FJ63-FI63)/FI63 -> 0.01485047571 | FK64: =(FK63-FJ63)/FJ63 -> 0.01485047571 | FL64: =(FL63-FK63)/FK63 -> 0.01485047571 | FM64: =(FM63-FL63)/FL63 -> 0.01485047571 | FN64: =(FN63-FM63)/FM63 -> 0.01485047571 | FO64: =(FO63-FN63)/FN63 -> 0.01485047571 | FP64: =(FP63-FO63)/FO63 -> 0.01485047571 | FQ64: =(FQ63-FP63)/FP63 -> 0.01485047571 | FR64: =(FR63-FQ63)/FQ63 -> 0.01485047571 | FS64: =(FS63-FR63)/FR63 -> 0.01485047571 | FT64: =(FT63-FS63)/FS63 -> 0.01485047571 | FU64: =(FU63-FT63)/FT63 -> 0.01485047571 | FV64: =(FV63-FU63)/FU63 -> 0.01485047571 | FW64: =(FW63-FV63)/FV63 -> 0.01485047571 | FX64: =(FX63-FW63)/FW63 -> 0.01485047571 | FY64: =(FY63-FX63)/FX63 -> 0.01485047571 | FZ64: =(FZ63-FY63)/FY63 -> 0.01485047571 | GA64: =(GA63-FZ63)/FZ63 -> 0.01485047571 | GB64: =(GB63-GA63)/GA63 -> 0.01485047571 | GC64: =(GC63-GB63)/GB63 -> 0.01485047571 | GD64: =(GD63-GC63)/GC63 -> 0.01485047571 | GE64: =(GE63-GD63)/GD63 -> 0.01485047571 | GF64: =(GF63-GE63)/GE63 -> 0.01485047571 | GG64: =(GG63-GF63)/GF63 -> 0.01485047571 | GH64: =(GH63-GG63)/GG63 -> 0.01485047571 | GI64: =(GI63-GH63)/GH63 -> 0.01485047571 | GJ64: =(GJ63-GI63)/GI63 -> 0.01485047571 | GK64: =(GK63-GJ63)/GJ63 -> 0.01485047571 | GL64: =(GL63-GK63)/GK63 -> 0.01485047571 | GM64: =(GM63-GL63)/GL63 -> 0.01485047571 | GN64: =(GN63-GM63)/GM63 -> 0.01485047571 | GO64: =(GO63-GN63)/GN63 -> 0.01485047571 | GP64: =(GP63-GO63)/GO63 -> 0.01485047571 | GQ64: =(GQ63-GP63)/GP63 -> 0.01485047571 | GR64: =(GR63-GQ63)/GQ63 -> 0.01485047571 | GS64: =(GS63-GR63)/GR63 -> 0.01485047571 | GT64: =(GT63-GS63)/GS63 -> 0.01485047571 | GU64: =(GU63-GT63)/GT63 -> 0.01485047571 | GV64: =(GV63-GU63)/GU63 -> 0.01485047571 | GW64: =(GW63-GV63)/GV63 -> 0.01485047571 | GX64: =(GX63-GW63)/GW63 -> 0.01485047571 | GY64: =(GY63-GX63)/GX63 -> 0.01485047571 | GZ64: =(GZ63-GY63)/GY63 -> 0.01485047571 | HA64: =(HA63-GZ63)/GZ63 -> 0.01485047571 | HB64: =(HB63-HA63)/HA63 -> 0.01485047571 | HC64: =(HC63-HB63)/HB63 -> 0.01485047571 | HD64: =(HD63-HC63)/HC63 -> 0.01485047571 | HE64: =(HE63-HD63)/HD63 -> 0.01485047571 | HF64: =(HF63-HE63)/HE63 -> 0.01485047571 | HG64: =(HG63-HF63)/HF63 -> 0.01485047571 | HH64: =(HH63-HG63)/HG63 -> 0.01485047571 | HI64: =(HI63-HH63)/HH63 -> 0.01485047571 | HJ64: =(HJ63-HI63)/HI63 -> 0.01485047571 | HK64: =(HK63-HJ63)/HJ63 -> 0.01485047571 | HL64: =(HL63-HK63)/HK63 -> 0.01485047571 | HM64: =(HM63-HL63)/HL63 -> 0.01485047571 | HN64: =(HN63-HM63)/HM63 -> 0.01485047571 | HO64: =(HO63-HN63)/HN63 -> 0.01485047571 | HP64: =(HP63-HO63)/HO63 -> 0.01485047571 | HQ64: =(HQ63-HP63)/HP63 -> 0.01485047571 | HR64: =(HR63-HQ63)/HQ63 -> 0.01485047571 | HS64: =(HS63-HR63)/HR63 -> 0.01485047571 | HT64: =(HT63-HS63)/HS63 -> 0.01485047571 | HU64: =(HU63-HT63)/HT63 -> 0.01485047571 | HV64: =(HV63-HU63)/HU63 -> 0.01485047571 | HW64: =(HW63-HV63)/HV63 -> 0.01485047571 | HX64: =(HX63-HW63)/HW63 -> 0.01485047571 | HY64: =(HY63-HX63)/HX63 -> 0.01485047571 | HZ64: =(HZ63-HY63)/HY63 -> 0.01485047571 | IA64: =(IA63-HZ63)/HZ63 -> 0.01485047571 | IB64: =(IB63-IA63)/IA63 -> 0.01485047571 | IC64: =(IC63-IB63)/IB63 -> 0.01485047571 | ID64: =(ID63-IC63)/IC63 -> 0.01485047571 | IE64: =(IE63-ID63)/ID63 -> 0.01485047571 | IF64: =(IF63-IE63)/IE63 -> 0.01485047571 | IG64: =(IG63-IF63)/IF63 -> 0.01485047571 | IH64: =(IH63-IG63)/IG63 -> 0.01485047571 | II64: =(II63-IH63)/IH63 -> 0.01485047571 | IJ64: =(IJ63-II63)/II63 -> 0.01485047571 | IK64: =(IK63-IJ63)/IJ63 -> 0.01485047571 | IL64: =(IL63-IK63)/IK63 -> 0.01485047571 | IM64: =(IM63-IL63)/IL63 -> 0.01485047571 | IN64: =(IN63-IM63)/IM63 -> 0.01485047571 | IO64: =(IO63-IN63)/IN63 -> 0.01485047571 | IP64: =(IP63-IO63)/IO63 -> 0.01485047571 | IQ64: =(IQ63-IP63)/IP63 -> 0.01485047571 | IR64: =(IR63-IQ63)/IQ63 -> 0.01485047571 | IS64: =(IS63-IR63)/IR63 -> 0.01485047571 | IT64: =(IT63-IS63)/IS63 -> 0.01485047571 | IU64: =(IU63-IT63)/IT63 -> 0.01485047571 | IV64: =(IV63-IU63)/IU63 -> 0.01485047571 | IW64: =(IW63-IV63)/IV63 -> 0.01485047571 | IX64: =(IX63-IW63)/IW63 -> 0.01485047571 | IY64: =(IY63-IX63)/IX63 -> 0.01485047571 | IZ64: =(IZ63-IY63)/IY63 -> 0.01485047571 | JA64: =(JA63-IZ63)/IZ63 -> 0.01485047571 | JB64: =(JB63-JA63)/JA63 -> 0.01485047571 | JC64: =(JC63-JB63)/JB63 -> 0.01485047571 | JD64: =(JD63-JC63)/JC63 -> 0.01485047571 | JE64: =(JE63-JD63)/JD63 -> 0.01485047571 | JF64: =(JF63-JE63)/JE63 -> 0.01485047571 | JG64: =(JG63-JF63)/JF63 -> 0.01485047571 | JH64: =(JH63-JG63)/JG63 -> 0.01485047571 | JI64: =(JI63-JH63)/JH63 -> 0.01485047571 | JJ64: =(JJ63-JI63)/JI63 -> 0.01485047571 | JK64: =(JK63-JJ63)/JJ63 -> 0.01485047571 | JL64: =(JL63-JK63)/JK63 -> 0.01485047571 | JM64: =(JM63-JL63)/JL63 -> 0.01485047571 | JN64: =(JN63-JM63)/JM63 -> 0.01485047571 | JO64: =(JO63-JN63)/JN63 -> 0.01485047571 | JP64: =(JP63-JO63)/JO63 -> 0.01485047571 | JQ64: =(JQ63-JP63)/JP63 -> 0.01485047571 | JR64: =(JR63-JQ63)/JQ63 -> 0.01485047571 | JS64: =(JS63-JR63)/JR63 -> 0.01485047571 | JT64: =(JT63-JS63)/JS63 -> 0.01485047571 | JU64: =(JU63-JT63)/JT63 -> 0.01485047571 | JV64: =(JV63-JU63)/JU63 -> 0.01485047571 | JW64: =(JW63-JV63)/JV63 -> 0.01485047571 | JX64: =(JX63-JW63)/JW63 -> 0.01485047571 | JY64: =(JY63-JX63)/JX63 -> 0.01485047571 | JZ64: =(JZ63-JY63)/JY63 -> 0.01485047571 | KA64: =(KA63-JZ63)/JZ63 -> 0.01485047571 | KB64: =(KB63-KA63)/KA63 -> 0.01485047571 | KC64: =(KC63-KB63)/KB63 -> 0.01485047571 | KD64: =(KD63-KC63)/KC63 -> 0.01485047571 | KE64: =(KE63-KD63)/KD63 -> 0.01485047571 | KF64: =(KF63-KE63)/KE63 -> 0.01485047571 | KG64: =(KG63-KF63)/KF63 -> 0.01485047571 | KH64: =(KH63-KG63)/KG63 -> 0.01485047571 | KI64: =(KI63-KH63)/KH63 -> 0.01485047571 | KJ64: =(KJ63-KI63)/KI63 -> 0.01485047571 | KK64: =(KK63-KJ63)/KJ63 -> 0.01485047571 | KL64: =(KL63-KK63)/KK63 -> 0.01485047571 | KM64: =(KM63-KL63)/KL63 -> 0.01485047571 | KN64: =(KN63-KM63)/KM63 -> 0.01485047571 | KO64: =(KO63-KN63)/KN63 -> 0.01485047571 | KP64: =(KP63-KO63)/KO63 -> 0.01485047571 | KQ64: =(KQ63-KP63)/KP63 -> 0.01485047571 | KR64: =(KR63-KQ63)/KQ63 -> 0.01485047571 | KS64: =(KS63-KR63)/KR63 -> 0.01485047571 | KT64: =(KT63-KS63)/KS63 -> 0.01485047571 | KU64: =(KU63-KT63)/KT63 -> 0.01485047571 | KV64: =(KV63-KU63)/KU63 -> 0.01485047571
C65: Population growth (index) | H65: 102.8802795 | I65: 103.276698 | J65: 103.7181917 | K65: 104.1916576 | L65: 104.7397248 | M65: 105.5484604 | N65: 106.271413 | O65: 107.1309893 | P65: 108.0127539 | Q65: 108.7757152 | R65: 109.6475213 | S65: 110.5658004 | T65: 111.3095436 | U65: 112.0571304 | V65: 112.8971391 | W65: 113.7158332 | X65: 114.6225813 | Y65: 115.2496178 | Z65: 115.8137585 | AA65: 116.4109194 | AB65: 116.6090413 | AC65: 117.0272985 | AD65: 118.1092815 | AE65: 119.2665648 | AF65: 120.446415 | AG65: 121.0098103 | AH65: 121.4725828 | AI65: 121.9268477 | AJ65: 122.4213556 | AK65: 122.9579678 | AL65: 123.5023009 | AM65: 124.0363613 | AN65: 124.5565116 | AO65: 125.0635015 | AP65: 125.5584805 | AQ65: 126.0422349 | AR65: 126.5157681 | AS65: 126.9802227 | AT65: 127.4368806 | AU65: 127.8866165 | AV65: 128.3301279 | AW65: 128.7677921 | AX65: 129.1998249 | AY65: 129.6257896 | AZ65: 130.0446845 | BA65: 130.4557166 | BB65: 130.8582058 | BC65: 131.2512669 | BD65: 131.6322859 | BE65: 131.998313 | BF65: 132.3481867 | BG65: 132.681072 | BH65: 132.9966732 | BI65: 133.29498 | BJ65: 133.5762323 | BK65: 133.8416424 | BL65: 134.093106 | BM65: 134.3326805 | BN65: 134.5622425 | BO65: 134.783733 | BP65: 134.9992494 | BQ65: 135.210703 | BR65: 135.4198313 | BS65: 135.6277561 | BT65: 135.8353157 | BU65: 136.0433414 | BV65: 136.2523341 | BW65: 136.4621389 | BX65: 136.6724499 | BY65: 136.8823644 | BZ65: 137.0908214 | CA65: 137.2964505 | CB65: 137.4976655 | CC65: 137.6928595 | CD65: 137.880481 | CE65: 138.0592415 | CF65: 138.227885 | CG65: 138.3855578 | CH65: 138.5316703 | CI65: 138.6658745 | CJ65: 138.7879949 | CK65: 138.8980905 | CL65: 138.9964101 | CM65: 139.0832216 | CN65: 139.1590657 | CO65: 139.2245738 | CP65: 139.2804504 | CQ65: 139.3275284 | CR65: 139.3666566 | CS65: 139.3985811 | CT65: 139.4240897 | CU65: 139.4439216 | CV65: 139.4588421 | CW65: 139.469425 | CX65: 139.4761765 | CY65: 139.4795123 | CZ65: 139.4797662 | DA65: 139.477227 | DB65: 139.4721469 | DC65: 139.4646979 | DD65: 139.4549567 | DE65: =DD65*($DD65/$DC65) -> 139.4452162 | DF65: 139.4354764 | DG65: 139.4257373 | DH65: 139.4159988 | DI65: 139.4062611 | DJ65: 139.396524 | DK65: 139.3867876 | DL65: 139.3770518 | DM65: 139.3673168 | DN65: 139.3575824 | DO65: 139.3478487 | DP65: 139.3381157 | DQ65: 139.3283833 | DR65: 139.3186517 | DS65: 139.3089207 | DT65: 139.2991904 | DU65: 139.2894608 | DV65: 139.2797319 | DW65: 139.2700036 | DX65: 139.260276 | DY65: 139.2505491 | DZ65: 139.2408229 | EA65: 139.2310974 | EB65: 139.2213725 | EC65: 139.2116483 | ED65: 139.2019248 | EE65: 139.192202 | EF65: 139.1824799 | EG65: 139.1727584 | EH65: 139.1630376 | EI65: 139.1533175 | EJ65: 139.1435981 | EK65: 139.1338793 | EL65: 139.1241613 | EM65: 139.1144439 | EN65: 139.1047272 | EO65: 139.0950111 | EP65: 139.0852958 | EQ65: 139.0755811 | ER65: 139.0658671 | ES65: 139.0561538 | ET65: 139.0464411 | EU65: 139.0367292 | EV65: 139.0270179 | EW65: 139.0173073 | EX65: 139.0075974 | EY65: 138.9978881 | EZ65: 138.9881795 | FA65: 138.9784716 | FB65: 138.9687644 | FC65: 138.9590579 | FD65: 138.949352 | FE65: 138.9396468 | FF65: 138.9299423 | FG65: 138.9202385 | FH65: 138.9105354 | FI65: 138.9008329 | FJ65: 138.8911311 | FK65: 138.88143 | FL65: 138.8717296 | FM65: 138.8620298 | FN65: 138.8523307 | FO65: 138.8426323 | FP65: 138.8329346 | FQ65: =FP65*($DD65/$DC65) -> 138.8232375 | FR65: 138.8135412 | FS65: 138.8038455 | FT65: 138.7941504 | FU65: 138.7844561 | FV65: 138.7747624 | FW65: 138.7650695 | FX65: 138.7553771 | FY65: 138.7456855 | FZ65: 138.7359946 | GA65: 138.7263043 | GB65: 138.7166147 | GC65: 138.7069258 | GD65: 138.6972375 | GE65: 138.6875499 | GF65: 138.677863 | GG65: 138.6681768 | GH65: 138.6584913 | GI65: 138.6488064 | GJ65: 138.6391222 | GK65: 138.6294387 | GL65: 138.6197559 | GM65: 138.6100737 | GN65: 138.6003922 | GO65: 138.5907114 | GP65: 138.5810313 | GQ65: 138.5713518 | GR65: 138.5616731 | GS65: 138.551995 | GT65: 138.5423175 | GU65: 138.5326408 | GV65: 138.5229647 | GW65: 138.5132893 | GX65: 138.5036146 | GY65: 138.4939405 | GZ65: 138.4842672 | HA65: 138.4745945 | HB65: 138.4649224 | HC65: 138.4552511 | HD65: 138.4455804 | HE65: 138.4359104 | HF65: 138.4262411 | HG65: 138.4165725 | HH65: 138.4069045 | HI65: 138.3972372 | HJ65: 138.3875706 | HK65: 138.3779046 | HL65: 138.3682394 | HM65: 138.3585748 | HN65: 138.3489109 | HO65: 138.3392476 | HP65: 138.3295851 | HQ65: 138.3199232 | HR65: 138.3102619 | HS65: 138.3006014 | HT65: 138.2909415 | HU65: 138.2812823 | HV65: 138.2716238 | HW65: 138.261966 | HX65: 138.2523088 | HY65: 138.2426523 | HZ65: 138.2329965 | IA65: 138.2233414 | IB65: 138.2136869 | IC65: =IB65*($DD65/$DC65) -> 138.2040331 | ID65: 138.19438 | IE65: 138.1847275 | IF65: 138.1750757 | IG65: 138.1654246 | IH65: 138.1557742 | II65: 138.1461245 | IJ65: 138.1364754 | IK65: 138.126827 | IL65: 138.1171792 | IM65: 138.1075322 | IN65: 138.0978858 | IO65: 138.0882401 | IP65: 138.0785951 | IQ65: 138.0689507 | IR65: 138.059307 | IS65: 138.049664 | IT65: 138.0400217 | IU65: 138.03038 | IV65: 138.020739 | IW65: 138.0110987 | IX65: 138.001459 | IY65: 137.9918201 | IZ65: 137.9821818 | JA65: 137.9725441 | JB65: 137.9629072 | JC65: 137.9532709 | JD65: 137.9436353 | JE65: 137.9340003 | JF65: 137.9243661 | JG65: 137.9147325 | JH65: 137.9050996 | JI65: 137.8954673 | JJ65: 137.8858358 | JK65: 137.8762049 | JL65: 137.8665746 | JM65: 137.8569451 | JN65: 137.8473162 | JO65: 137.837688 | JP65: 137.8280605 | JQ65: 137.8184336 | JR65: 137.8088074 | JS65: =JR65*($DD65/$DC65) -> 137.7991819 | JT65: =JS65*($DD65/$DC65) -> 137.7895571 | JU65: =JT65*($DD65/$DC65) -> 137.7799329 | JV65: =JU65*($DD65/$DC65) -> 137.7703094 | JW65: =JV65*($DD65/$DC65) -> 137.7606865 | JX65: =JW65*($DD65/$DC65) -> 137.7510644 | JY65: =JX65*($DD65/$DC65) -> 137.7414429 | JZ65: =JY65*($DD65/$DC65) -> 137.7318221 | KA65: =JZ65*($DD65/$DC65) -> 137.722202 | KB65: =KA65*($DD65/$DC65) -> 137.7125825 | KC65: =KB65*($DD65/$DC65) -> 137.7029637 | KD65: =KC65*($DD65/$DC65) -> 137.6933456 | KE65: =KD65*($DD65/$DC65) -> 137.6837281 | KF65: =KE65*($DD65/$DC65) -> 137.6741113 | KG65: =KF65*($DD65/$DC65) -> 137.6644952 | KH65: =KG65*($DD65/$DC65) -> 137.6548798 | KI65: =KH65*($DD65/$DC65) -> 137.645265 | KJ65: =KI65*($DD65/$DC65) -> 137.6356509 | KK65: =KJ65*($DD65/$DC65) -> 137.6260375 | KL65: =KK65*($DD65/$DC65) -> 137.6164247 | KM65: =KL65*($DD65/$DC65) -> 137.6068127 | KN65: =KM65*($DD65/$DC65) -> 137.5972013 | KO65: =KN65*($DD65/$DC65) -> 137.5875905 | KP65: =KO65*($DD65/$DC65) -> 137.5779805 | KQ65: =KP65*($DD65/$DC65) -> 137.5683711 | KR65: =KQ65*($DD65/$DC65) -> 137.5587623 | KS65: =KR65*($DD65/$DC65) -> 137.5491543 | KT65: =KS65*($DD65/$DC65) -> 137.5395469 | KU65: =KT65*($DD65/$DC65) -> 137.5299402 | KV65: =KU65*($DD65/$DC65) -> 137.5203341
C68: Key assumptions
C69: Sources: Temple, eftec and TRL (2019); Simetrica (2019)
C70: Link to Temple, eftec and TRL (2019)
C71: Link to Simetrica (2019)
H72: Landscape values
H73: Central | I73: Low sensitivity | J73: High sensitivity
C74: Appraisal period | H74: 100 yrs | I74: 60 yrs | J74: 250 yrs
C75: Income elasticity of willingness-to-pay for landscape | H75: 1 | I75: 0.8 | J75: 1.2
C76: Long-term income growth rate (pa) | H76: =$JR$63/$JQ$63-1 -> 0.01485047571 | I76: =$JR$63/$JQ$63-1 -> 0.01485047571 | J76: 0.01485047571 | K76: =C59 -> Source: TAG Data Book v2.02 (December 2025)
C77: Long term population growth rate (pa) | H77: =$JR$65/$JQ$65-1 -> -6.984689824e-05 | I77: =$JR$65/$JQ$65-1 -> -6.984689824e-05 | J77: -6.984689824e-05 | K77: =C59 -> Source: TAG Data Book v2.02 (December 2025)
C80: Combined growth factors
H82: Year
H83: 2000 | I83: 2001 | J83: 2002 | K83: 2003 | L83: 2004 | M83: 2005 | N83: 2006 | O83: 2007 | P83: 2008 | Q83: 2009 | R83: 2010 | S83: 2011 | T83: 2012 | U83: 2013 | V83: 2014 | W83: 2015 | X83: 2016 | Y83: 2017 | Z83: 2018 | AA83: 2019 | AB83: 2020 | AC83: 2021 | AD83: 2022 | AE83: 2023 | AF83: 2024 | AG83: 2025 | AH83: 2026 | AI83: 2027 | AJ83: 2028 | AK83: 2029 | AL83: 2030 | AM83: 2031 | AN83: 2032 | AO83: 2033 | AP83: 2034 | AQ83: 2035 | AR83: 2036 | AS83: 2037 | AT83: 2038 | AU83: 2039 | AV83: 2040 | AW83: 2041 | AX83: 2042 | AY83: 2043 | AZ83: 2044 | BA83: 2045 | BB83: 2046 | BC83: 2047 | BD83: 2048 | BE83: 2049 | BF83: 2050 | BG83: 2051 | BH83: 2052 | BI83: 2053 | BJ83: 2054 | BK83: 2055 | BL83: 2056 | BM83: 2057 | BN83: 2058 | BO83: 2059 | BP83: 2060 | BQ83: 2061 | BR83: 2062 | BS83: 2063 | BT83: 2064 | BU83: 2065 | BV83: 2066 | BW83: 2067 | BX83: 2068 | BY83: 2069 | BZ83: 2070 | CA83: 2071 | CB83: 2072 | CC83: 2073 | CD83: 2074 | CE83: 2075 | CF83: 2076 | CG83: 2077 | CH83: 2078 | CI83: 2079 | CJ83: 2080 | CK83: 2081 | CL83: 2082 | CM83: 2083 | CN83: 2084 | CO83: 2085 | CP83: 2086 | CQ83: 2087 | CR83: 2088 | CS83: 2089 | CT83: 2090 | CU83: 2091 | CV83: 2092 | CW83: 2093 | CX83: 2094 | CY83: 2095 | CZ83: 2096 | DA83: 2097 | DB83: 2098 | DC83: 2099 | DD83: 2100 | DE83: 2101 | DF83: 2102 | DG83: 2103 | DH83: 2104 | DI83: 2105 | DJ83: 2106 | DK83: 2107 | DL83: 2108 | DM83: 2109 | DN83: 2110 | DO83: 2111 | DP83: 2112 | DQ83: 2113 | DR83: 2114 | DS83: 2115 | DT83: 2116 | DU83: 2117 | DV83: 2118 | DW83: 2119 | DX83: 2120 | DY83: 2121 | DZ83: 2122 | EA83: 2123 | EB83: 2124 | EC83: 2125 | ED83: 2126 | EE83: 2127 | EF83: 2128 | EG83: 2129 | EH83: 2130 | EI83: 2131 | EJ83: 2132 | EK83: 2133 | EL83: 2134 | EM83: 2135 | EN83: 2136 | EO83: 2137 | EP83: 2138 | EQ83: 2139 | ER83: 2140 | ES83: 2141 | ET83: 2142 | EU83: 2143 | EV83: 2144 | EW83: 2145 | EX83: 2146 | EY83: 2147 | EZ83: 2148 | FA83: 2149 | FB83: 2150 | FC83: 2151 | FD83: 2152 | FE83: 2153 | FF83: 2154 | FG83: 2155 | FH83: 2156 | FI83: 2157 | FJ83: 2158 | FK83: 2159 | FL83: 2160 | FM83: 2161 | FN83: 2162 | FO83: 2163 | FP83: 2164 | FQ83: 2165 | FR83: 2166 | FS83: 2167 | FT83: 2168 | FU83: 2169 | FV83: 2170 | FW83: 2171 | FX83: 2172 | FY83: 2173 | FZ83: 2174 | GA83: 2175 | GB83: 2176 | GC83: 2177 | GD83: 2178 | GE83: 2179 | GF83: 2180 | GG83: 2181 | GH83: 2182 | GI83: 2183 | GJ83: 2184 | GK83: 2185 | GL83: 2186 | GM83: 2187 | GN83: 2188 | GO83: 2189 | GP83: 2190 | GQ83: 2191 | GR83: 2192 | GS83: 2193 | GT83: 2194 | GU83: 2195 | GV83: 2196 | GW83: 2197 | GX83: 2198 | GY83: 2199 | GZ83: 2200 | HA83: 2201 | HB83: 2202 | HC83: 2203 | HD83: 2204 | HE83: 2205 | HF83: 2206 | HG83: 2207 | HH83: 2208 | HI83: 2209 | HJ83: 2210 | HK83: 2211 | HL83: 2212 | HM83: 2213 | HN83: 2214 | HO83: 2215 | HP83: 2216 | HQ83: 2217 | HR83: 2218 | HS83: 2219 | HT83: 2220 | HU83: 2221 | HV83: 2222 | HW83: 2223 | HX83: 2224 | HY83: 2225 | HZ83: 2226 | IA83: 2227 | IB83: 2228 | IC83: 2229 | ID83: 2230 | IE83: 2231 | IF83: 2232 | IG83: 2233 | IH83: 2234 | II83: 2235 | IJ83: 2236 | IK83: 2237 | IL83: 2238 | IM83: 2239 | IN83: 2240 | IO83: 2241 | IP83: 2242 | IQ83: 2243 | IR83: 2244 | IS83: 2245 | IT83: 2246 | IU83: 2247 | IV83: 2248 | IW83: 2249 | IX83: 2250 | IY83: 2251 | IZ83: 2252 | JA83: 2253 | JB83: 2254 | JC83: 2255 | JD83: 2256 | JE83: 2257 | JF83: 2258 | JG83: 2259 | JH83: 2260 | JI83: 2261 | JJ83: 2262 | JK83: 2263 | JL83: 2264 | JM83: 2265 | JN83: 2266 | JO83: 2267 | JP83: 2268 | JQ83: 2269 | JR83: 2270 | JS83: 2271 | JT83: 2272 | JU83: 2273 | JV83: 2274 | JW83: 2275 | JX83: 2276 | JY83: 2277 | JZ83: 2278 | KA83: 2279 | KB83: 2280 | KC83: 2281 | KD83: 2282 | KE83: 2283 | KF83: 2284 | KG83: 2285 | KH83: 2286 | KI83: 2287 | KJ83: 2288 | KK83: 2289 | KL83: 2290 | KM83: 2291 | KN83: 2292 | KO83: 2293 | KP83: 2294 | KQ83: 2295 | KR83: 2296 | KS83: 2297 | KT83: 2298 | KU83: 2299 | KV83: 2300
C84: Central values | H84: =(H$63/$H$63)^$H$75*(H$65/$H$65) -> 1 | I84: 1.025727804 | J84: 1.044146396 | K84: 1.077061508 | L84: 1.103534651 | M84: 1.133690509 | N84: 1.160680212 | O84: 1.191146674 | P84: 1.188183134 | Q84: 1.133282494 | R84: 1.158592263 | S84: 1.171781241 | T84: 1.189463401 | U84: 1.210872808 | V84: 1.249555803 | W84: 1.277332035 | X84: 1.301878653 | Y84: 1.336463123 | Z84: 1.355242972 | AA84: 1.377258558 | AB84: 1.235443362 | AC84: 1.341394378 | AD84: 1.406305594 | AE84: 1.41168383 | AF84: 1.424883384 | AG84: 1.446019289 | AH84: 1.46585096 | AI84: 1.488463736 | AJ84: 1.51030599 | AK84: 1.533309238 | AL84: 1.557065775 | AM84: 1.587932956 | AN84: 1.619889522 | AO84: 1.653082964 | AP84: 1.687333397 | AQ84: 1.7223916 | AR84: 1.758483305 | AS84: 1.796460348 | AT84: 1.834067418 | AU84: 1.871417933 | AV84: 1.908239458 | AW84: 1.94482781 | AX84: 1.981174388 | AY84: 2.017563771 | AZ84: 2.054159479 | BA84: 2.090762555 | BB84: 2.12774089 | BC84: 2.165010995 | BD84: 2.202591915 | BE84: 2.240408885 | BF84: 2.278562896 | BG84: 2.317190502 | BH84: 2.356228322 | BI84: 2.395491542 | BJ84: 2.434977408 | BK84: 2.474650214 | BL84: 2.514365535 | BM84: 2.554192183 | BN84: 2.59414716 | BO84: 2.634456248 | BP84: 2.674856935 | BQ84: 2.716110367 | BR84: 2.757347891 | BS84: 2.79875091 | BT84: =(BT$63/$H$63)^$H$75*(BT$65/$H$65) -> 2.840422448 | BU84: 2.882772204 | BV84: 2.925689845 | BW84: 2.969197469 | BX84: 3.013973274 | BY84: 3.061031369 | BZ84: 3.109934767 | CA84: 3.159776179 | CB84: 3.210256163 | CC84: 3.261556001 | CD84: 3.305903693 | CE84: 3.349701095 | CF84: 3.39173587 | CG84: 3.434471845 | CH84: 3.477155079 | CI84: 3.519525884 | CJ84: 3.562343974 | CK84: 3.606999227 | CL84: 3.653457047 | CM84: 3.700706673 | CN84: 3.748046013 | CO84: 3.797552092 | CP84: 3.848948063 | CQ84: 3.901645038 | CR84: 3.95607281 | CS84: 4.012878607 | CT84: 4.070014934 | CU84: 4.130796247 | CV84: 4.192567727 | CW84: 4.255016675 | CX84: 4.31841968 | CY84: 4.382864495 | CZ84: 4.448300782 | DA84: 4.514617769 | DB84: 4.581767635 | DC84: 4.649714191 | DD84: 4.718435067 | DE84: 4.78817161 | DF84: 4.858938831 | DG84: 4.930751962 | DH84: 5.003626462 | DI84: 5.077578018 | DJ84: 5.152622547 | DK84: 5.228776204 | DL84: 5.30605538 | DM84: 5.384476712 | DN84: 5.464057078 | DO84: 5.54481361 | DP84: 5.62676369 | DQ84: 5.709924959 | DR84: 5.794315318 | DS84: 5.879952932 | DT84: 5.966856235 | DU84: 6.055043933 | DV84: 6.144535009 | DW84: 6.235348727 | DX84: 6.327504634 | DY84: 6.421022568 | DZ84: 6.515922659 | EA84: 6.612225334 | EB84: 6.709951324 | EC84: 6.809121664 | ED84: 6.909757701 | EE84: 7.011881098 | EF84: =(EF$63/$H$63)^$H$75*(EF$65/$H$65) -> 7.115513836 | EG84: 7.220678224 | EH84: 7.327396899 | EI84: 7.435692833 | EJ84: 7.545589336 | EK84: 7.657110064 | EL84: 7.770279023 | EM84: 7.885120574 | EN84: 8.001659435 | EO84: 8.119920693 | EP84: 8.239929805 | EQ84: 8.361712601 | ER84: 8.485295298 | ES84: 8.610704497 | ET84: 8.737967193 | EU84: 8.867110779 | EV84: 8.998163054 | EW84: 9.131152229 | EX84: 9.266106929 | EY84: 9.403056205 | EZ84: 9.542029535 | FA84: 9.683056834 | FB84: 9.826168459 | FC84: 9.971395216 | FD84: 10.11876836 | FE84: 10.26831963 | FF84: 10.4200812 | FG84: 10.57408574 | FH84: 10.73036641 | FI84: 10.88895684 | FJ84: 11.04989118 | FK84: 11.21320406 | FL84: 11.37893063 | FM84: 11.54710658 | FN84: 11.7177681 | FO84: 11.89095192 | FP84: 12.06669534 | FQ84: 12.24503617 | FR84: 12.4260128 | FS84: 12.60966419 | FT84: 12.79602988 | FU84: 12.98514997 | FV84: 13.17706519 | FW84: 13.37181683 | FX84: 13.56944682 | FY84: 13.7699977 | FZ84: 13.97351264 | GA84: 14.18003545 | GB84: 14.38961058 | GC84: 14.60228315 | GD84: 14.81809893 | GE84: 15.03710438 | GF84: 15.25934664 | GG84: 15.48487355 | GH84: 15.71373366 | GI84: 15.94597622 | GJ84: 16.18165124 | GK84: 16.42080944 | GL84: 16.66350229 | GM84: 16.90978205 | GN84: 17.15970172 | GO84: 17.41331511 | GP84: 17.67067679 | GQ84: 17.93184218 | GR84: =(GR$63/$H$63)^$H$75*(GR$65/$H$65) -> 18.19686748 | GS84: 18.46580975 | GT84: 18.73872687 | GU84: 19.0156776 | GV84: 19.29672155 | GW84: 19.58191921 | GX84: 19.87133198 | GY84: 20.16502215 | GZ84: 20.46305294 | HA84: 20.76548851 | HB84: 21.07239395 | HC84: 21.38383532 | HD84: 21.69987967 | HE84: 22.02059503 | HF84: 22.34605043 | HG84: 22.67631593 | HH84: 23.01146262 | HI84: 23.35156264 | HJ84: 23.69668919 | HK84: 24.04691658 | HL84: 24.40232019 | HM84: 24.76297651 | HN84: 25.12896319 | HO84: 25.500359 | HP84: 25.87724389 | HQ84: 26.25969899 | HR84: 26.64780661 | HS84: 27.04165031 | HT84: 27.44131486 | HU84: 27.84688628 | HV84: 28.25845189 | HW84: 28.67610027 | HX84: 29.09992132 | HY84: 29.53000627 | HZ84: 29.9664477 | IA84: 30.40933956 | IB84: 30.85877717 | IC84: 31.3148573 | ID84: 31.7776781 | IE84: 32.2473392 | IF84: 32.7239417 | IG84: 33.20758819 | IH84: 33.69838278 | II84: 34.19643112 | IJ84: 34.7018404 | IK84: 35.21471943 | IL84: 35.7351786 | IM84: 36.26332994 | IN84: 36.79928715 | IO84: 37.34316558 | IP84: 37.89508232 | IQ84: 38.45515616 | IR84: 39.02350766 | IS84: 39.60025916 | IT84: 40.18553482 | IU84: 40.77946061 | IV84: 41.38216438 | IW84: 41.99377587 | IX84: 42.61442672 | IY84: 43.24425054 | IZ84: 43.8833829 | JA84: 44.53196138 | JB84: 45.19012558 | JC84: 45.85801718 | JD84: =(JD$63/$H$63)^$H$75*(JD$65/$H$65) -> 46.53577994 | JE84: 47.22355976 | JF84: 47.92150469 | JG84: 48.62976495 | JH84: 49.34849301 | JI84: 50.07784359 | JJ84: 50.81797366 | JK84: 51.56904255 | JL84: 52.33121194 | JM84: 53.10464588 | JN84: 53.88951085 | JO84: 54.68597581 | JP84: 55.4942122 | JQ84: 56.31439399 | JR84: 57.14669773 | JS84: 57.99130258 | JT84: 58.84839035 | JU84: 59.71814552 | JV84: 60.60075532 | JW84: 61.49640973 | JX84: 62.40530155 | JY84: 63.32762642 | JZ84: 64.26358287 | KA84: 65.21337238 | KB84: 66.17719938 | KC84: 67.15527136 | KD84: 68.14779884 | KE84: 69.15499548 | KF84: 70.17707806 | KG84: 71.21426661 | KH84: 72.26678439 | KI84: 73.33485794 | KJ84: 74.41871719 | KK84: 75.51859543 | KL84: 76.63472943 | KM84: 77.76735943 | KN84: 78.91672924 | KO84: 80.08308626 | KP84: 81.26668157 | KQ84: 82.46776993 | KR84: 83.68660988 | KS84: 84.9234638 | KT84: 86.17859791 | KU84: 87.45228238 | KV84: 88.7447914
C85: Low sensitivity | H85: =(H$63/$H$63)^$I$75*(H$65/$H$65) -> 1 | I85: 1.021315079 | J85: 1.036844612 | K85: 1.063879809 | L85: 1.085887011 | M85: 1.111269928 | N85: 1.133931782 | O85: 1.159548157 | P85: 1.159138384 | Q85: 1.117662054 | R85: 1.139404252 | S85: 1.151688337 | T85: 1.167134536 | U85: 1.185496547 | V85: 1.217516021 | W85: 1.240911484 | X85: 1.261955424 | Y85: 1.290110932 | Z85: 1.305868167 | AA85: 1.324172915 | AB85: 1.214334378 | AC85: 1.297884943 | AD85: 1.350374231 | AE85: 1.357148175 | AF85: 1.369984982 | AG85: 1.387512672 | AH85: 1.403786555 | AI85: 1.422145556 | AJ85: 1.439981676 | AK85: 1.458776337 | AL85: 1.478135168 | AM85: 1.502827405 | AN85: 1.528252719 | AO85: 1.554516763 | AP85: 1.581479276 | AQ85: 1.608949121 | AR85: 1.637092066 | AS85: 1.666536763 | AT85: 1.695605576 | AU85: 1.724388913 | AV85: 1.752691965 | AW85: 1.780737677 | AX85: 1.808523356 | AY85: 1.83625788 | AZ85: 1.864057996 | BA85: 1.891777111 | BB85: 1.919679632 | BC85: 1.94770132 | BD85: 1.975846901 | BE85: 2.004052424 | BF85: 2.032385037 | BG85: 2.060937203 | BH85: 2.089659982 | BI85: 2.118419888 | BJ85: 2.147214147 | BK85: 2.176019993 | BL85: 2.204741084 | BM85: 2.233432164 | BN85: 2.262110957 | BO85: 2.290940771 | BP85: 2.319745231 | BQ85: 2.349057879 | BR85: 2.37828161 | BS85: 2.407546514 | BT85: =(BT$63/$H$63)^$I$75*(BT$65/$H$65) -> 2.436926672 | BU85: 2.46670544 | BV85: 2.496807099 | BW85: 2.527244576 | BX85: 2.55847564 | BY85: 2.591178292 | BZ85: 2.625042096 | CA85: 2.659441805 | CB85: 2.694166232 | CC85: 2.729327987 | CD85: 2.759728057 | CE85: 2.789661531 | CF85: 2.818320145 | CG85: 2.847342398 | CH85: 2.876223533 | CI85: 2.904790548 | CJ85: 2.93354419 | CK85: 2.963395843 | CL85: 2.994315058 | CM85: 3.025633024 | CN85: 3.056889955 | CO85: 3.089439851 | CP85: 3.123095367 | CQ85: 3.1574695 | CR85: 3.192837164 | CS85: 3.229609852 | CT85: 3.26646447 | CU85: 3.305525482 | CV85: 3.345082655 | CW85: 3.384935426 | CX85: 3.42525932 | CY85: 3.46610801 | CZ85: 3.507447114 | DA85: 3.549204496 | DB85: 3.591348232 | DC85: 3.633853693 | DD85: 3.6767047 | DE85: 3.720061012 | DF85: 3.76392859 | DG85: 3.808313461 | DH85: 3.853221726 | DI85: 3.898659557 | DJ85: 3.944633198 | DK85: 3.991148968 | DL85: 4.038213259 | DM85: 4.085832541 | DN85: 4.134013357 | DO85: 4.182762329 | DP85: 4.232086157 | DQ85: 4.28199162 | DR85: 4.332485577 | DS85: 4.383574966 | DT85: 4.43526681 | DU85: 4.487568213 | DV85: 4.540486363 | DW85: 4.594028533 | DX85: 4.64820208 | DY85: 4.703014451 | DZ85: 4.758473179 | EA85: 4.814585885 | EB85: 4.871360282 | EC85: 4.928804171 | ED85: 4.986925449 | EE85: 5.045732102 | EF85: =(EF$63/$H$63)^$I$75*(EF$65/$H$65) -> 5.105232213 | EG85: 5.16543396 | EH85: 5.226345615 | EI85: 5.287975551 | EJ85: 5.350332237 | EK85: 5.413424243 | EL85: 5.477260241 | EM85: 5.541849004 | EN85: 5.607199408 | EO85: 5.673320435 | EP85: 5.740221171 | EQ85: 5.807910813 | ER85: 5.876398662 | ES85: 5.945694131 | ET85: 6.015806744 | EU85: 6.086746137 | EV85: 6.158522058 | EW85: 6.231144373 | EX85: 6.304623063 | EY85: 6.378968225 | EZ85: 6.454190078 | FA85: 6.53029896 | FB85: 6.60730533 | FC85: 6.685219772 | FD85: 6.764052994 | FE85: 6.84381583 | FF85: 6.924519243 | FG85: 7.006174325 | FH85: 7.088792296 | FI85: 7.172384512 | FJ85: 7.256962462 | FK85: 7.342537769 | FL85: 7.429122194 | FM85: 7.516727637 | FN85: 7.605366138 | FO85: 7.695049879 | FP85: 7.785791185 | FQ85: 7.877602528 | FR85: 7.970496526 | FS85: 8.064485945 | FT85: 8.159583703 | FU85: 8.255802869 | FV85: 8.353156668 | FW85: 8.451658479 | FX85: 8.55132184 | FY85: 8.652160447 | FZ85: 8.75418816 | GA85: 8.857419001 | GB85: 8.961867158 | GC85: 9.067546984 | GD85: 9.174473004 | GE85: 9.282659914 | GF85: 9.392122581 | GG85: 9.502876051 | GH85: 9.614935544 | GI85: 9.728316461 | GJ85: 9.843034385 | GK85: 9.959105081 | GL85: 10.0765445 | GM85: 10.19536879 | GN85: 10.31559427 | GO85: 10.43723747 | GP85: 10.56031511 | GQ85: 10.6848441 | GR85: =(GR$63/$H$63)^$I$75*(GR$65/$H$65) -> 10.81084156 | GS85: 10.9383248 | GT85: 11.06731134 | GU85: 11.19781891 | GV85: 11.32986545 | GW85: 11.46346911 | GX85: 11.59864824 | GY85: 11.73542143 | GZ85: 11.87380747 | HA85: 12.01382538 | HB85: 12.1554944 | HC85: 12.29883401 | HD85: 12.4438639 | HE85: 12.59060402 | HF85: 12.73907451 | HG85: 12.88929579 | HH85: 13.04128851 | HI85: 13.19507355 | HJ85: 13.35067205 | HK85: 13.50810539 | HL85: 13.66739521 | HM85: 13.82856341 | HN85: 13.99163213 | HO85: 14.15662378 | HP85: 14.32356103 | HQ85: 14.49246685 | HR85: 14.66336442 | HS85: 14.83627725 | HT85: 15.0112291 | HU85: 15.188244 | HV85: 15.3673463 | HW85: 15.5485606 | HX85: 15.73191181 | HY85: 15.91742513 | HZ85: 16.10512605 | IA85: 16.29504037 | IB85: 16.48719419 | IC85: 16.68161393 | ID85: 16.87832629 | IE85: 17.07735832 | IF85: 17.27873736 | IG85: 17.4824911 | IH85: 17.68864754 | II85: 17.89723501 | IJ85: 18.10828218 | IK85: 18.32181805 | IL85: 18.53787197 | IM85: 18.75647364 | IN85: 18.97765309 | IO85: 19.20144073 | IP85: 19.42786731 | IQ85: 19.65696395 | IR85: 19.88876213 | IS85: 20.12329372 | IT85: 20.36059094 | IU85: 20.60068641 | IV85: 20.84361313 | IW85: 21.08940448 | IX85: 21.33809424 | IY85: 21.58971659 | IZ85: 21.84430611 | JA85: 22.1018978 | JB85: 22.36252705 | JC85: 22.62622968 | JD85: =(JD$63/$H$63)^$I$75*(JD$65/$H$65) -> 22.89304194 | JE85: 23.1630005 | JF85: 23.43614244 | JG85: 23.71250533 | JH85: 23.99212713 | JI85: 24.27504628 | JJ85: 24.56130166 | JK85: 24.85093261 | JL85: 25.14397893 | JM85: 25.44048091 | JN85: 25.74047929 | JO85: 26.04401529 | JP85: 26.35113065 | JQ85: 26.66186756 | JR85: 26.97626873 | JS85: 27.29437737 | JT85: 27.6162372 | JU85: 27.94189246 | JV85: 28.2713879 | JW85: 28.6047688 | JX85: 28.94208098 | JY85: 29.28337081 | JZ85: 29.62868518 | KA85: 29.97807156 | KB85: 30.33157796 | KC85: 30.68925297 | KD85: 31.05114574 | KE85: 31.417306 | KF85: 31.7877841 | KG85: 32.16263093 | KH85: 32.54189801 | KI85: 32.92563748 | KJ85: 33.31390207 | KK85: 33.70674513 | KL85: 34.10422067 | KM85: 34.50638331 | KN85: 34.91328831 | KO85: 35.32499161 | KP85: 35.74154977 | KQ85: 36.16302007 | KR85: 36.58946041 | KS85: 37.0209294 | KT85: 37.45748635 | KU85: 37.89919125 | KV85: 38.34610481
C86: High sensitivity | H86: =(H$63/$H$63)^$J$75*(H$65/$H$65) -> 1 | I86: 1.030159595 | J86: 1.051499601 | K86: 1.090406532 | L86: 1.121469097 | M86: 1.15656344 | N86: 1.188059612 | O86: 1.223606274 | P86: 1.217955664 | Q86: 1.149121244 | R86: 1.178103407 | S86: 1.192224696 | T86: 1.212219448 | U86: 1.236792263 | V86: 1.282438734 | W86: 1.314821523 | X86: 1.343064894 | Y86: 1.384480694 | Z86: 1.406484637 | AA86: 1.432472387 | AB86: 1.256919287 | AC86: 1.386362394 | AD86: 1.464553587 | AE86: 1.468410946 | AF86: 1.481981691 | AG86: 1.506992929 | AH86: 1.530659365 | AI86: 1.557874497 | AJ86: 1.58406473 | AK86: 1.61165023 | AL86: 1.640211181 | AM86: 1.677858059 | AN86: 1.717021033 | AO86: 1.757898884 | AP86: 1.800272717 | AQ86: 1.843832589 | AR86: 1.888875768 | AS86: 1.936512805 | AT86: 1.983835948 | AU86: 2.030983298 | AV86: 2.077591443 | AW86: 2.124038403 | AX86: 2.170307584 | AY86: 2.216771192 | AZ86: 2.263648006 | BA86: 2.310678164 | BB86: 2.358352519 | BC86: 2.406566427 | BD86: 2.455357823 | BE86: 2.504641052 | BF86: 2.554559681 | BG86: 2.605305884 | BH86: 2.656801562 | BI86: 2.708801857 | BJ86: 2.761305848 | BK86: 2.814263519 | BL86: 2.867472325 | BM86: 2.921018965 | BN86: 2.97492016 | BO86: 3.029480208 | BP86: 3.084329919 | BQ86: 3.140516712 | BR86: 3.196832267 | BS86: 3.25352246 | BT86: =(BT$63/$H$63)^$J$75*(BT$65/$H$65) -> 3.310727311 | BU86: 3.369018223 | BV86: 3.428242844 | BW86: 3.48843705 | BX86: 3.550565326 | BY86: 3.616081946 | BZ86: 3.684395871 | CA86: 3.754241015 | CB86: 3.825207409 | CC86: 3.897570244 | CD86: 3.960172524 | CE86: 4.022171615 | CF86: 4.08181882 | CG86: 4.142668919 | CH86: 4.203639705 | CI86: 4.264356499 | CJ86: 4.325925832 | CK86: 4.390383233 | CL86: 4.457696715 | CM86: 4.526401507 | CN86: 4.595470927 | CO86: 4.667966553 | CP86: 4.743499461 | CQ86: 4.821213318 | CR86: 4.901757049 | CS86: 4.986111467 | CT86: 5.071238863 | CU86: 5.162107424 | CV86: 5.254765265 | CW86: 5.348748093 | CX86: 5.444477859 | CY86: 5.542095378 | CZ86: 5.641533345 | DA86: 5.742631517 | DB86: 5.84532418 | DC86: 5.949563158 | DD86: 6.055321627 | DE86: 6.162960041 | DF86: 6.272511818 | DG86: 6.38401097 | DH86: 6.497492113 | DI86: 6.612990478 | DJ86: 6.730541924 | DK86: 6.850182945 | DL86: 6.971950685 | DM86: 7.095882949 | DN86: 7.222018212 | DO86: 7.350395636 | DP86: 7.481055076 | DQ86: 7.614037096 | DR86: 7.749382984 | DS86: 7.887134758 | DT86: 8.027335185 | DU86: 8.170027793 | DV86: 8.315256881 | DW86: 8.463067537 | DX86: 8.613505652 | DY86: 8.766617931 | DZ86: 8.922451908 | EA86: 9.081055965 | EB86: 9.242479342 | EC86: 9.406772155 | ED86: 9.57398541 | EE86: 9.74417102 | EF86: =(EF$63/$H$63)^$J$75*(EF$65/$H$65) -> 9.917381823 | EG86: 10.09367159 | EH86: 10.27309506 | EI86: 10.45570793 | EJ86: 10.6415669 | EK86: 10.83072966 | EL86: 11.02325496 | EM86: 11.21920255 | EN86: 11.41863327 | EO86: 11.62160904 | EP86: 11.82819288 | EQ86: 12.03844892 | ER86: 12.25244243 | ES86: 12.47023986 | ET86: 12.69190882 | EU86: 12.91751813 | EV86: 13.14713783 | EW86: 13.38083922 | EX86: 13.61869485 | EY86: 13.86077856 | EZ86: 14.10716551 | FA86: 14.35793219 | FB86: 14.61315646 | FC86: 14.87291756 | FD86: 15.13729613 | FE86: 15.40637425 | FF86: 15.68023546 | FG86: 15.95896478 | FH86: 16.24264875 | FI86: 16.53137543 | FJ86: 16.82523448 | FK86: 17.12431712 | FL86: 17.4287162 | FM86: 17.73852623 | FN86: 18.05384339 | FO86: 18.37476558 | FP86: 18.70139243 | FQ86: 19.03382535 | FR86: 19.37216754 | FS86: 19.71652405 | FT86: 20.06700178 | FU86: 20.42370954 | FV86: 20.78675809 | FW86: 21.15626013 | FX86: 21.53233037 | FY86: 21.91508558 | FZ86: 22.30464459 | GA86: 22.70112833 | GB86: 23.1046599 | GC86: 23.51536459 | GD86: 23.93336989 | GE86: 24.35880559 | GF86: 24.79180376 | GG86: 25.23249884 | GH86: 25.68102765 | GI86: 26.13752943 | GJ86: 26.60214591 | GK86: 27.07502133 | GL86: 27.55630252 | GM86: 28.04613888 | GN86: 28.54468249 | GO86: 29.05208814 | GP86: 29.56851334 | GQ86: 30.09411843 | GR86: =(GR$63/$H$63)^$J$75*(GR$65/$H$65) -> 30.6290666 | GS86: 31.17352391 | GT86: 31.72765942 | GU86: 32.29164514 | GV86: 32.86565618 | GW86: 33.44987075 | GX86: 34.04447023 | GY86: 34.6496392 | GZ86: 35.26556557 | HA86: 35.89244054 | HB86: 36.53045873 | HC86: 37.17981824 | HD86: 37.84072065 | HE86: 38.51337116 | HF86: 39.1979786 | HG86: 39.8947555 | HH86: 40.6039182 | HI86: 41.32568686 | HJ86: 42.06028556 | HK86: 42.80794237 | HL86: 43.56888941 | HM86: 44.34336291 | HN86: 45.13160333 | HO86: 45.93385539 | HP86: 46.75036815 | HQ86: 47.5813951 | HR86: 48.42719426 | HS86: 49.28802821 | HT86: 50.1641642 | HU86: 51.05587424 | HV86: 51.96343517 | HW86: 52.88712876 | HX86: 53.82724178 | HY86: 54.78406609 | HZ86: 55.75789876 | IA86: 56.74904211 | IB86: 57.75780388 | IC86: 58.78449722 | ID86: 59.8294409 | IE86: 60.89295934 | IF86: 61.9753827 | IG86: 63.07704704 | IH86: 64.19829439 | II86: 65.33947285 | IJ86: 66.50093672 | IK86: 67.68304657 | IL86: 68.88616942 | IM86: 70.11067879 | IN86: 71.35695484 | IO86: 72.62538449 | IP86: 73.91636153 | IQ86: 75.23028678 | IR86: 76.56756814 | IS86: 77.92862081 | IT86: 79.31386732 | IU86: 80.72373776 | IV86: 82.15866982 | IW86: 83.619109 | IX86: 85.10550871 | IY86: 86.61833041 | IZ86: 88.1580438 | JA86: 89.72512687 | JB86: 91.32006617 | JC86: 92.94335684 | JD86: =(JD$63/$H$63)^$J$75*(JD$65/$H$65) -> 94.59550287 | JE86: 96.27701717 | JF86: 97.9884218 | JG86: 99.73024808 | JH86: 101.5030368 | JI86: 103.3073383 | JJ86: 105.1437128 | JK86: 107.0127303 | JL86: 108.9149713 | JM86: 110.8510261 | JN86: 112.821496 | JO86: 114.8269926 | JP86: 116.8681386 | JQ86: 118.9455676 | JR86: 121.0599247 | JS86: 123.2118663 | JT86: 125.4020604 | JU86: 127.6311871 | JV86: 129.8999384 | JW86: 132.2090186 | JX86: 134.5591446 | JY86: 136.9510462 | JZ86: 139.3854657 | KA86: 141.8631591 | KB86: 144.3848956 | KC86: 146.9514581 | KD86: 149.5636434 | KE86: 152.2222624 | KF86: 154.9281407 | KG86: 157.6821181 | KH86: 160.4850499 | KI86: 163.3378061 | KJ86: 166.2412724 | KK86: 169.1963503 | KL86: 172.2039571 | KM86: 175.2650267 | KN86: 178.3805094 | KO86: 181.5513724 | KP86: 184.7786001 | KQ86: 188.0631945 | KR86: 191.4061753 | KS86: 194.8085804 | KT86: 198.2714661 | KU86: 201.7959075 | KV86: 205.3829988
B89: END

Sheet Calculations (values)
B2: Uprating indices
C4: Discount rates
H6: Year
H7: ='Inputs (values)'!$H$13 -> 2023 | I7: =H7+1 -> 2024 | J7: =I7+1 -> 2025 | K7: 2026 | L7: 2027 | M7: 2028 | N7: 2029 | O7: 2030 | P7: 2031 | Q7: 2032 | R7: 2033 | S7: 2034 | T7: 2035 | U7: 2036 | V7: 2037 | W7: 2038 | X7: 2039 | Y7: 2040 | Z7: 2041 | AA7: 2042 | AB7: 2043 | AC7: 2044 | AD7: 2045 | AE7: 2046 | AF7: 2047 | AG7: 2048 | AH7: 2049 | AI7: 2050 | AJ7: 2051 | AK7: 2052 | AL7: 2053 | AM7: 2054 | AN7: 2055 | AO7: 2056 | AP7: 2057 | AQ7: 2058 | AR7: 2059 | AS7: 2060 | AT7: 2061 | AU7: 2062 | AV7: 2063 | AW7: 2064 | AX7: 2065 | AY7: 2066 | AZ7: 2067 | BA7: 2068 | BB7: 2069 | BC7: 2070 | BD7: 2071 | BE7: 2072 | BF7: 2073 | BG7: 2074 | BH7: 2075 | BI7: 2076 | BJ7: 2077 | BK7: 2078 | BL7: 2079 | BM7: 2080 | BN7: 2081 | BO7: 2082 | BP7: 2083 | BQ7: 2084 | BR7: 2085 | BS7: 2086 | BT7: 2087 | BU7: 2088 | BV7: =BU7+1 -> 2089 | BW7: 2090 | BX7: 2091 | BY7: 2092 | BZ7: 2093 | CA7: 2094 | CB7: 2095 | CC7: 2096 | CD7: 2097 | CE7: 2098 | CF7: 2099 | CG7: 2100 | CH7: 2101 | CI7: 2102 | CJ7: 2103 | CK7: 2104 | CL7: 2105 | CM7: 2106 | CN7: 2107 | CO7: 2108 | CP7: 2109 | CQ7: 2110 | CR7: 2111 | CS7: 2112 | CT7: 2113 | CU7: 2114 | CV7: 2115 | CW7: 2116 | CX7: 2117 | CY7: 2118 | CZ7: 2119 | DA7: 2120 | DB7: 2121 | DC7: 2122 | DD7: 2123 | DE7: 2124 | DF7: 2125 | DG7: 2126 | DH7: 2127 | DI7: 2128 | DJ7: 2129 | DK7: 2130 | DL7: 2131 | DM7: 2132 | DN7: 2133 | DO7: 2134 | DP7: 2135 | DQ7: 2136 | DR7: 2137 | DS7: 2138 | DT7: 2139 | DU7: 2140 | DV7: 2141 | DW7: 2142 | DX7: 2143 | DY7: 2144 | DZ7: 2145 | EA7: 2146 | EB7: 2147 | EC7: 2148 | ED7: 2149 | EE7: 2150 | EF7: 2151 | EG7: 2152 | EH7: =EG7+1 -> 2153 | EI7: 2154 | EJ7: 2155 | EK7: 2156 | EL7: 2157 | EM7: 2158 | EN7: 2159 | EO7: 2160 | EP7: 2161 | EQ7: 2162 | ER7: 2163 | ES7: 2164 | ET7: 2165 | EU7: 2166 | EV7: 2167 | EW7: 2168 | EX7: 2169 | EY7: 2170 | EZ7: 2171 | FA7: 2172 | FB7: 2173 | FC7: 2174 | FD7: 2175 | FE7: 2176 | FF7: 2177 | FG7: 2178 | FH7: 2179 | FI7: 2180 | FJ7: 2181 | FK7: 2182 | FL7: 2183 | FM7: 2184 | FN7: 2185 | FO7: 2186 | FP7: 2187 | FQ7: 2188 | FR7: 2189 | FS7: 2190 | FT7: 2191 | FU7: 2192 | FV7: 2193 | FW7: 2194 | FX7: 2195 | FY7: 2196 | FZ7: 2197 | GA7: 2198 | GB7: 2199 | GC7: 2200 | GD7: 2201 | GE7: 2202 | GF7: 2203 | GG7: 2204 | GH7: 2205 | GI7: 2206 | GJ7: 2207 | GK7: 2208 | GL7: 2209 | GM7: 2210 | GN7: 2211 | GO7: 2212 | GP7: 2213 | GQ7: 2214 | GR7: 2215 | GS7: 2216 | GT7: =GS7+1 -> 2217 | GU7: 2218 | GV7: 2219 | GW7: 2220 | GX7: 2221 | GY7: 2222 | GZ7: 2223 | HA7: 2224 | HB7: 2225 | HC7: 2226 | HD7: 2227 | HE7: 2228 | HF7: 2229 | HG7: 2230 | HH7: 2231 | HI7: 2232 | HJ7: 2233 | HK7: 2234 | HL7: 2235 | HM7: 2236 | HN7: 2237 | HO7: 2238 | HP7: 2239 | HQ7: 2240 | HR7: 2241 | HS7: 2242 | HT7: 2243 | HU7: 2244 | HV7: 2245 | HW7: 2246 | HX7: 2247 | HY7: 2248 | HZ7: 2249 | IA7: 2250 | IB7: 2251 | IC7: 2252 | ID7: 2253 | IE7: 2254 | IF7: 2255 | IG7: 2256 | IH7: 2257 | II7: 2258 | IJ7: 2259 | IK7: 2260 | IL7: 2261 | IM7: 2262 | IN7: 2263 | IO7: 2264 | IP7: 2265 | IQ7: 2266 | IR7: 2267 | IS7: 2268 | IT7: 2269 | IU7: 2270 | IV7: 2271 | IW7: 2272 | IX7: 2273 | IY7: 2274 | IZ7: 2275 | JA7: 2276 | JB7: 2277 | JC7: 2278 | JD7: 2279 | JE7: 2280 | JF7: =JE7+1 -> 2281 | JG7: 2282 | JH7: 2283 | JI7: 2284 | JJ7: 2285 | JK7: 2286 | JL7: 2287 | JM7: 2288 | JN7: 2289 | JO7: 2290 | JP7: 2291 | JQ7: 2292 | JR7: 2293 | JS7: 2294 | JT7: 2295 | JU7: 2296 | JV7: 2297 | JW7: 2298 | JX7: 2299 | JY7: 2300 | JZ7: 2301 | KA7: 2302
C8: Discount rates | H8: =LOOKUP(H7-'Inputs (values)'!$H$8,'Inputs (values)'!$C$20:$C$25,'Inputs (values)'!$H$20:$H$25) -> 0.035 | I8: =LOOKUP(I7-'Inputs (values)'!$H$8,'Inputs (values)'!$C$20:$C$25,'Inputs (values)'!$H$20:$H$25) -> 0.035 | J8: =LOOKUP(J7-'Inputs (values)'!$H$8,'Inputs (values)'!$C$20:$C$25,'Inputs (values)'!$H$20:$H$25) -> 0.035 | K8: =LOOKUP(K7-'Inputs (values)'!$H$8,'Inputs (values)'!$C$20:$C$25,'Inputs (values)'!$H$20:$H$25) -> 0.035 | L8: =LOOKUP(L7-'Inputs (values)'!$H$8,'Inputs (values)'!$C$20:$C$25,'Inputs (values)'!$H$20:$H$25) -> 0.035 | M8: =LOOKUP(M7-'Inputs (values)'!$H$8,'Inputs (values)'!$C$20:$C$25,'Inputs (values)'!$H$20:$H$25) -> 0.035 | N8: =LOOKUP(N7-'Inputs (values)'!$H$8,'Inputs (values)'!$C$20:$C$25,'Inputs (values)'!$H$20:$H$25) -> 0.035 | O8: =LOOKUP(O7-'Inputs (values)'!$H$8,'Inputs (values)'!$C$20:$C$25,'Inputs (values)'!$H$20:$H$25) -> 0.035 | P8: =LOOKUP(P7-'Inputs (values)'!$H$8,'Inputs (values)'!$C$20:$C$25,'Inputs (values)'!$H$20:$H$25) -> 0.035 | Q8: =LOOKUP(Q7-'Inputs (values)'!$H$8,'Inputs (values)'!$C$20:$C$25,'Inputs (values)'!$H$20:$H$25) -> 0.035 | R8: =LOOKUP(R7-'Inputs (values)'!$H$8,'Inputs (values)'!$C$20:$C$25,'Inputs (values)'!$H$20:$H$25) -> 0.035 | S8: =LOOKUP(S7-'Inputs (values)'!$H$8,'Inputs (values)'!$C$20:$C$25,'Inputs (values)'!$H$20:$H$25) -> 0.035 | T8: =LOOKUP(T7-'Inputs (values)'!$H$8,'Inputs (values)'!$C$20:$C$25,'Inputs (values)'!$H$20:$H$25) -> 0.035 | U8: =LOOKUP(U7-'Inputs (values)'!$H$8,'Inputs (values)'!$C$20:$C$25,'Inputs (values)'!$H$20:$H$25) -> 0.035 | V8: =LOOKUP(V7-'Inputs (values)'!$H$8,'Inputs (values)'!$C$20:$C$25,'Inputs (values)'!$H$20:$H$25) -> 0.035 | W8: =LOOKUP(W7-'Inputs (values)'!$H$8,'Inputs (values)'!$C$20:$C$25,'Inputs (values)'!$H$20:$H$25) -> 0.035 | X8: =LOOKUP(X7-'Inputs (values)'!$H$8,'Inputs (values)'!$C$20:$C$25,'Inputs (values)'!$H$20:$H$25) -> 0.035 | Y8: =LOOKUP(Y7-'Inputs (values)'!$H$8,'Inputs (values)'!$C$20:$C$25,'Inputs (values)'!$H$20:$H$25) -> 0.035 | Z8: =LOOKUP(Z7-'Inputs (values)'!$H$8,'Inputs (values)'!$C$20:$C$25,'Inputs (values)'!$H$20:$H$25) -> 0.035 | AA8: =LOOKUP(AA7-'Inputs (values)'!$H$8,'Inputs (values)'!$C$20:$C$25,'Inputs (values)'!$H$20:$H$25) -> 0.035 | AB8: =LOOKUP(AB7-'Inputs (values)'!$H$8,'Inputs (values)'!$C$20:$C$25,'Inputs (values)'!$H$20:$H$25) -> 0.035 | AC8: =LOOKUP(AC7-'Inputs (values)'!$H$8,'Inputs (values)'!$C$20:$C$25,'Inputs (values)'!$H$20:$H$25) -> 0.035 | AD8: =LOOKUP(AD7-'Inputs (values)'!$H$8,'Inputs (values)'!$C$20:$C$25,'Inputs (values)'!$H$20:$H$25) -> 0.035 | AE8: =LOOKUP(AE7-'Inputs (values)'!$H$8,'Inputs (values)'!$C$20:$C$25,'Inputs (values)'!$H$20:$H$25) -> 0.035 | AF8: =LOOKUP(AF7-'Inputs (values)'!$H$8,'Inputs (values)'!$C$20:$C$25,'Inputs (values)'!$H$20:$H$25) -> 0.035 | AG8: =LOOKUP(AG7-'Inputs (values)'!$H$8,'Inputs (values)'!$C$20:$C$25,'Inputs (values)'!$H$20:$H$25) -> 0.035 | AH8: =LOOKUP(AH7-'Inputs (values)'!$H$8,'Inputs (values)'!$C$20:$C$25,'Inputs (values)'!$H$20:$H$25) -> 0.035 | AI8: =LOOKUP(AI7-'Inputs (values)'!$H$8,'Inputs (values)'!$C$20:$C$25,'Inputs (values)'!$H$20:$H$25) -> 0.035 | AJ8: =LOOKUP(AJ7-'Inputs (values)'!$H$8,'Inputs (values)'!$C$20:$C$25,'Inputs (values)'!$H$20:$H$25) -> 0.035 | AK8: =LOOKUP(AK7-'Inputs (values)'!$H$8,'Inputs (values)'!$C$20:$C$25,'Inputs (values)'!$H$20:$H$25) -> 0.035 | AL8: =LOOKUP(AL7-'Inputs (values)'!$H$8,'Inputs (values)'!$C$20:$C$25,'Inputs (values)'!$H$20:$H$25) -> 0.035 | AM8: =LOOKUP(AM7-'Inputs (values)'!$H$8,'Inputs (values)'!$C$20:$C$25,'Inputs (values)'!$H$20:$H$25) -> 0.035 | AN8: =LOOKUP(AN7-'Inputs (values)'!$H$8,'Inputs (values)'!$C$20:$C$25,'Inputs (values)'!$H$20:$H$25) -> 0.035 | AO8: =LOOKUP(AO7-'Inputs (values)'!$H$8,'Inputs (values)'!$C$20:$C$25,'Inputs (values)'!$H$20:$H$25) -> 0.03 | AP8: =LOOKUP(AP7-'Inputs (values)'!$H$8,'Inputs (values)'!$C$20:$C$25,'Inputs (values)'!$H$20:$H$25) -> 0.03 | AQ8: =LOOKUP(AQ7-'Inputs (values)'!$H$8,'Inputs (values)'!$C$20:$C$25,'Inputs (values)'!$H$20:$H$25) -> 0.03 | AR8: =LOOKUP(AR7-'Inputs (values)'!$H$8,'Inputs (values)'!$C$20:$C$25,'Inputs (values)'!$H$20:$H$25) -> 0.03 | AS8: =LOOKUP(AS7-'Inputs (values)'!$H$8,'Inputs (values)'!$C$20:$C$25,'Inputs (values)'!$H$20:$H$25) -> 0.03 | AT8: =LOOKUP(AT7-'Inputs (values)'!$H$8,'Inputs (values)'!$C$20:$C$25,'Inputs (values)'!$H$20:$H$25) -> 0.03 | AU8: =LOOKUP(AU7-'Inputs (values)'!$H$8,'Inputs (values)'!$C$20:$C$25,'Inputs (values)'!$H$20:$H$25) -> 0.03 | AV8: =LOOKUP(AV7-'Inputs (values)'!$H$8,'Inputs (values)'!$C$20:$C$25,'Inputs (values)'!$H$20:$H$25) -> 0.03 | AW8: =LOOKUP(AW7-'Inputs (values)'!$H$8,'Inputs (values)'!$C$20:$C$25,'Inputs (values)'!$H$20:$H$25) -> 0.03 | AX8: =LOOKUP(AX7-'Inputs (values)'!$H$8,'Inputs (values)'!$C$20:$C$25,'Inputs (values)'!$H$20:$H$25) -> 0.03 | AY8: =LOOKUP(AY7-'Inputs (values)'!$H$8,'Inputs (values)'!$C$20:$C$25,'Inputs (values)'!$H$20:$H$25) -> 0.03 | AZ8: =LOOKUP(AZ7-'Inputs (values)'!$H$8,'Inputs (values)'!$C$20:$C$25,'Inputs (values)'!$H$20:$H$25) -> 0.03 | BA8: =LOOKUP(BA7-'Inputs (values)'!$H$8,'Inputs (values)'!$C$20:$C$25,'Inputs (values)'!$H$20:$H$25) -> 0.03 | BB8: =LOOKUP(BB7-'Inputs (values)'!$H$8,'Inputs (values)'!$C$20:$C$25,'Inputs (values)'!$H$20:$H$25) -> 0.03 | BC8: =LOOKUP(BC7-'Inputs (values)'!$H$8,'Inputs (values)'!$C$20:$C$25,'Inputs (values)'!$H$20:$H$25) -> 0.03 | BD8: =LOOKUP(BD7-'Inputs (values)'!$H$8,'Inputs (values)'!$C$20:$C$25,'Inputs (values)'!$H$20:$H$25) -> 0.03 | BE8: =LOOKUP(BE7-'Inputs (values)'!$H$8,'Inputs (values)'!$C$20:$C$25,'Inputs (values)'!$H$20:$H$25) -> 0.03 | BF8: =LOOKUP(BF7-'Inputs (values)'!$H$8,'Inputs (values)'!$C$20:$C$25,'Inputs (values)'!$H$20:$H$25) -> 0.03 | BG8: =LOOKUP(BG7-'Inputs (values)'!$H$8,'Inputs (values)'!$C$20:$C$25,'Inputs (values)'!$H$20:$H$25) -> 0.03 | BH8: =LOOKUP(BH7-'Inputs (values)'!$H$8,'Inputs (values)'!$C$20:$C$25,'Inputs (values)'!$H$20:$H$25) -> 0.03 | BI8: =LOOKUP(BI7-'Inputs (values)'!$H$8,'Inputs (values)'!$C$20:$C$25,'Inputs (values)'!$H$20:$H$25) -> 0.03 | BJ8: =LOOKUP(BJ7-'Inputs (values)'!$H$8,'Inputs (values)'!$C$20:$C$25,'Inputs (values)'!$H$20:$H$25) -> 0.03 | BK8: =LOOKUP(BK7-'Inputs (values)'!$H$8,'Inputs (values)'!$C$20:$C$25,'Inputs (values)'!$H$20:$H$25) -> 0.03 | BL8: =LOOKUP(BL7-'Inputs (values)'!$H$8,'Inputs (values)'!$C$20:$C$25,'Inputs (values)'!$H$20:$H$25) -> 0.03 | BM8: =LOOKUP(BM7-'Inputs (values)'!$H$8,'Inputs (values)'!$C$20:$C$25,'Inputs (values)'!$H$20:$H$25) -> 0.03 | BN8: =LOOKUP(BN7-'Inputs (values)'!$H$8,'Inputs (values)'!$C$20:$C$25,'Inputs (values)'!$H$20:$H$25) -> 0.03 | BO8: =LOOKUP(BO7-'Inputs (values)'!$H$8,'Inputs (values)'!$C$20:$C$25,'Inputs (values)'!$H$20:$H$25) -> 0.03 | BP8: =LOOKUP(BP7-'Inputs (values)'!$H$8,'Inputs (values)'!$C$20:$C$25,'Inputs (values)'!$H$20:$H$25) -> 0.03 | BQ8: =LOOKUP(BQ7-'Inputs (values)'!$H$8,'Inputs (values)'!$C$20:$C$25,'Inputs (values)'!$H$20:$H$25) -> 0.03 | BR8: =LOOKUP(BR7-'Inputs (values)'!$H$8,'Inputs (values)'!$C$20:$C$25,'Inputs (values)'!$H$20:$H$25) -> 0.03 | BS8: =LOOKUP(BS7-'Inputs (values)'!$H$8,'Inputs (values)'!$C$20:$C$25,'Inputs (values)'!$H$20:$H$25) -> 0.03 | BT8: =LOOKUP(BT7-'Inputs (values)'!$H$8,'Inputs (values)'!$C$20:$C$25,'Inputs (values)'!$H$20:$H$25) -> 0.03 | BU8: =LOOKUP(BU7-'Inputs (values)'!$H$8,'Inputs (values)'!$C$20:$C$25,'Inputs (values)'!$H$20:$H$25) -> 0.03 | BV8: =LOOKUP(BV7-'Inputs (values)'!$H$8,'Inputs (values)'!$C$20:$C$25,'Inputs (values)'!$H$20:$H$25) -> 0.03 | BW8: =LOOKUP(BW7-'Inputs (values)'!$H$8,'Inputs (values)'!$C$20:$C$25,'Inputs (values)'!$H$20:$H$25) -> 0.03 | BX8: =LOOKUP(BX7-'Inputs (values)'!$H$8,'Inputs (values)'!$C$20:$C$25,'Inputs (values)'!$H$20:$H$25) -> 0.03 | BY8: =LOOKUP(BY7-'Inputs (values)'!$H$8,'Inputs (values)'!$C$20:$C$25,'Inputs (values)'!$H$20:$H$25) -> 0.03 | BZ8: =LOOKUP(BZ7-'Inputs (values)'!$H$8,'Inputs (values)'!$C$20:$C$25,'Inputs (values)'!$H$20:$H$25) -> 0.03 | CA8: =LOOKUP(CA7-'Inputs (values)'!$H$8,'Inputs (values)'!$C$20:$C$25,'Inputs (values)'!$H$20:$H$25) -> 0.03 | CB8: =LOOKUP(CB7-'Inputs (values)'!$H$8,'Inputs (values)'!$C$20:$C$25,'Inputs (values)'!$H$20:$H$25) -> 0.03 | CC8: =LOOKUP(CC7-'Inputs (values)'!$H$8,'Inputs (values)'!$C$20:$C$25,'Inputs (values)'!$H$20:$H$25) -> 0.03 | CD8: =LOOKUP(CD7-'Inputs (values)'!$H$8,'Inputs (values)'!$C$20:$C$25,'Inputs (values)'!$H$20:$H$25) -> 0.03 | CE8: =LOOKUP(CE7-'Inputs (values)'!$H$8,'Inputs (values)'!$C$20:$C$25,'Inputs (values)'!$H$20:$H$25) -> 0.03 | CF8: =LOOKUP(CF7-'Inputs (values)'!$H$8,'Inputs (values)'!$C$20:$C$25,'Inputs (values)'!$H$20:$H$25) -> 0.03 | CG8: =LOOKUP(CG7-'Inputs (values)'!$H$8,'Inputs (values)'!$C$20:$C$25,'Inputs (values)'!$H$20:$H$25) -> 0.03 | CH8: =LOOKUP(CH7-'Inputs (values)'!$H$8,'Inputs (values)'!$C$20:$C$25,'Inputs (values)'!$H$20:$H$25) -> 0.025 | CI8: =LOOKUP(CI7-'Inputs (values)'!$H$8,'Inputs (values)'!$C$20:$C$25,'Inputs (values)'!$H$20:$H$25) -> 0.025 | CJ8: =LOOKUP(CJ7-'Inputs (values)'!$H$8,'Inputs (values)'!$C$20:$C$25,'Inputs (values)'!$H$20:$H$25) -> 0.025 | CK8: =LOOKUP(CK7-'Inputs (values)'!$H$8,'Inputs (values)'!$C$20:$C$25,'Inputs (values)'!$H$20:$H$25) -> 0.025 | CL8: =LOOKUP(CL7-'Inputs (values)'!$H$8,'Inputs (values)'!$C$20:$C$25,'Inputs (values)'!$H$20:$H$25) -> 0.025 | CM8: =LOOKUP(CM7-'Inputs (values)'!$H$8,'Inputs (values)'!$C$20:$C$25,'Inputs (values)'!$H$20:$H$25) -> 0.025 | CN8: =LOOKUP(CN7-'Inputs (values)'!$H$8,'Inputs (values)'!$C$20:$C$25,'Inputs (values)'!$H$20:$H$25) -> 0.025 | CO8: =LOOKUP(CO7-'Inputs (values)'!$H$8,'Inputs (values)'!$C$20:$C$25,'Inputs (values)'!$H$20:$H$25) -> 0.025 | CP8: =LOOKUP(CP7-'Inputs (values)'!$H$8,'Inputs (values)'!$C$20:$C$25,'Inputs (values)'!$H$20:$H$25) -> 0.025 | CQ8: =LOOKUP(CQ7-'Inputs (values)'!$H$8,'Inputs (values)'!$C$20:$C$25,'Inputs (values)'!$H$20:$H$25) -> 0.025 | CR8: =LOOKUP(CR7-'Inputs (values)'!$H$8,'Inputs (values)'!$C$20:$C$25,'Inputs (values)'!$H$20:$H$25) -> 0.025 | CS8: =LOOKUP(CS7-'Inputs (values)'!$H$8,'Inputs (values)'!$C$20:$C$25,'Inputs (values)'!$H$20:$H$25) -> 0.025 | CT8: =LOOKUP(CT7-'Inputs (values)'!$H$8,'Inputs (values)'!$C$20:$C$25,'Inputs (values)'!$H$20:$H$25) -> 0.025 | CU8: =LOOKUP(CU7-'Inputs (values)'!$H$8,'Inputs (values)'!$C$20:$C$25,'Inputs (values)'!$H$20:$H$25) -> 0.025 | CV8: =LOOKUP(CV7-'Inputs (values)'!$H$8,'Inputs (values)'!$C$20:$C$25,'Inputs (values)'!$H$20:$H$25) -> 0.025 | CW8: =LOOKUP(CW7-'Inputs (values)'!$H$8,'Inputs (values)'!$C$20:$C$25,'Inputs (values)'!$H$20:$H$25) -> 0.025 | CX8: =LOOKUP(CX7-'Inputs (values)'!$H$8,'Inputs (values)'!$C$20:$C$25,'Inputs (values)'!$H$20:$H$25) -> 0.025 | CY8: =LOOKUP(CY7-'Inputs (values)'!$H$8,'Inputs (values)'!$C$20:$C$25,'Inputs (values)'!$H$20:$H$25) -> 0.025 | CZ8: =LOOKUP(CZ7-'Inputs (values)'!$H$8,'Inputs (values)'!$C$20:$C$25,'Inputs (values)'!$H$20:$H$25) -> 0.025 | DA8: =LOOKUP(DA7-'Inputs (values)'!$H$8,'Inputs (values)'!$C$20:$C$25,'Inputs (values)'!$H$20:$H$25) -> 0.025 | DB8: =LOOKUP(DB7-'Inputs (values)'!$H$8,'Inputs (values)'!$C$20:$C$25,'Inputs (values)'!$H$20:$H$25) -> 0.025 | DC8: =LOOKUP(DC7-'Inputs (values)'!$H$8,'Inputs (values)'!$C$20:$C$25,'Inputs (values)'!$H$20:$H$25) -> 0.025 | DD8: =LOOKUP(DD7-'Inputs (values)'!$H$8,'Inputs (values)'!$C$20:$C$25,'Inputs (values)'!$H$20:$H$25) -> 0.025 | DE8: =LOOKUP(DE7-'Inputs (values)'!$H$8,'Inputs (values)'!$C$20:$C$25,'Inputs (values)'!$H$20:$H$25) -> 0.025 | DF8: =LOOKUP(DF7-'Inputs (values)'!$H$8,'Inputs (values)'!$C$20:$C$25,'Inputs (values)'!$H$20:$H$25) -> 0.025 | DG8: =LOOKUP(DG7-'Inputs (values)'!$H$8,'Inputs (values)'!$C$20:$C$25,'Inputs (values)'!$H$20:$H$25) -> 0.025 | DH8: =LOOKUP(DH7-'Inputs (values)'!$H$8,'Inputs (values)'!$C$20:$C$25,'Inputs (values)'!$H$20:$H$25) -> 0.025 | DI8: =LOOKUP(DI7-'Inputs (values)'!$H$8,'Inputs (values)'!$C$20:$C$25,'Inputs (values)'!$H$20:$H$25) -> 0.025 | DJ8: =LOOKUP(DJ7-'Inputs (values)'!$H$8,'Inputs (values)'!$C$20:$C$25,'Inputs (values)'!$H$20:$H$25) -> 0.025 | DK8: =LOOKUP(DK7-'Inputs (values)'!$H$8,'Inputs (values)'!$C$20:$C$25,'Inputs (values)'!$H$20:$H$25) -> 0.025 | DL8: =LOOKUP(DL7-'Inputs (values)'!$H$8,'Inputs (values)'!$C$20:$C$25,'Inputs (values)'!$H$20:$H$25) -> 0.025 | DM8: =LOOKUP(DM7-'Inputs (values)'!$H$8,'Inputs (values)'!$C$20:$C$25,'Inputs (values)'!$H$20:$H$25) -> 0.025 | DN8: =LOOKUP(DN7-'Inputs (values)'!$H$8,'Inputs (values)'!$C$20:$C$25,'Inputs (values)'!$H$20:$H$25) -> 0.025 | DO8: =LOOKUP(DO7-'Inputs (values)'!$H$8,'Inputs (values)'!$C$20:$C$25,'Inputs (values)'!$H$20:$H$25) -> 0.025 | DP8: =LOOKUP(DP7-'Inputs (values)'!$H$8,'Inputs (values)'!$C$20:$C$25,'Inputs (values)'!$H$20:$H$25) -> 0.025 | DQ8: =LOOKUP(DQ7-'Inputs (values)'!$H$8,'Inputs (values)'!$C$20:$C$25,'Inputs (values)'!$H$20:$H$25) -> 0.025 | DR8: =LOOKUP(DR7-'Inputs (values)'!$H$8,'Inputs (values)'!$C$20:$C$25,'Inputs (values)'!$H$20:$H$25) -> 0.025 | DS8: =LOOKUP(DS7-'Inputs (values)'!$H$8,'Inputs (values)'!$C$20:$C$25,'Inputs (values)'!$H$20:$H$25) -> 0.025 | DT8: =LOOKUP(DT7-'Inputs (values)'!$H$8,'Inputs (values)'!$C$20:$C$25,'Inputs (values)'!$H$20:$H$25) -> 0.025 | DU8: =LOOKUP(DU7-'Inputs (values)'!$H$8,'Inputs (values)'!$C$20:$C$25,'Inputs (values)'!$H$20:$H$25) -> 0.025 | DV8: =LOOKUP(DV7-'Inputs (values)'!$H$8,'Inputs (values)'!$C$20:$C$25,'Inputs (values)'!$H$20:$H$25) -> 0.025 | DW8: =LOOKUP(DW7-'Inputs (values)'!$H$8,'Inputs (values)'!$C$20:$C$25,'Inputs (values)'!$H$20:$H$25) -> 0.025 | DX8: =LOOKUP(DX7-'Inputs (values)'!$H$8,'Inputs (values)'!$C$20:$C$25,'Inputs (values)'!$H$20:$H$25) -> 0.025 | DY8: =LOOKUP(DY7-'Inputs (values)'!$H$8,'Inputs (values)'!$C$20:$C$25,'Inputs (values)'!$H$20:$H$25) -> 0.025 | DZ8: =LOOKUP(DZ7-'Inputs (values)'!$H$8,'Inputs (values)'!$C$20:$C$25,'Inputs (values)'!$H$20:$H$25) -> 0.025 | EA8: =LOOKUP(EA7-'Inputs (values)'!$H$8,'Inputs (values)'!$C$20:$C$25,'Inputs (values)'!$H$20:$H$25) -> 0.025 | EB8: =LOOKUP(EB7-'Inputs (values)'!$H$8,'Inputs (values)'!$C$20:$C$25,'Inputs (values)'!$H$20:$H$25) -> 0.025 | EC8: =LOOKUP(EC7-'Inputs (values)'!$H$8,'Inputs (values)'!$C$20:$C$25,'Inputs (values)'!$H$20:$H$25) -> 0.025 | ED8: =LOOKUP(ED7-'Inputs (values)'!$H$8,'Inputs (values)'!$C$20:$C$25,'Inputs (values)'!$H$20:$H$25) -> 0.025 | EE8: =LOOKUP(EE7-'Inputs (values)'!$H$8,'Inputs (values)'!$C$20:$C$25,'Inputs (values)'!$H$20:$H$25) -> 0.025 | EF8: =LOOKUP(EF7-'Inputs (values)'!$H$8,'Inputs (values)'!$C$20:$C$25,'Inputs (values)'!$H$20:$H$25) -> 0.02 | EG8: =LOOKUP(EG7-'Inputs (values)'!$H$8,'Inputs (values)'!$C$20:$C$25,'Inputs (values)'!$H$20:$H$25) -> 0.02 | EH8: =LOOKUP(EH7-'Inputs (values)'!$H$8,'Inputs (values)'!$C$20:$C$25,'Inputs (values)'!$H$20:$H$25) -> 0.02 | EI8: =LOOKUP(EI7-'Inputs (values)'!$H$8,'Inputs (values)'!$C$20:$C$25,'Inputs (values)'!$H$20:$H$25) -> 0.02 | EJ8: =LOOKUP(EJ7-'Inputs (values)'!$H$8,'Inputs (values)'!$C$20:$C$25,'Inputs (values)'!$H$20:$H$25) -> 0.02 | EK8: =LOOKUP(EK7-'Inputs (values)'!$H$8,'Inputs (values)'!$C$20:$C$25,'Inputs (values)'!$H$20:$H$25) -> 0.02 | EL8: =LOOKUP(EL7-'Inputs (values)'!$H$8,'Inputs (values)'!$C$20:$C$25,'Inputs (values)'!$H$20:$H$25) -> 0.02 | EM8: =LOOKUP(EM7-'Inputs (values)'!$H$8,'Inputs (values)'!$C$20:$C$25,'Inputs (values)'!$H$20:$H$25) -> 0.02 | EN8: =LOOKUP(EN7-'Inputs (values)'!$H$8,'Inputs (values)'!$C$20:$C$25,'Inputs (values)'!$H$20:$H$25) -> 0.02 | EO8: =LOOKUP(EO7-'Inputs (values)'!$H$8,'Inputs (values)'!$C$20:$C$25,'Inputs (values)'!$H$20:$H$25) -> 0.02 | EP8: =LOOKUP(EP7-'Inputs (values)'!$H$8,'Inputs (values)'!$C$20:$C$25,'Inputs (values)'!$H$20:$H$25) -> 0.02 | EQ8: =LOOKUP(EQ7-'Inputs (values)'!$H$8,'Inputs (values)'!$C$20:$C$25,'Inputs (values)'!$H$20:$H$25) -> 0.02 | ER8: =LOOKUP(ER7-'Inputs (values)'!$H$8,'Inputs (values)'!$C$20:$C$25,'Inputs (values)'!$H$20:$H$25) -> 0.02 | ES8: =LOOKUP(ES7-'Inputs (values)'!$H$8,'Inputs (values)'!$C$20:$C$25,'Inputs (values)'!$H$20:$H$25) -> 0.02 | ET8: =LOOKUP(ET7-'Inputs (values)'!$H$8,'Inputs (values)'!$C$20:$C$25,'Inputs (values)'!$H$20:$H$25) -> 0.02 | EU8: =LOOKUP(EU7-'Inputs (values)'!$H$8,'Inputs (values)'!$C$20:$C$25,'Inputs (values)'!$H$20:$H$25) -> 0.02 | EV8: =LOOKUP(EV7-'Inputs (values)'!$H$8,'Inputs (values)'!$C$20:$C$25,'Inputs (values)'!$H$20:$H$25) -> 0.02 | EW8: =LOOKUP(EW7-'Inputs (values)'!$H$8,'Inputs (values)'!$C$20:$C$25,'Inputs (values)'!$H$20:$H$25) -> 0.02 | EX8: =LOOKUP(EX7-'Inputs (values)'!$H$8,'Inputs (values)'!$C$20:$C$25,'Inputs (values)'!$H$20:$H$25) -> 0.02 | EY8: =LOOKUP(EY7-'Inputs (values)'!$H$8,'Inputs (values)'!$C$20:$C$25,'Inputs (values)'!$H$20:$H$25) -> 0.02 | EZ8: =LOOKUP(EZ7-'Inputs (values)'!$H$8,'Inputs (values)'!$C$20:$C$25,'Inputs (values)'!$H$20:$H$25) -> 0.02 | FA8: =LOOKUP(FA7-'Inputs (values)'!$H$8,'Inputs (values)'!$C$20:$C$25,'Inputs (values)'!$H$20:$H$25) -> 0.02 | FB8: =LOOKUP(FB7-'Inputs (values)'!$H$8,'Inputs (values)'!$C$20:$C$25,'Inputs (values)'!$H$20:$H$25) -> 0.02 | FC8: =LOOKUP(FC7-'Inputs (values)'!$H$8,'Inputs (values)'!$C$20:$C$25,'Inputs (values)'!$H$20:$H$25) -> 0.02 | FD8: =LOOKUP(FD7-'Inputs (values)'!$H$8,'Inputs (values)'!$C$20:$C$25,'Inputs (values)'!$H$20:$H$25) -> 0.02 | FE8: =LOOKUP(FE7-'Inputs (values)'!$H$8,'Inputs (values)'!$C$20:$C$25,'Inputs (values)'!$H$20:$H$25) -> 0.02 | FF8: =LOOKUP(FF7-'Inputs (values)'!$H$8,'Inputs (values)'!$C$20:$C$25,'Inputs (values)'!$H$20:$H$25) -> 0.02 | FG8: =LOOKUP(FG7-'Inputs (values)'!$H$8,'Inputs (values)'!$C$20:$C$25,'Inputs (values)'!$H$20:$H$25) -> 0.02 | FH8: =LOOKUP(FH7-'Inputs (values)'!$H$8,'Inputs (values)'!$C$20:$C$25,'Inputs (values)'!$H$20:$H$25) -> 0.02 | FI8: =LOOKUP(FI7-'Inputs (values)'!$H$8,'Inputs (values)'!$C$20:$C$25,'Inputs (values)'!$H$20:$H$25) -> 0.02 | FJ8: =LOOKUP(FJ7-'Inputs (values)'!$H$8,'Inputs (values)'!$C$20:$C$25,'Inputs (values)'!$H$20:$H$25) -> 0.02 | FK8: =LOOKUP(FK7-'Inputs (values)'!$H$8,'Inputs (values)'!$C$20:$C$25,'Inputs (values)'!$H$20:$H$25) -> 0.02 | FL8: =LOOKUP(FL7-'Inputs (values)'!$H$8,'Inputs (values)'!$C$20:$C$25,'Inputs (values)'!$H$20:$H$25) -> 0.02 | FM8: =LOOKUP(FM7-'Inputs (values)'!$H$8,'Inputs (values)'!$C$20:$C$25,'Inputs (values)'!$H$20:$H$25) -> 0.02 | FN8: =LOOKUP(FN7-'Inputs (values)'!$H$8,'Inputs (values)'!$C$20:$C$25,'Inputs (values)'!$H$20:$H$25) -> 0.02 | FO8: =LOOKUP(FO7-'Inputs (values)'!$H$8,'Inputs (values)'!$C$20:$C$25,'Inputs (values)'!$H$20:$H$25) -> 0.02 | FP8: =LOOKUP(FP7-'Inputs (values)'!$H$8,'Inputs (values)'!$C$20:$C$25,'Inputs (values)'!$H$20:$H$25) -> 0.02 | FQ8: =LOOKUP(FQ7-'Inputs (values)'!$H$8,'Inputs (values)'!$C$20:$C$25,'Inputs (values)'!$H$20:$H$25) -> 0.02 | FR8: =LOOKUP(FR7-'Inputs (values)'!$H$8,'Inputs (values)'!$C$20:$C$25,'Inputs (values)'!$H$20:$H$25) -> 0.02 | FS8: =LOOKUP(FS7-'Inputs (values)'!$H$8,'Inputs (values)'!$C$20:$C$25,'Inputs (values)'!$H$20:$H$25) -> 0.02 | FT8: =LOOKUP(FT7-'Inputs (values)'!$H$8,'Inputs (values)'!$C$20:$C$25,'Inputs (values)'!$H$20:$H$25) -> 0.02 | FU8: =LOOKUP(FU7-'Inputs (values)'!$H$8,'Inputs (values)'!$C$20:$C$25,'Inputs (values)'!$H$20:$H$25) -> 0.02 | FV8: =LOOKUP(FV7-'Inputs (values)'!$H$8,'Inputs (values)'!$C$20:$C$25,'Inputs (values)'!$H$20:$H$25) -> 0.02 | FW8: =LOOKUP(FW7-'Inputs (values)'!$H$8,'Inputs (values)'!$C$20:$C$25,'Inputs (values)'!$H$20:$H$25) -> 0.02 | FX8: =LOOKUP(FX7-'Inputs (values)'!$H$8,'Inputs (values)'!$C$20:$C$25,'Inputs (values)'!$H$20:$H$25) -> 0.02 | FY8: =LOOKUP(FY7-'Inputs (values)'!$H$8,'Inputs (values)'!$C$20:$C$25,'Inputs (values)'!$H$20:$H$25) -> 0.02 | FZ8: =LOOKUP(FZ7-'Inputs (values)'!$H$8,'Inputs (values)'!$C$20:$C$25,'Inputs (values)'!$H$20:$H$25) -> 0.02 | GA8: =LOOKUP(GA7-'Inputs (values)'!$H$8,'Inputs (values)'!$C$20:$C$25,'Inputs (values)'!$H$20:$H$25) -> 0.02 | GB8: =LOOKUP(GB7-'Inputs (values)'!$H$8,'Inputs (values)'!$C$20:$C$25,'Inputs (values)'!$H$20:$H$25) -> 0.02 | GC8: =LOOKUP(GC7-'Inputs (values)'!$H$8,'Inputs (values)'!$C$20:$C$25,'Inputs (values)'!$H$20:$H$25) -> 0.02 | GD8: =LOOKUP(GD7-'Inputs (values)'!$H$8,'Inputs (values)'!$C$20:$C$25,'Inputs (values)'!$H$20:$H$25) -> 0.02 | GE8: =LOOKUP(GE7-'Inputs (values)'!$H$8,'Inputs (values)'!$C$20:$C$25,'Inputs (values)'!$H$20:$H$25) -> 0.02 | GF8: =LOOKUP(GF7-'Inputs (values)'!$H$8,'Inputs (values)'!$C$20:$C$25,'Inputs (values)'!$H$20:$H$25) -> 0.02 | GG8: =LOOKUP(GG7-'Inputs (values)'!$H$8,'Inputs (values)'!$C$20:$C$25,'Inputs (values)'!$H$20:$H$25) -> 0.02 | GH8: =LOOKUP(GH7-'Inputs (values)'!$H$8,'Inputs (values)'!$C$20:$C$25,'Inputs (values)'!$H$20:$H$25) -> 0.02 | GI8: =LOOKUP(GI7-'Inputs (values)'!$H$8,'Inputs (values)'!$C$20:$C$25,'Inputs (values)'!$H$20:$H$25) -> 0.02 | GJ8: =LOOKUP(GJ7-'Inputs (values)'!$H$8,'Inputs (values)'!$C$20:$C$25,'Inputs (values)'!$H$20:$H$25) -> 0.02 | GK8: =LOOKUP(GK7-'Inputs (values)'!$H$8,'Inputs (values)'!$C$20:$C$25,'Inputs (values)'!$H$20:$H$25) -> 0.02 | GL8: =LOOKUP(GL7-'Inputs (values)'!$H$8,'Inputs (values)'!$C$20:$C$25,'Inputs (values)'!$H$20:$H$25) -> 0.02 | GM8: =LOOKUP(GM7-'Inputs (values)'!$H$8,'Inputs (values)'!$C$20:$C$25,'Inputs (values)'!$H$20:$H$25) -> 0.02 | GN8: =LOOKUP(GN7-'Inputs (values)'!$H$8,'Inputs (values)'!$C$20:$C$25,'Inputs (values)'!$H$20:$H$25) -> 0.02 | GO8: =LOOKUP(GO7-'Inputs (values)'!$H$8,'Inputs (values)'!$C$20:$C$25,'Inputs (values)'!$H$20:$H$25) -> 0.02 | GP8: =LOOKUP(GP7-'Inputs (values)'!$H$8,'Inputs (values)'!$C$20:$C$25,'Inputs (values)'!$H$20:$H$25) -> 0.02 | GQ8: =LOOKUP(GQ7-'Inputs (values)'!$H$8,'Inputs (values)'!$C$20:$C$25,'Inputs (values)'!$H$20:$H$25) -> 0.02 | GR8: =LOOKUP(GR7-'Inputs (values)'!$H$8,'Inputs (values)'!$C$20:$C$25,'Inputs (values)'!$H$20:$H$25) -> 0.02 | GS8: =LOOKUP(GS7-'Inputs (values)'!$H$8,'Inputs (values)'!$C$20:$C$25,'Inputs (values)'!$H$20:$H$25) -> 0.02 | GT8: =LOOKUP(GT7-'Inputs (values)'!$H$8,'Inputs (values)'!$C$20:$C$25,'Inputs (values)'!$H$20:$H$25) -> 0.02 | GU8: =LOOKUP(GU7-'Inputs (values)'!$H$8,'Inputs (values)'!$C$20:$C$25,'Inputs (values)'!$H$20:$H$25) -> 0.02 | GV8: =LOOKUP(GV7-'Inputs (values)'!$H$8,'Inputs (values)'!$C$20:$C$25,'Inputs (values)'!$H$20:$H$25) -> 0.02 | GW8: =LOOKUP(GW7-'Inputs (values)'!$H$8,'Inputs (values)'!$C$20:$C$25,'Inputs (values)'!$H$20:$H$25) -> 0.02 | GX8: =LOOKUP(GX7-'Inputs (values)'!$H$8,'Inputs (values)'!$C$20:$C$25,'Inputs (values)'!$H$20:$H$25) -> 0.02 | GY8: =LOOKUP(GY7-'Inputs (values)'!$H$8,'Inputs (values)'!$C$20:$C$25,'Inputs (values)'!$H$20:$H$25) -> 0.02 | GZ8: =LOOKUP(GZ7-'Inputs (values)'!$H$8,'Inputs (values)'!$C$20:$C$25,'Inputs (values)'!$H$20:$H$25) -> 0.02 | HA8: =LOOKUP(HA7-'Inputs (values)'!$H$8,'Inputs (values)'!$C$20:$C$25,'Inputs (values)'!$H$20:$H$25) -> 0.02 | HB8: =LOOKUP(HB7-'Inputs (values)'!$H$8,'Inputs (values)'!$C$20:$C$25,'Inputs (values)'!$H$20:$H$25) -> 0.02 | HC8: =LOOKUP(HC7-'Inputs (values)'!$H$8,'Inputs (values)'!$C$20:$C$25,'Inputs (values)'!$H$20:$H$25) -> 0.015 | HD8: =LOOKUP(HD7-'Inputs (values)'!$H$8,'Inputs (values)'!$C$20:$C$25,'Inputs (values)'!$H$20:$H$25) -> 0.015 | HE8: =LOOKUP(HE7-'Inputs (values)'!$H$8,'Inputs (values)'!$C$20:$C$25,'Inputs (values)'!$H$20:$H$25) -> 0.015 | HF8: =LOOKUP(HF7-'Inputs (values)'!$H$8,'Inputs (values)'!$C$20:$C$25,'Inputs (values)'!$H$20:$H$25) -> 0.015 | HG8: =LOOKUP(HG7-'Inputs (values)'!$H$8,'Inputs (values)'!$C$20:$C$25,'Inputs (values)'!$H$20:$H$25) -> 0.015 | HH8: =LOOKUP(HH7-'Inputs (values)'!$H$8,'Inputs (values)'!$C$20:$C$25,'Inputs (values)'!$H$20:$H$25) -> 0.015 | HI8: =LOOKUP(HI7-'Inputs (values)'!$H$8,'Inputs (values)'!$C$20:$C$25,'Inputs (values)'!$H$20:$H$25) -> 0.015 | HJ8: =LOOKUP(HJ7-'Inputs (values)'!$H$8,'Inputs (values)'!$C$20:$C$25,'Inputs (values)'!$H$20:$H$25) -> 0.015 | HK8: =LOOKUP(HK7-'Inputs (values)'!$H$8,'Inputs (values)'!$C$20:$C$25,'Inputs (values)'!$H$20:$H$25) -> 0.015 | HL8: =LOOKUP(HL7-'Inputs (values)'!$H$8,'Inputs (values)'!$C$20:$C$25,'Inputs (values)'!$H$20:$H$25) -> 0.015 | HM8: =LOOKUP(HM7-'Inputs (values)'!$H$8,'Inputs (values)'!$C$20:$C$25,'Inputs (values)'!$H$20:$H$25) -> 0.015 | HN8: =LOOKUP(HN7-'Inputs (values)'!$H$8,'Inputs (values)'!$C$20:$C$25,'Inputs (values)'!$H$20:$H$25) -> 0.015 | HO8: =LOOKUP(HO7-'Inputs (values)'!$H$8,'Inputs (values)'!$C$20:$C$25,'Inputs (values)'!$H$20:$H$25) -> 0.015 | HP8: =LOOKUP(HP7-'Inputs (values)'!$H$8,'Inputs (values)'!$C$20:$C$25,'Inputs (values)'!$H$20:$H$25) -> 0.015 | HQ8: =LOOKUP(HQ7-'Inputs (values)'!$H$8,'Inputs (values)'!$C$20:$C$25,'Inputs (values)'!$H$20:$H$25) -> 0.015 | HR8: =LOOKUP(HR7-'Inputs (values)'!$H$8,'Inputs (values)'!$C$20:$C$25,'Inputs (values)'!$H$20:$H$25) -> 0.015 | HS8: =LOOKUP(HS7-'Inputs (values)'!$H$8,'Inputs (values)'!$C$20:$C$25,'Inputs (values)'!$H$20:$H$25) -> 0.015 | HT8: =LOOKUP(HT7-'Inputs (values)'!$H$8,'Inputs (values)'!$C$20:$C$25,'Inputs (values)'!$H$20:$H$25) -> 0.015 | HU8: =LOOKUP(HU7-'Inputs (values)'!$H$8,'Inputs (values)'!$C$20:$C$25,'Inputs (values)'!$H$20:$H$25) -> 0.015 | HV8: =LOOKUP(HV7-'Inputs (values)'!$H$8,'Inputs (values)'!$C$20:$C$25,'Inputs (values)'!$H$20:$H$25) -> 0.015 | HW8: =LOOKUP(HW7-'Inputs (values)'!$H$8,'Inputs (values)'!$C$20:$C$25,'Inputs (values)'!$H$20:$H$25) -> 0.015 | HX8: =LOOKUP(HX7-'Inputs (values)'!$H$8,'Inputs (values)'!$C$20:$C$25,'Inputs (values)'!$H$20:$H$25) -> 0.015 | HY8: =LOOKUP(HY7-'Inputs (values)'!$H$8,'Inputs (values)'!$C$20:$C$25,'Inputs (values)'!$H$20:$H$25) -> 0.015 | HZ8: =LOOKUP(HZ7-'Inputs (values)'!$H$8,'Inputs (values)'!$C$20:$C$25,'Inputs (values)'!$H$20:$H$25) -> 0.015 | IA8: =LOOKUP(IA7-'Inputs (values)'!$H$8,'Inputs (values)'!$C$20:$C$25,'Inputs (values)'!$H$20:$H$25) -> 0.015 | IB8: =LOOKUP(IB7-'Inputs (values)'!$H$8,'Inputs (values)'!$C$20:$C$25,'Inputs (values)'!$H$20:$H$25) -> 0.015 | IC8: =LOOKUP(IC7-'Inputs (values)'!$H$8,'Inputs (values)'!$C$20:$C$25,'Inputs (values)'!$H$20:$H$25) -> 0.015 | ID8: =LOOKUP(ID7-'Inputs (values)'!$H$8,'Inputs (values)'!$C$20:$C$25,'Inputs (values)'!$H$20:$H$25) -> 0.015 | IE8: =LOOKUP(IE7-'Inputs (values)'!$H$8,'Inputs (values)'!$C$20:$C$25,'Inputs (values)'!$H$20:$H$25) -> 0.015 | IF8: =LOOKUP(IF7-'Inputs (values)'!$H$8,'Inputs (values)'!$C$20:$C$25,'Inputs (values)'!$H$20:$H$25) -> 0.015 | IG8: =LOOKUP(IG7-'Inputs (values)'!$H$8,'Inputs (values)'!$C$20:$C$25,'Inputs (values)'!$H$20:$H$25) -> 0.015 | IH8: =LOOKUP(IH7-'Inputs (values)'!$H$8,'Inputs (values)'!$C$20:$C$25,'Inputs (values)'!$H$20:$H$25) -> 0.015 | II8: =LOOKUP(II7-'Inputs (values)'!$H$8,'Inputs (values)'!$C$20:$C$25,'Inputs (values)'!$H$20:$H$25) -> 0.015 | IJ8: =LOOKUP(IJ7-'Inputs (values)'!$H$8,'Inputs (values)'!$C$20:$C$25,'Inputs (values)'!$H$20:$H$25) -> 0.015 | IK8: =LOOKUP(IK7-'Inputs (values)'!$H$8,'Inputs (values)'!$C$20:$C$25,'Inputs (values)'!$H$20:$H$25) -> 0.015 | IL8: =LOOKUP(IL7-'Inputs (values)'!$H$8,'Inputs (values)'!$C$20:$C$25,'Inputs (values)'!$H$20:$H$25) -> 0.015 | IM8: =LOOKUP(IM7-'Inputs (values)'!$H$8,'Inputs (values)'!$C$20:$C$25,'Inputs (values)'!$H$20:$H$25) -> 0.015 | IN8: =LOOKUP(IN7-'Inputs (values)'!$H$8,'Inputs (values)'!$C$20:$C$25,'Inputs (values)'!$H$20:$H$25) -> 0.015 | IO8: =LOOKUP(IO7-'Inputs (values)'!$H$8,'Inputs (values)'!$C$20:$C$25,'Inputs (values)'!$H$20:$H$25) -> 0.015 | IP8: =LOOKUP(IP7-'Inputs (values)'!$H$8,'Inputs (values)'!$C$20:$C$25,'Inputs (values)'!$H$20:$H$25) -> 0.015 | IQ8: =LOOKUP(IQ7-'Inputs (values)'!$H$8,'Inputs (values)'!$C$20:$C$25,'Inputs (values)'!$H$20:$H$25) -> 0.015 | IR8: =LOOKUP(IR7-'Inputs (values)'!$H$8,'Inputs (values)'!$C$20:$C$25,'Inputs (values)'!$H$20:$H$25) -> 0.015 | IS8: =LOOKUP(IS7-'Inputs (values)'!$H$8,'Inputs (values)'!$C$20:$C$25,'Inputs (values)'!$H$20:$H$25) -> 0.015 | IT8: =LOOKUP(IT7-'Inputs (values)'!$H$8,'Inputs (values)'!$C$20:$C$25,'Inputs (values)'!$H$20:$H$25) -> 0.015 | IU8: =LOOKUP(IU7-'Inputs (values)'!$H$8,'Inputs (values)'!$C$20:$C$25,'Inputs (values)'!$H$20:$H$25) -> 0.015 | IV8: =LOOKUP(IV7-'Inputs (values)'!$H$8,'Inputs (values)'!$C$20:$C$25,'Inputs (values)'!$H$20:$H$25) -> 0.015 | IW8: =LOOKUP(IW7-'Inputs (values)'!$H$8,'Inputs (values)'!$C$20:$C$25,'Inputs (values)'!$H$20:$H$25) -> 0.015 | IX8: =LOOKUP(IX7-'Inputs (values)'!$H$8,'Inputs (values)'!$C$20:$C$25,'Inputs (values)'!$H$20:$H$25) -> 0.015 | IY8: =LOOKUP(IY7-'Inputs (values)'!$H$8,'Inputs (values)'!$C$20:$C$25,'Inputs (values)'!$H$20:$H$25) -> 0.015 | IZ8: =LOOKUP(IZ7-'Inputs (values)'!$H$8,'Inputs (values)'!$C$20:$C$25,'Inputs (values)'!$H$20:$H$25) -> 0.015 | JA8: =LOOKUP(JA7-'Inputs (values)'!$H$8,'Inputs (values)'!$C$20:$C$25,'Inputs (values)'!$H$20:$H$25) -> 0.015 | JB8: =LOOKUP(JB7-'Inputs (values)'!$H$8,'Inputs (values)'!$C$20:$C$25,'Inputs (values)'!$H$20:$H$25) -> 0.015 | JC8: =LOOKUP(JC7-'Inputs (values)'!$H$8,'Inputs (values)'!$C$20:$C$25,'Inputs (values)'!$H$20:$H$25) -> 0.015 | JD8: =LOOKUP(JD7-'Inputs (values)'!$H$8,'Inputs (values)'!$C$20:$C$25,'Inputs (values)'!$H$20:$H$25) -> 0.015 | JE8: =LOOKUP(JE7-'Inputs (values)'!$H$8,'Inputs (values)'!$C$20:$C$25,'Inputs (values)'!$H$20:$H$25) -> 0.015 | JF8: =LOOKUP(JF7-'Inputs (values)'!$H$8,'Inputs (values)'!$C$20:$C$25,'Inputs (values)'!$H$20:$H$25) -> 0.015 | JG8: =LOOKUP(JG7-'Inputs (values)'!$H$8,'Inputs (values)'!$C$20:$C$25,'Inputs (values)'!$H$20:$H$25) -> 0.015 | JH8: =LOOKUP(JH7-'Inputs (values)'!$H$8,'Inputs (values)'!$C$20:$C$25,'Inputs (values)'!$H$20:$H$25) -> 0.015 | JI8: =LOOKUP(JI7-'Inputs (values)'!$H$8,'Inputs (values)'!$C$20:$C$25,'Inputs (values)'!$H$20:$H$25) -> 0.015 | JJ8: =LOOKUP(JJ7-'Inputs (values)'!$H$8,'Inputs (values)'!$C$20:$C$25,'Inputs (values)'!$H$20:$H$25) -> 0.015 | JK8: =LOOKUP(JK7-'Inputs (values)'!$H$8,'Inputs (values)'!$C$20:$C$25,'Inputs (values)'!$H$20:$H$25) -> 0.015 | JL8: =LOOKUP(JL7-'Inputs (values)'!$H$8,'Inputs (values)'!$C$20:$C$25,'Inputs (values)'!$H$20:$H$25) -> 0.015 | JM8: =LOOKUP(JM7-'Inputs (values)'!$H$8,'Inputs (values)'!$C$20:$C$25,'Inputs (values)'!$H$20:$H$25) -> 0.015 | JN8: =LOOKUP(JN7-'Inputs (values)'!$H$8,'Inputs (values)'!$C$20:$C$25,'Inputs (values)'!$H$20:$H$25) -> 0.015 | JO8: =LOOKUP(JO7-'Inputs (values)'!$H$8,'Inputs (values)'!$C$20:$C$25,'Inputs (values)'!$H$20:$H$25) -> 0.015 | JP8: =LOOKUP(JP7-'Inputs (values)'!$H$8,'Inputs (values)'!$C$20:$C$25,'Inputs (values)'!$H$20:$H$25) -> 0.015 | JQ8: =LOOKUP(JQ7-'Inputs (values)'!$H$8,'Inputs (values)'!$C$20:$C$25,'Inputs (values)'!$H$20:$H$25) -> 0.015 | JR8: =LOOKUP(JR7-'Inputs (values)'!$H$8,'Inputs (values)'!$C$20:$C$25,'Inputs (values)'!$H$20:$H$25) -> 0.015 | JS8: =LOOKUP(JS7-'Inputs (values)'!$H$8,'Inputs (values)'!$C$20:$C$25,'Inputs (values)'!$H$20:$H$25) -> 0.015 | JT8: =LOOKUP(JT7-'Inputs (values)'!$H$8,'Inputs (values)'!$C$20:$C$25,'Inputs (values)'!$H$20:$H$25) -> 0.015 | JU8: =LOOKUP(JU7-'Inputs (values)'!$H$8,'Inputs (values)'!$C$20:$C$25,'Inputs (values)'!$H$20:$H$25) -> 0.015 | JV8: =LOOKUP(JV7-'Inputs (values)'!$H$8,'Inputs (values)'!$C$20:$C$25,'Inputs (values)'!$H$20:$H$25) -> 0.015 | JW8: =LOOKUP(JW7-'Inputs (values)'!$H$8,'Inputs (values)'!$C$20:$C$25,'Inputs (values)'!$H$20:$H$25) -> 0.015 | JX8: =LOOKUP(JX7-'Inputs (values)'!$H$8,'Inputs (values)'!$C$20:$C$25,'Inputs (values)'!$H$20:$H$25) -> 0.015 | JY8: =LOOKUP(JY7-'Inputs (values)'!$H$8,'Inputs (values)'!$C$20:$C$25,'Inputs (values)'!$H$20:$H$25) -> 0.015 | JZ8: =LOOKUP(JZ7-'Inputs (values)'!$H$8,'Inputs (values)'!$C$20:$C$25,'Inputs (values)'!$H$20:$H$25) -> 0.015 | KA8: =LOOKUP(KA7-'Inputs (values)'!$H$8,'Inputs (values)'!$C$20:$C$25,'Inputs (values)'!$H$20:$H$25) -> 0.015
C11: Discount factors
H13: Year
H14: ='Inputs (values)'!$H$13 -> 2023 | I14: =H14+1 -> 2024 | J14: =I14+1 -> 2025 | K14: 2026 | L14: 2027 | M14: 2028 | N14: 2029 | O14: 2030 | P14: 2031 | Q14: 2032 | R14: 2033 | S14: 2034 | T14: 2035 | U14: 2036 | V14: 2037 | W14: 2038 | X14: 2039 | Y14: 2040 | Z14: 2041 | AA14: 2042 | AB14: 2043 | AC14: 2044 | AD14: 2045 | AE14: 2046 | AF14: 2047 | AG14: 2048 | AH14: 2049 | AI14: 2050 | AJ14: 2051 | AK14: 2052 | AL14: 2053 | AM14: 2054 | AN14: 2055 | AO14: 2056 | AP14: 2057 | AQ14: 2058 | AR14: 2059 | AS14: 2060 | AT14: 2061 | AU14: 2062 | AV14: 2063 | AW14: 2064 | AX14: 2065 | AY14: 2066 | AZ14: 2067 | BA14: 2068 | BB14: 2069 | BC14: 2070 | BD14: 2071 | BE14: 2072 | BF14: 2073 | BG14: 2074 | BH14: 2075 | BI14: 2076 | BJ14: 2077 | BK14: 2078 | BL14: 2079 | BM14: 2080 | BN14: 2081 | BO14: 2082 | BP14: 2083 | BQ14: 2084 | BR14: 2085 | BS14: 2086 | BT14: 2087 | BU14: 2088 | BV14: =BU14+1 -> 2089 | BW14: 2090 | BX14: 2091 | BY14: 2092 | BZ14: 2093 | CA14: 2094 | CB14: 2095 | CC14: 2096 | CD14: 2097 | CE14: 2098 | CF14: 2099 | CG14: 2100 | CH14: 2101 | CI14: 2102 | CJ14: 2103 | CK14: 2104 | CL14: 2105 | CM14: 2106 | CN14: 2107 | CO14: 2108 | CP14: 2109 | CQ14: 2110 | CR14: 2111 | CS14: 2112 | CT14: 2113 | CU14: 2114 | CV14: 2115 | CW14: 2116 | CX14: 2117 | CY14: 2118 | CZ14: 2119 | DA14: 2120 | DB14: 2121 | DC14: 2122 | DD14: 2123 | DE14: 2124 | DF14: 2125 | DG14: 2126 | DH14: 2127 | DI14: 2128 | DJ14: 2129 | DK14: 2130 | DL14: 2131 | DM14: 2132 | DN14: 2133 | DO14: 2134 | DP14: 2135 | DQ14: 2136 | DR14: 2137 | DS14: 2138 | DT14: 2139 | DU14: 2140 | DV14: 2141 | DW14: 2142 | DX14: 2143 | DY14: 2144 | DZ14: 2145 | EA14: 2146 | EB14: 2147 | EC14: 2148 | ED14: 2149 | EE14: 2150 | EF14: 2151 | EG14: 2152 | EH14: =EG14+1 -> 2153 | EI14: 2154 | EJ14: 2155 | EK14: 2156 | EL14: 2157 | EM14: 2158 | EN14: 2159 | EO14: 2160 | EP14: 2161 | EQ14: 2162 | ER14: 2163 | ES14: 2164 | ET14: 2165 | EU14: 2166 | EV14: 2167 | EW14: 2168 | EX14: 2169 | EY14: 2170 | EZ14: 2171 | FA14: 2172 | FB14: 2173 | FC14: 2174 | FD14: 2175 | FE14: 2176 | FF14: 2177 | FG14: 2178 | FH14: 2179 | FI14: 2180 | FJ14: 2181 | FK14: 2182 | FL14: 2183 | FM14: 2184 | FN14: 2185 | FO14: 2186 | FP14: 2187 | FQ14: 2188 | FR14: 2189 | FS14: 2190 | FT14: 2191 | FU14: 2192 | FV14: 2193 | FW14: 2194 | FX14: 2195 | FY14: 2196 | FZ14: 2197 | GA14: 2198 | GB14: 2199 | GC14: 2200 | GD14: 2201 | GE14: 2202 | GF14: 2203 | GG14: 2204 | GH14: 2205 | GI14: 2206 | GJ14: 2207 | GK14: 2208 | GL14: 2209 | GM14: 2210 | GN14: 2211 | GO14: 2212 | GP14: 2213 | GQ14: 2214 | GR14: 2215 | GS14: 2216 | GT14: =GS14+1 -> 2217 | GU14: 2218 | GV14: 2219 | GW14: 2220 | GX14: 2221 | GY14: 2222 | GZ14: 2223 | HA14: 2224 | HB14: 2225 | HC14: 2226 | HD14: 2227 | HE14: 2228 | HF14: 2229 | HG14: 2230 | HH14: 2231 | HI14: 2232 | HJ14: 2233 | HK14: 2234 | HL14: 2235 | HM14: 2236 | HN14: 2237 | HO14: 2238 | HP14: 2239 | HQ14: 2240 | HR14: 2241 | HS14: 2242 | HT14: 2243 | HU14: 2244 | HV14: 2245 | HW14: 2246 | HX14: 2247 | HY14: 2248 | HZ14: 2249 | IA14: 2250 | IB14: 2251 | IC14: 2252 | ID14: 2253 | IE14: 2254 | IF14: 2255 | IG14: 2256 | IH14: 2257 | II14: 2258 | IJ14: 2259 | IK14: 2260 | IL14: 2261 | IM14: 2262 | IN14: 2263 | IO14: 2264 | IP14: 2265 | IQ14: 2266 | IR14: 2267 | IS14: 2268 | IT14: 2269 | IU14: 2270 | IV14: 2271 | IW14: 2272 | IX14: 2273 | IY14: 2274 | IZ14: 2275 | JA14: 2276 | JB14: 2277 | JC14: 2278 | JD14: 2279 | JE14: 2280 | JF14: =JE14+1 -> 2281 | JG14: 2282 | JH14: 2283 | JI14: 2284 | JJ14: 2285 | JK14: 2286 | JL14: 2287 | JM14: 2288 | JN14: 2289 | JO14: 2290 | JP14: 2291 | JQ14: 2292 | JR14: 2293 | JS14: 2294 | JT14: 2295 | JU14: 2296 | JV14: 2297 | JW14: 2298 | JX14: 2299 | JY14: 2300 | JZ14: 2301 | KA14: 2302
C15: Discount factors | H15: 1 | I15: =H15/(1+I8) -> 0.9661835749 | J15: 0.9335107004 | K15: 0.9019427057 | L15: 0.8714422277 | M15: 0.8419731669 | N15: 0.8135006443 | O15: 0.7859909607 | P15: 0.7594115562 | Q15: 0.7337309722 | R15: 0.7089188137 | S15: 0.6849457137 | T15: 0.6617832983 | U15: 0.6394041529 | V15: 0.6177817903 | W15: 0.5968906186 | X15: 0.5767059117 | Y15: 0.5572037794 | Z15: 0.5383611396 | AA15: 0.5201556904 | AB15: 0.5025658844 | AC15: 0.4855709028 | AD15: 0.4691506308 | AE15: 0.4532856336 | AF15: 0.4379571339 | AG15: 0.4231469893 | AH15: 0.4088376708 | AI15: 0.3950122423 | AJ15: 0.3816543404 | AK15: 0.368748155 | AL15: 0.3562784106 | AM15: 0.3442303484 | AN15: 0.3325897086 | AO15: 0.3229026297 | AP15: 0.3134976988 | AQ15: 0.3043666978 | AR15: 0.2955016484 | AS15: 0.2868948042 | AT15: 0.2785386449 | AU15: 0.2704258688 | AV15: 0.2625493872 | AW15: 0.2549023177 | AX15: 0.2474779783 | AY15: 0.2402698819 | AZ15: 0.23327173 | BA15: 0.2264774077 | BB15: 0.2198809784 | BC15: 0.2134766781 | BD15: 0.2072589107 | BE15: 0.2012222434 | BF15: 0.1953614014 | BG15: 0.1896712635 | BH15: 0.1841468577 | BI15: 0.178783357 | BJ15: 0.1735760748 | BK15: 0.168520461 | BL15: 0.163612098 | BM15: 0.1588466971 | BN15: 0.1542200943 | BO15: 0.1497282469 | BP15: 0.14536723 | BQ15: 0.141133233 | BR15: 0.1370225563 | BS15: 0.1330316081 | BT15: 0.129156901 | BU15: =BT15/(1+BU8) -> 0.1253950495 | BV15: 0.1217427665 | BW15: 0.1181968607 | BX15: 0.1147542337 | BY15: 0.1114118774 | BZ15: 0.1081668713 | CA15: 0.1050163799 | CB15: 0.1019576503 | CC15: 0.09898801004 | CD15: 0.09610486412 | CE15: 0.09330569332 | CF15: 0.09058805177 | CG15: 0.08794956482 | CH15: 0.08580445349 | CI15: 0.08371166194 | CJ15: 0.08166991408 | CK15: 0.07967796496 | CL15: 0.07773459996 | CM15: 0.07583863411 | CN15: 0.07398891133 | CO15: 0.07218430373 | CP15: 0.07042371096 | CQ15: 0.06870605947 | CR15: 0.06703030192 | CS15: 0.06539541651 | CT15: 0.06380040635 | CU15: 0.06224429888 | CV15: 0.06072614525 | CW15: 0.05924501975 | CX15: 0.05780001927 | CY15: 0.05639026271 | CZ15: 0.05501489044 | DA15: 0.05367306385 | DB15: 0.05236396473 | DC15: 0.05108679486 | DD15: 0.04984077547 | DE15: 0.0486251468 | DF15: 0.04743916761 | DG15: 0.04628211474 | DH15: 0.04515328268 | DI15: 0.0440519831 | DJ15: 0.04297754449 | DK15: 0.04192931169 | DL15: 0.04090664555 | DM15: 0.03990892249 | DN15: 0.03893553414 | DO15: 0.03798588697 | DP15: 0.03705940192 | DQ15: 0.03615551407 | DR15: 0.03527367226 | DS15: 0.03441333879 | DT15: 0.03357398906 | DU15: 0.03275511128 | DV15: 0.03195620613 | DW15: 0.03117678647 | DX15: 0.03041637704 | DY15: 0.02967451419 | DZ15: 0.02895074555 | EA15: 0.0282446298 | EB15: 0.02755573639 | EC15: 0.02688364526 | ED15: 0.0262279466 | EE15: 0.02558824058 | EF15: 0.02508651037 | EG15: =EF15/(1+EG8) -> 0.02459461801 | EH15: 0.0241123706 | EI15: 0.02363957902 | EJ15: 0.02317605786 | EK15: 0.02272162536 | EL15: 0.02227610329 | EM15: 0.02183931695 | EN15: 0.02141109505 | EO15: 0.02099126966 | EP15: 0.02057967613 | EQ15: 0.02017615307 | ER15: 0.01978054223 | ES15: 0.01939268846 | ET15: 0.01901243967 | EU15: 0.01863964673 | EV15: 0.01827416346 | EW15: 0.01791584653 | EX15: 0.01756455542 | EY15: 0.01722015238 | EZ15: 0.01688250233 | FA15: 0.01655147287 | FB15: 0.01622693419 | FC15: 0.01590875901 | FD15: 0.01559682256 | FE15: 0.01529100251 | FF15: 0.01499117893 | FG15: 0.01469723424 | FH15: 0.01440905318 | FI15: 0.01412652272 | FJ15: 0.01384953208 | FK15: 0.01357797263 | FL15: 0.01331173787 | FM15: 0.01305072341 | FN15: 0.01279482687 | FO15: 0.01254394791 | FP15: 0.01229798815 | FQ15: 0.01205685112 | FR15: 0.01182044228 | FS15: 0.0115886689 | FT15: 0.0113614401 | FU15: 0.01113866676 | FV15: 0.01092026153 | FW15: 0.01070613876 | FX15: 0.01049621447 | FY15: 0.01029040634 | FZ15: 0.01008863367 | GA15: 0.009890817321 | GB15: 0.009696879727 | GC15: 0.00950674483 | GD15: 0.009320338069 | GE15: 0.009137586342 | GF15: 0.008958417982 | GG15: 0.008782762728 | GH15: 0.008610551694 | GI15: 0.008441717347 | GJ15: 0.008276193478 | GK15: 0.008113915174 | GL15: 0.007954818798 | GM15: 0.007798841959 | GN15: 0.007645923489 | GO15: 0.007496003421 | GP15: 0.007349022961 | GQ15: 0.007204924472 | GR15: 0.007063651443 | GS15: =GR15/(1+GS8) -> 0.006925148474 | GT15: 0.006789361249 | GU15: 0.006656236518 | GV15: 0.006525722077 | GW15: 0.006397766742 | GX15: 0.006272320335 | GY15: 0.006149333662 | GZ15: 0.006028758492 | HA15: 0.005910547541 | HB15: 0.005794654452 | HC15: 0.005709019165 | HD15: 0.005624649424 | HE15: 0.005541526526 | HF15: 0.005459632045 | HG15: 0.005378947828 | HH15: 0.005299455988 | HI15: 0.005221138904 | HJ15: 0.005143979216 | HK15: 0.005067959819 | HL15: 0.004993063861 | HM15: 0.00491927474 | HN15: 0.004846576098 | HO15: 0.004774951821 | HP15: 0.00470438603 | HQ15: 0.004634863084 | HR15: 0.004566367571 | HS15: 0.004498884306 | HT15: 0.004432398331 | HU15: 0.004366894907 | HV15: 0.004302359515 | HW15: 0.004238777847 | HX15: 0.00417613581 | HY15: 0.004114419517 | HZ15: 0.004053615288 | IA15: 0.003993709643 | IB15: 0.003934689304 | IC15: 0.003876541186 | ID15: 0.0038192524 | IE15: 0.003762810246 | IF15: 0.003707202213 | IG15: 0.003652415973 | IH15: 0.003598439383 | II15: 0.003545260475 | IJ15: 0.003492867463 | IK15: 0.003441248732 | IL15: 0.00339039284 | IM15: 0.003340288512 | IN15: 0.003290924643 | IO15: 0.003242290288 | IP15: 0.003194374668 | IQ15: 0.003147167161 | IR15: 0.003100657301 | IS15: 0.00305483478 | IT15: 0.003009689438 | IU15: 0.002965211269 | IV15: 0.002921390413 | IW15: 0.002878217155 | IX15: 0.002835681927 | IY15: =IX15/(1+IY8) -> 0.002793775297 | IZ15: 0.002752487977 | JA15: 0.002711810815 | JB15: 0.002671734793 | JC15: 0.002632251028 | JD15: 0.002593350766 | JE15: 0.002555025386 | JF15: 0.00251726639 | JG15: 0.002480065409 | JH15: 0.002443414196 | JI15: 0.002407304626 | JJ15: 0.002371728696 | JK15: 0.002336678518 | JL15: 0.002302146323 | JM15: 0.002268124456 | JN15: 0.002234605376 | JO15: 0.002201581651 | JP15: 0.002169045962 | JQ15: 0.002136991095 | JR15: 0.002105409946 | JS15: 0.002074295513 | JT15: 0.0020436409 | JU15: 0.00201343931 | JV15: 0.001983684049 | JW15: 0.001954368522 | JX15: 0.001925486228 | JY15: 0.001897030767 | JZ15: 0.001868995829 | KA15: 0.001841375201
C18: Uprating indices
H20: Year
H21: ='Inputs (values)'!$H$8 -> 2025 | I21: =H21+1 -> 2026 | J21: =I21+1 -> 2027 | K21: 2028 | L21: 2029 | M21: 2030 | N21: 2031 | O21: 2032 | P21: 2033 | Q21: 2034 | R21: 2035 | S21: 2036 | T21: 2037 | U21: 2038 | V21: 2039 | W21: 2040 | X21: 2041 | Y21: 2042 | Z21: 2043 | AA21: 2044 | AB21: 2045 | AC21: 2046 | AD21: 2047 | AE21: 2048 | AF21: 2049 | AG21: 2050 | AH21: 2051 | AI21: 2052 | AJ21: 2053 | AK21: 2054 | AL21: 2055 | AM21: 2056 | AN21: 2057 | AO21: 2058 | AP21: 2059 | AQ21: 2060 | AR21: 2061 | AS21: 2062 | AT21: 2063 | AU21: 2064 | AV21: 2065 | AW21: 2066 | AX21: 2067 | AY21: 2068 | AZ21: 2069 | BA21: 2070 | BB21: 2071 | BC21: 2072 | BD21: 2073 | BE21: 2074 | BF21: 2075 | BG21: 2076 | BH21: 2077 | BI21: 2078 | BJ21: 2079 | BK21: 2080 | BL21: 2081 | BM21: 2082 | BN21: 2083 | BO21: 2084 | BP21: 2085 | BQ21: 2086 | BR21: 2087 | BS21: 2088 | BT21: 2089 | BU21: 2090 | BV21: =BU21+1 -> 2091 | BW21: 2092 | BX21: 2093 | BY21: 2094 | BZ21: 2095 | CA21: 2096 | CB21: 2097 | CC21: 2098 | CD21: 2099 | CE21: 2100 | CF21: 2101 | CG21: 2102 | CH21: 2103 | CI21: 2104 | CJ21: 2105 | CK21: 2106 | CL21: 2107 | CM21: 2108 | CN21: 2109 | CO21: 2110 | CP21: 2111 | CQ21: 2112 | CR21: 2113 | CS21: 2114 | CT21: 2115 | CU21: 2116 | CV21: 2117 | CW21: 2118 | CX21: 2119 | CY21: 2120 | CZ21: 2121 | DA21: 2122 | DB21: 2123 | DC21: 2124 | DD21: 2125 | DE21: 2126 | DF21: 2127 | DG21: 2128 | DH21: 2129 | DI21: 2130 | DJ21: 2131 | DK21: 2132 | DL21: 2133 | DM21: 2134 | DN21: 2135 | DO21: 2136 | DP21: 2137 | DQ21: 2138 | DR21: 2139 | DS21: 2140 | DT21: 2141 | DU21: 2142 | DV21: 2143 | DW21: 2144 | DX21: 2145 | DY21: 2146 | DZ21: 2147 | EA21: 2148 | EB21: 2149 | EC21: 2150 | ED21: 2151 | EE21: 2152 | EF21: 2153 | EG21: 2154 | EH21: =EG21+1 -> 2155 | EI21: 2156 | EJ21: 2157 | EK21: 2158 | EL21: 2159 | EM21: 2160 | EN21: 2161 | EO21: 2162 | EP21: 2163 | EQ21: 2164 | ER21: 2165 | ES21: 2166 | ET21: 2167 | EU21: 2168 | EV21: 2169 | EW21: 2170 | EX21: 2171 | EY21: 2172 | EZ21: 2173 | FA21: 2174 | FB21: 2175 | FC21: 2176 | FD21: 2177 | FE21: 2178 | FF21: 2179 | FG21: 2180 | FH21: 2181 | FI21: 2182 | FJ21: 2183 | FK21: 2184 | FL21: 2185 | FM21: 2186 | FN21: 2187 | FO21: 2188 | FP21: 2189 | FQ21: 2190 | FR21: 2191 | FS21: 2192 | FT21: 2193 | FU21: 2194 | FV21: 2195 | FW21: 2196 | FX21: 2197 | FY21: 2198 | FZ21: 2199 | GA21: 2200 | GB21: 2201 | GC21: 2202 | GD21: 2203 | GE21: 2204 | GF21: 2205 | GG21: 2206 | GH21: 2207 | GI21: 2208 | GJ21: 2209 | GK21: 2210 | GL21: 2211 | GM21: 2212 | GN21: 2213 | GO21: 2214 | GP21: 2215 | GQ21: 2216 | GR21: 2217 | GS21: 2218 | GT21: =GS21+1 -> 2219 | GU21: 2220 | GV21: 2221 | GW21: 2222 | GX21: 2223 | GY21: 2224 | GZ21: 2225 | HA21: 2226 | HB21: 2227 | HC21: 2228 | HD21: 2229 | HE21: 2230 | HF21: 2231 | HG21: 2232 | HH21: 2233 | HI21: 2234 | HJ21: 2235 | HK21: 2236 | HL21: 2237 | HM21: 2238 | HN21: 2239 | HO21: 2240 | HP21: 2241 | HQ21: 2242 | HR21: 2243 | HS21: 2244 | HT21: 2245 | HU21: 2246 | HV21: 2247 | HW21: 2248 | HX21: 2249 | HY21: 2250 | HZ21: 2251 | IA21: 2252 | IB21: 2253 | IC21: 2254 | ID21: 2255 | IE21: 2256 | IF21: 2257 | IG21: 2258 | IH21: 2259 | II21: 2260 | IJ21: 2261 | IK21: 2262 | IL21: 2263 | IM21: 2264 | IN21: 2265 | IO21: 2266 | IP21: 2267 | IQ21: 2268 | IR21: 2269 | IS21: 2270 | IT21: 2271 | IU21: 2272 | IV21: 2273 | IW21: 2274 | IX21: 2275 | IY21: 2276 | IZ21: 2277 | JA21: 2278 | JB21: 2279 | JC21: 2280 | JD21: 2281 | JE21: 2282 | JF21: =JE21+1 -> 2283 | JG21: 2284 | JH21: 2285 | JI21: 2286 | JJ21: 2287 | JK21: 2288 | JL21: 2289 | JM21: 2290 | JN21: 2291 | JO21: 2292 | JP21: 2293 | JQ21: 2294 | JR21: 2295 | JS21: 2296 | JT21: 2297 | JU21: 2298 | JV21: 2299 | JW21: 2300 | JX21: 2301 | JY21: 2302 | JZ21: 2303 | KA21: 2304
C22: Central series | H22: =(INDEX('Inputs (values)'!$H$84:$KV$86,1,MATCH('Calculations (values)'!H$21,'Inputs (values)'!$H$83:'Inputs (values)'!$KV$83,0))/INDEX('Inputs (values)'!$H$84:$KV$86,1,MATCH('Inputs (values)'!$H$10,'Inputs (values)'!$H$83:$KV$83,0)))*(INDEX('Inputs (values)'!$H$62:$KV$62,1,MATCH('Inputs (values)'!$H$12,'Inputs (values)'!$H$83:$KV$83,0))/INDEX('Inputs (values)'!$H$62:$KV$62,1,MATCH('Inputs (values)'!$H$11,'Inputs (values)'!$H$83:$KV$83,0))) -> 1.730439305 | I22: =(INDEX('Inputs (values)'!$H$84:$KV$86,1,MATCH('Calculations (values)'!I$21,'Inputs (values)'!$H$83:'Inputs (values)'!$KV$83,0))/INDEX('Inputs (values)'!$H$84:$KV$86,1,MATCH('Inputs (values)'!$H$10,'Inputs (values)'!$H$83:$KV$83,0)))*(INDEX('Inputs (values)'!$H$62:$KV$62,1,MATCH('Inputs (values)'!$H$12,'Inputs (values)'!$H$83:$KV$83,0))/INDEX('Inputs (values)'!$H$62:$KV$62,1,MATCH('Inputs (values)'!$H$11,'Inputs (values)'!$H$83:$KV$83,0))) -> 1.7541717 | J22: =(INDEX('Inputs (values)'!$H$84:$KV$86,1,MATCH('Calculations (values)'!J$21,'Inputs (values)'!$H$83:'Inputs (values)'!$KV$83,0))/INDEX('Inputs (values)'!$H$84:$KV$86,1,MATCH('Inputs (values)'!$H$10,'Inputs (values)'!$H$83:$KV$83,0)))*(INDEX('Inputs (values)'!$H$62:$KV$62,1,MATCH('Inputs (values)'!$H$12,'Inputs (values)'!$H$83:$KV$83,0))/INDEX('Inputs (values)'!$H$62:$KV$62,1,MATCH('Inputs (values)'!$H$11,'Inputs (values)'!$H$83:$KV$83,0))) -> 1.781232222 | K22: =(INDEX('Inputs (values)'!$H$84:$KV$86,1,MATCH('Calculations (values)'!K$21,'Inputs (values)'!$H$83:'Inputs (values)'!$KV$83,0))/INDEX('Inputs (values)'!$H$84:$KV$86,1,MATCH('Inputs (values)'!$H$10,'Inputs (values)'!$H$83:$KV$83,0)))*(INDEX('Inputs (values)'!$H$62:$KV$62,1,MATCH('Inputs (values)'!$H$12,'Inputs (values)'!$H$83:$KV$83,0))/INDEX('Inputs (values)'!$H$62:$KV$62,1,MATCH('Inputs (values)'!$H$11,'Inputs (values)'!$H$83:$KV$83,0))) -> 1.807370667 | L22: =(INDEX('Inputs (values)'!$H$84:$KV$86,1,MATCH('Calculations (values)'!L$21,'Inputs (values)'!$H$83:'Inputs (values)'!$KV$83,0))/INDEX('Inputs (values)'!$H$84:$KV$86,1,MATCH('Inputs (values)'!$H$10,'Inputs (values)'!$H$83:$KV$83,0)))*(INDEX('Inputs (values)'!$H$62:$KV$62,1,MATCH('Inputs (values)'!$H$12,'Inputs (values)'!$H$83:$KV$83,0))/INDEX('Inputs (values)'!$H$62:$KV$62,1,MATCH('Inputs (values)'!$H$11,'Inputs (values)'!$H$83:$KV$83,0))) -> 1.834898463 | M22: =(INDEX('Inputs (values)'!$H$84:$KV$86,1,MATCH('Calculations (values)'!M$21,'Inputs (values)'!$H$83:'Inputs (values)'!$KV$83,0))/INDEX('Inputs (values)'!$H$84:$KV$86,1,MATCH('Inputs (values)'!$H$10,'Inputs (values)'!$H$83:$KV$83,0)))*(INDEX('Inputs (values)'!$H$62:$KV$62,1,MATCH('Inputs (values)'!$H$12,'Inputs (values)'!$H$83:$KV$83,0))/INDEX('Inputs (values)'!$H$62:$KV$62,1,MATCH('Inputs (values)'!$H$11,'Inputs (values)'!$H$83:$KV$83,0))) -> 1.863327714 | N22: =(INDEX('Inputs (values)'!$H$84:$KV$86,1,MATCH('Calculations (values)'!N$21,'Inputs (values)'!$H$83:'Inputs (values)'!$KV$83,0))/INDEX('Inputs (values)'!$H$84:$KV$86,1,MATCH('Inputs (values)'!$H$10,'Inputs (values)'!$H$83:$KV$83,0)))*(INDEX('Inputs (values)'!$H$62:$KV$62,1,MATCH('Inputs (values)'!$H$12,'Inputs (values)'!$H$83:$KV$83,0))/INDEX('Inputs (values)'!$H$62:$KV$62,1,MATCH('Inputs (values)'!$H$11,'Inputs (values)'!$H$83:$KV$83,0))) -> 1.900266214 | O22: =(INDEX('Inputs (values)'!$H$84:$KV$86,1,MATCH('Calculations (values)'!O$21,'Inputs (values)'!$H$83:'Inputs (values)'!$KV$83,0))/INDEX('Inputs (values)'!$H$84:$KV$86,1,MATCH('Inputs (values)'!$H$10,'Inputs (values)'!$H$83:$KV$83,0)))*(INDEX('Inputs (values)'!$H$62:$KV$62,1,MATCH('Inputs (values)'!$H$12,'Inputs (values)'!$H$83:$KV$83,0))/INDEX('Inputs (values)'!$H$62:$KV$62,1,MATCH('Inputs (values)'!$H$11,'Inputs (values)'!$H$83:$KV$83,0))) -> 1.938508371 | P22: =(INDEX('Inputs (values)'!$H$84:$KV$86,1,MATCH('Calculations (values)'!P$21,'Inputs (values)'!$H$83:'Inputs (values)'!$KV$83,0))/INDEX('Inputs (values)'!$H$84:$KV$86,1,MATCH('Inputs (values)'!$H$10,'Inputs (values)'!$H$83:$KV$83,0)))*(INDEX('Inputs (values)'!$H$62:$KV$62,1,MATCH('Inputs (values)'!$H$12,'Inputs (values)'!$H$83:$KV$83,0))/INDEX('Inputs (values)'!$H$62:$KV$62,1,MATCH('Inputs (values)'!$H$11,'Inputs (values)'!$H$83:$KV$83,0))) -> 1.978230688 | Q22: =(INDEX('Inputs (values)'!$H$84:$KV$86,1,MATCH('Calculations (values)'!Q$21,'Inputs (values)'!$H$83:'Inputs (values)'!$KV$83,0))/INDEX('Inputs (values)'!$H$84:$KV$86,1,MATCH('Inputs (values)'!$H$10,'Inputs (values)'!$H$83:$KV$83,0)))*(INDEX('Inputs (values)'!$H$62:$KV$62,1,MATCH('Inputs (values)'!$H$12,'Inputs (values)'!$H$83:$KV$83,0))/INDEX('Inputs (values)'!$H$62:$KV$62,1,MATCH('Inputs (values)'!$H$11,'Inputs (values)'!$H$83:$KV$83,0))) -> 2.019217899 | R22: =(INDEX('Inputs (values)'!$H$84:$KV$86,1,MATCH('Calculations (values)'!R$21,'Inputs (values)'!$H$83:'Inputs (values)'!$KV$83,0))/INDEX('Inputs (values)'!$H$84:$KV$86,1,MATCH('Inputs (values)'!$H$10,'Inputs (values)'!$H$83:$KV$83,0)))*(INDEX('Inputs (values)'!$H$62:$KV$62,1,MATCH('Inputs (values)'!$H$12,'Inputs (values)'!$H$83:$KV$83,0))/INDEX('Inputs (values)'!$H$62:$KV$62,1,MATCH('Inputs (values)'!$H$11,'Inputs (values)'!$H$83:$KV$83,0))) -> 2.061171759 | S22: =(INDEX('Inputs (values)'!$H$84:$KV$86,1,MATCH('Calculations (values)'!S$21,'Inputs (values)'!$H$83:'Inputs (values)'!$KV$83,0))/INDEX('Inputs (values)'!$H$84:$KV$86,1,MATCH('Inputs (values)'!$H$10,'Inputs (values)'!$H$83:$KV$83,0)))*(INDEX('Inputs (values)'!$H$62:$KV$62,1,MATCH('Inputs (values)'!$H$12,'Inputs (values)'!$H$83:$KV$83,0))/INDEX('Inputs (values)'!$H$62:$KV$62,1,MATCH('Inputs (values)'!$H$11,'Inputs (values)'!$H$83:$KV$83,0))) -> 2.104362404 | T22: =(INDEX('Inputs (values)'!$H$84:$KV$86,1,MATCH('Calculations (values)'!T$21,'Inputs (values)'!$H$83:'Inputs (values)'!$KV$83,0))/INDEX('Inputs (values)'!$H$84:$KV$86,1,MATCH('Inputs (values)'!$H$10,'Inputs (values)'!$H$83:$KV$83,0)))*(INDEX('Inputs (values)'!$H$62:$KV$62,1,MATCH('Inputs (values)'!$H$12,'Inputs (values)'!$H$83:$KV$83,0))/INDEX('Inputs (values)'!$H$62:$KV$62,1,MATCH('Inputs (values)'!$H$11,'Inputs (values)'!$H$83:$KV$83,0))) -> 2.149809216 | U22: =(INDEX('Inputs (values)'!$H$84:$KV$86,1,MATCH('Calculations (values)'!U$21,'Inputs (values)'!$H$83:'Inputs (values)'!$KV$83,0))/INDEX('Inputs (values)'!$H$84:$KV$86,1,MATCH('Inputs (values)'!$H$10,'Inputs (values)'!$H$83:$KV$83,0)))*(INDEX('Inputs (values)'!$H$62:$KV$62,1,MATCH('Inputs (values)'!$H$12,'Inputs (values)'!$H$83:$KV$83,0))/INDEX('Inputs (values)'!$H$62:$KV$62,1,MATCH('Inputs (values)'!$H$11,'Inputs (values)'!$H$83:$KV$83,0))) -> 2.194813286 | V22: =(INDEX('Inputs (values)'!$H$84:$KV$86,1,MATCH('Calculations (values)'!V$21,'Inputs (values)'!$H$83:'Inputs (values)'!$KV$83,0))/INDEX('Inputs (values)'!$H$84:$KV$86,1,MATCH('Inputs (values)'!$H$10,'Inputs (values)'!$H$83:$KV$83,0)))*(INDEX('Inputs (values)'!$H$62:$KV$62,1,MATCH('Inputs (values)'!$H$12,'Inputs (values)'!$H$83:$KV$83,0))/INDEX('Inputs (values)'!$H$62:$KV$62,1,MATCH('Inputs (values)'!$H$11,'Inputs (values)'!$H$83:$KV$83,0))) -> 2.239510337 | W22: =(INDEX('Inputs (values)'!$H$84:$KV$86,1,MATCH('Calculations (values)'!W$21,'Inputs (values)'!$H$83:'Inputs (values)'!$KV$83,0))/INDEX('Inputs (values)'!$H$84:$KV$86,1,MATCH('Inputs (values)'!$H$10,'Inputs (values)'!$H$83:$KV$83,0)))*(INDEX('Inputs (values)'!$H$62:$KV$62,1,MATCH('Inputs (values)'!$H$12,'Inputs (values)'!$H$83:$KV$83,0))/INDEX('Inputs (values)'!$H$62:$KV$62,1,MATCH('Inputs (values)'!$H$11,'Inputs (values)'!$H$83:$KV$83,0))) -> 2.283574351 | X22: =(INDEX('Inputs (values)'!$H$84:$KV$86,1,MATCH('Calculations (values)'!X$21,'Inputs (values)'!$H$83:'Inputs (values)'!$KV$83,0))/INDEX('Inputs (values)'!$H$84:$KV$86,1,MATCH('Inputs (values)'!$H$10,'Inputs (values)'!$H$83:$KV$83,0)))*(INDEX('Inputs (values)'!$H$62:$KV$62,1,MATCH('Inputs (values)'!$H$12,'Inputs (values)'!$H$83:$KV$83,0))/INDEX('Inputs (values)'!$H$62:$KV$62,1,MATCH('Inputs (values)'!$H$11,'Inputs (values)'!$H$83:$KV$83,0))) -> 2.327359329 | Y22: =(INDEX('Inputs (values)'!$H$84:$KV$86,1,MATCH('Calculations (values)'!Y$21,'Inputs (values)'!$H$83:'Inputs (values)'!$KV$83,0))/INDEX('Inputs (values)'!$H$84:$KV$86,1,MATCH('Inputs (values)'!$H$10,'Inputs (values)'!$H$83:$KV$83,0)))*(INDEX('Inputs (values)'!$H$62:$KV$62,1,MATCH('Inputs (values)'!$H$12,'Inputs (values)'!$H$83:$KV$83,0))/INDEX('Inputs (values)'!$H$62:$KV$62,1,MATCH('Inputs (values)'!$H$11,'Inputs (values)'!$H$83:$KV$83,0))) -> 2.370854978 | Z22: =(INDEX('Inputs (values)'!$H$84:$KV$86,1,MATCH('Calculations (values)'!Z$21,'Inputs (values)'!$H$83:'Inputs (values)'!$KV$83,0))/INDEX('Inputs (values)'!$H$84:$KV$86,1,MATCH('Inputs (values)'!$H$10,'Inputs (values)'!$H$83:$KV$83,0)))*(INDEX('Inputs (values)'!$H$62:$KV$62,1,MATCH('Inputs (values)'!$H$12,'Inputs (values)'!$H$83:$KV$83,0))/INDEX('Inputs (values)'!$H$62:$KV$62,1,MATCH('Inputs (values)'!$H$11,'Inputs (values)'!$H$83:$KV$83,0))) -> 2.414401851 | AA22: =(INDEX('Inputs (values)'!$H$84:$KV$86,1,MATCH('Calculations (values)'!AA$21,'Inputs (values)'!$H$83:'Inputs (values)'!$KV$83,0))/INDEX('Inputs (values)'!$H$84:$KV$86,1,MATCH('Inputs (values)'!$H$10,'Inputs (values)'!$H$83:$KV$83,0)))*(INDEX('Inputs (values)'!$H$62:$KV$62,1,MATCH('Inputs (values)'!$H$12,'Inputs (values)'!$H$83:$KV$83,0))/INDEX('Inputs (values)'!$H$62:$KV$62,1,MATCH('Inputs (values)'!$H$11,'Inputs (values)'!$H$83:$KV$83,0))) -> 2.458195632 | AB22: =(INDEX('Inputs (values)'!$H$84:$KV$86,1,MATCH('Calculations (values)'!AB$21,'Inputs (values)'!$H$83:'Inputs (values)'!$KV$83,0))/INDEX('Inputs (values)'!$H$84:$KV$86,1,MATCH('Inputs (values)'!$H$10,'Inputs (values)'!$H$83:$KV$83,0)))*(INDEX('Inputs (values)'!$H$62:$KV$62,1,MATCH('Inputs (values)'!$H$12,'Inputs (values)'!$H$83:$KV$83,0))/INDEX('Inputs (values)'!$H$62:$KV$62,1,MATCH('Inputs (values)'!$H$11,'Inputs (values)'!$H$83:$KV$83,0))) -> 2.501998229 | AC22: =(INDEX('Inputs (values)'!$H$84:$KV$86,1,MATCH('Calculations (values)'!AC$21,'Inputs (values)'!$H$83:'Inputs (values)'!$KV$83,0))/INDEX('Inputs (values)'!$H$84:$KV$86,1,MATCH('Inputs (values)'!$H$10,'Inputs (values)'!$H$83:$KV$83,0)))*(INDEX('Inputs (values)'!$H$62:$KV$62,1,MATCH('Inputs (values)'!$H$12,'Inputs (values)'!$H$83:$KV$83,0))/INDEX('Inputs (values)'!$H$62:$KV$62,1,MATCH('Inputs (values)'!$H$11,'Inputs (values)'!$H$83:$KV$83,0))) -> 2.546249897 | AD22: =(INDEX('Inputs (values)'!$H$84:$KV$86,1,MATCH('Calculations (values)'!AD$21,'Inputs (values)'!$H$83:'Inputs (values)'!$KV$83,0))/INDEX('Inputs (values)'!$H$84:$KV$86,1,MATCH('Inputs (values)'!$H$10,'Inputs (values)'!$H$83:$KV$83,0)))*(INDEX('Inputs (values)'!$H$62:$KV$62,1,MATCH('Inputs (values)'!$H$12,'Inputs (values)'!$H$83:$KV$83,0))/INDEX('Inputs (values)'!$H$62:$KV$62,1,MATCH('Inputs (values)'!$H$11,'Inputs (values)'!$H$83:$KV$83,0))) -> 2.590850722 | AE22: =(INDEX('Inputs (values)'!$H$84:$KV$86,1,MATCH('Calculations (values)'!AE$21,'Inputs (values)'!$H$83:'Inputs (values)'!$KV$83,0))/INDEX('Inputs (values)'!$H$84:$KV$86,1,MATCH('Inputs (values)'!$H$10,'Inputs (values)'!$H$83:$KV$83,0)))*(INDEX('Inputs (values)'!$H$62:$KV$62,1,MATCH('Inputs (values)'!$H$12,'Inputs (values)'!$H$83:$KV$83,0))/INDEX('Inputs (values)'!$H$62:$KV$62,1,MATCH('Inputs (values)'!$H$11,'Inputs (values)'!$H$83:$KV$83,0))) -> 2.635823499 | AF22: =(INDEX('Inputs (values)'!$H$84:$KV$86,1,MATCH('Calculations (values)'!AF$21,'Inputs (values)'!$H$83:'Inputs (values)'!$KV$83,0))/INDEX('Inputs (values)'!$H$84:$KV$86,1,MATCH('Inputs (values)'!$H$10,'Inputs (values)'!$H$83:$KV$83,0)))*(INDEX('Inputs (values)'!$H$62:$KV$62,1,MATCH('Inputs (values)'!$H$12,'Inputs (values)'!$H$83:$KV$83,0))/INDEX('Inputs (values)'!$H$62:$KV$62,1,MATCH('Inputs (values)'!$H$11,'Inputs (values)'!$H$83:$KV$83,0))) -> 2.681078753 | AG22: =(INDEX('Inputs (values)'!$H$84:$KV$86,1,MATCH('Calculations (values)'!AG$21,'Inputs (values)'!$H$83:'Inputs (values)'!$KV$83,0))/INDEX('Inputs (values)'!$H$84:$KV$86,1,MATCH('Inputs (values)'!$H$10,'Inputs (values)'!$H$83:$KV$83,0)))*(INDEX('Inputs (values)'!$H$62:$KV$62,1,MATCH('Inputs (values)'!$H$12,'Inputs (values)'!$H$83:$KV$83,0))/INDEX('Inputs (values)'!$H$62:$KV$62,1,MATCH('Inputs (values)'!$H$11,'Inputs (values)'!$H$83:$KV$83,0))) -> 2.726737342 | AH22: =(INDEX('Inputs (values)'!$H$84:$KV$86,1,MATCH('Calculations (values)'!AH$21,'Inputs (values)'!$H$83:'Inputs (values)'!$KV$83,0))/INDEX('Inputs (values)'!$H$84:$KV$86,1,MATCH('Inputs (values)'!$H$10,'Inputs (values)'!$H$83:$KV$83,0)))*(INDEX('Inputs (values)'!$H$62:$KV$62,1,MATCH('Inputs (values)'!$H$12,'Inputs (values)'!$H$83:$KV$83,0))/INDEX('Inputs (values)'!$H$62:$KV$62,1,MATCH('Inputs (values)'!$H$11,'Inputs (values)'!$H$83:$KV$83,0))) -> 2.772962677 | AI22: =(INDEX('Inputs (values)'!$H$84:$KV$86,1,MATCH('Calculations (values)'!AI$21,'Inputs (values)'!$H$83:'Inputs (values)'!$KV$83,0))/INDEX('Inputs (values)'!$H$84:$KV$86,1,MATCH('Inputs (values)'!$H$10,'Inputs (values)'!$H$83:$KV$83,0)))*(INDEX('Inputs (values)'!$H$62:$KV$62,1,MATCH('Inputs (values)'!$H$12,'Inputs (values)'!$H$83:$KV$83,0))/INDEX('Inputs (values)'!$H$62:$KV$62,1,MATCH('Inputs (values)'!$H$11,'Inputs (values)'!$H$83:$KV$83,0))) -> 2.819678913 | AJ22: =(INDEX('Inputs (values)'!$H$84:$KV$86,1,MATCH('Calculations (values)'!AJ$21,'Inputs (values)'!$H$83:'Inputs (values)'!$KV$83,0))/INDEX('Inputs (values)'!$H$84:$KV$86,1,MATCH('Inputs (values)'!$H$10,'Inputs (values)'!$H$83:$KV$83,0)))*(INDEX('Inputs (values)'!$H$62:$KV$62,1,MATCH('Inputs (values)'!$H$12,'Inputs (values)'!$H$83:$KV$83,0))/INDEX('Inputs (values)'!$H$62:$KV$62,1,MATCH('Inputs (values)'!$H$11,'Inputs (values)'!$H$83:$KV$83,0))) -> 2.866664883 | AK22: =(INDEX('Inputs (values)'!$H$84:$KV$86,1,MATCH('Calculations (values)'!AK$21,'Inputs (values)'!$H$83:'Inputs (values)'!$KV$83,0))/INDEX('Inputs (values)'!$H$84:$KV$86,1,MATCH('Inputs (values)'!$H$10,'Inputs (values)'!$H$83:$KV$83,0)))*(INDEX('Inputs (values)'!$H$62:$KV$62,1,MATCH('Inputs (values)'!$H$12,'Inputs (values)'!$H$83:$KV$83,0))/INDEX('Inputs (values)'!$H$62:$KV$62,1,MATCH('Inputs (values)'!$H$11,'Inputs (values)'!$H$83:$KV$83,0))) -> 2.913917293 | AL22: =(INDEX('Inputs (values)'!$H$84:$KV$86,1,MATCH('Calculations (values)'!AL$21,'Inputs (values)'!$H$83:'Inputs (values)'!$KV$83,0))/INDEX('Inputs (values)'!$H$84:$KV$86,1,MATCH('Inputs (values)'!$H$10,'Inputs (values)'!$H$83:$KV$83,0)))*(INDEX('Inputs (values)'!$H$62:$KV$62,1,MATCH('Inputs (values)'!$H$12,'Inputs (values)'!$H$83:$KV$83,0))/INDEX('Inputs (values)'!$H$62:$KV$62,1,MATCH('Inputs (values)'!$H$11,'Inputs (values)'!$H$83:$KV$83,0))) -> 2.961393411 | AM22: =(INDEX('Inputs (values)'!$H$84:$KV$86,1,MATCH('Calculations (values)'!AM$21,'Inputs (values)'!$H$83:'Inputs (values)'!$KV$83,0))/INDEX('Inputs (values)'!$H$84:$KV$86,1,MATCH('Inputs (values)'!$H$10,'Inputs (values)'!$H$83:$KV$83,0)))*(INDEX('Inputs (values)'!$H$62:$KV$62,1,MATCH('Inputs (values)'!$H$12,'Inputs (values)'!$H$83:$KV$83,0))/INDEX('Inputs (values)'!$H$62:$KV$62,1,MATCH('Inputs (values)'!$H$11,'Inputs (values)'!$H$83:$KV$83,0))) -> 3.008920407 | AN22: =(INDEX('Inputs (values)'!$H$84:$KV$86,1,MATCH('Calculations (values)'!AN$21,'Inputs (values)'!$H$83:'Inputs (values)'!$KV$83,0))/INDEX('Inputs (values)'!$H$84:$KV$86,1,MATCH('Inputs (values)'!$H$10,'Inputs (values)'!$H$83:$KV$83,0)))*(INDEX('Inputs (values)'!$H$62:$KV$62,1,MATCH('Inputs (values)'!$H$12,'Inputs (values)'!$H$83:$KV$83,0))/INDEX('Inputs (values)'!$H$62:$KV$62,1,MATCH('Inputs (values)'!$H$11,'Inputs (values)'!$H$83:$KV$83,0))) -> 3.056580626 | AO22: =(INDEX('Inputs (values)'!$H$84:$KV$86,1,MATCH('Calculations (values)'!AO$21,'Inputs (values)'!$H$83:'Inputs (values)'!$KV$83,0))/INDEX('Inputs (values)'!$H$84:$KV$86,1,MATCH('Inputs (values)'!$H$10,'Inputs (values)'!$H$83:$KV$83,0)))*(INDEX('Inputs (values)'!$H$62:$KV$62,1,MATCH('Inputs (values)'!$H$12,'Inputs (values)'!$H$83:$KV$83,0))/INDEX('Inputs (values)'!$H$62:$KV$62,1,MATCH('Inputs (values)'!$H$11,'Inputs (values)'!$H$83:$KV$83,0))) -> 3.104394416 | AP22: =(INDEX('Inputs (values)'!$H$84:$KV$86,1,MATCH('Calculations (values)'!AP$21,'Inputs (values)'!$H$83:'Inputs (values)'!$KV$83,0))/INDEX('Inputs (values)'!$H$84:$KV$86,1,MATCH('Inputs (values)'!$H$10,'Inputs (values)'!$H$83:$KV$83,0)))*(INDEX('Inputs (values)'!$H$62:$KV$62,1,MATCH('Inputs (values)'!$H$12,'Inputs (values)'!$H$83:$KV$83,0))/INDEX('Inputs (values)'!$H$62:$KV$62,1,MATCH('Inputs (values)'!$H$11,'Inputs (values)'!$H$83:$KV$83,0))) -> 3.152631968 | AQ22: =(INDEX('Inputs (values)'!$H$84:$KV$86,1,MATCH('Calculations (values)'!AQ$21,'Inputs (values)'!$H$83:'Inputs (values)'!$KV$83,0))/INDEX('Inputs (values)'!$H$84:$KV$86,1,MATCH('Inputs (values)'!$H$10,'Inputs (values)'!$H$83:$KV$83,0)))*(INDEX('Inputs (values)'!$H$62:$KV$62,1,MATCH('Inputs (values)'!$H$12,'Inputs (values)'!$H$83:$KV$83,0))/INDEX('Inputs (values)'!$H$62:$KV$62,1,MATCH('Inputs (values)'!$H$11,'Inputs (values)'!$H$83:$KV$83,0))) -> 3.200979135 | AR22: =(INDEX('Inputs (values)'!$H$84:$KV$86,1,MATCH('Calculations (values)'!AR$21,'Inputs (values)'!$H$83:'Inputs (values)'!$KV$83,0))/INDEX('Inputs (values)'!$H$84:$KV$86,1,MATCH('Inputs (values)'!$H$10,'Inputs (values)'!$H$83:$KV$83,0)))*(INDEX('Inputs (values)'!$H$62:$KV$62,1,MATCH('Inputs (values)'!$H$12,'Inputs (values)'!$H$83:$KV$83,0))/INDEX('Inputs (values)'!$H$62:$KV$62,1,MATCH('Inputs (values)'!$H$11,'Inputs (values)'!$H$83:$KV$83,0))) -> 3.250346775 | AS22: =(INDEX('Inputs (values)'!$H$84:$KV$86,1,MATCH('Calculations (values)'!AS$21,'Inputs (values)'!$H$83:'Inputs (values)'!$KV$83,0))/INDEX('Inputs (values)'!$H$84:$KV$86,1,MATCH('Inputs (values)'!$H$10,'Inputs (values)'!$H$83:$KV$83,0)))*(INDEX('Inputs (values)'!$H$62:$KV$62,1,MATCH('Inputs (values)'!$H$12,'Inputs (values)'!$H$83:$KV$83,0))/INDEX('Inputs (values)'!$H$62:$KV$62,1,MATCH('Inputs (values)'!$H$11,'Inputs (values)'!$H$83:$KV$83,0))) -> 3.299695379 | AT22: =(INDEX('Inputs (values)'!$H$84:$KV$86,1,MATCH('Calculations (values)'!AT$21,'Inputs (values)'!$H$83:'Inputs (values)'!$KV$83,0))/INDEX('Inputs (values)'!$H$84:$KV$86,1,MATCH('Inputs (values)'!$H$10,'Inputs (values)'!$H$83:$KV$83,0)))*(INDEX('Inputs (values)'!$H$62:$KV$62,1,MATCH('Inputs (values)'!$H$12,'Inputs (values)'!$H$83:$KV$83,0))/INDEX('Inputs (values)'!$H$62:$KV$62,1,MATCH('Inputs (values)'!$H$11,'Inputs (values)'!$H$83:$KV$83,0))) -> 3.349242029 | AU22: =(INDEX('Inputs (values)'!$H$84:$KV$86,1,MATCH('Calculations (values)'!AU$21,'Inputs (values)'!$H$83:'Inputs (values)'!$KV$83,0))/INDEX('Inputs (values)'!$H$84:$KV$86,1,MATCH('Inputs (values)'!$H$10,'Inputs (values)'!$H$83:$KV$83,0)))*(INDEX('Inputs (values)'!$H$62:$KV$62,1,MATCH('Inputs (values)'!$H$12,'Inputs (values)'!$H$83:$KV$83,0))/INDEX('Inputs (values)'!$H$62:$KV$62,1,MATCH('Inputs (values)'!$H$11,'Inputs (values)'!$H$83:$KV$83,0))) -> 3.399110014 | AV22: =(INDEX('Inputs (values)'!$H$84:$KV$86,1,MATCH('Calculations (values)'!AV$21,'Inputs (values)'!$H$83:'Inputs (values)'!$KV$83,0))/INDEX('Inputs (values)'!$H$84:$KV$86,1,MATCH('Inputs (values)'!$H$10,'Inputs (values)'!$H$83:$KV$83,0)))*(INDEX('Inputs (values)'!$H$62:$KV$62,1,MATCH('Inputs (values)'!$H$12,'Inputs (values)'!$H$83:$KV$83,0))/INDEX('Inputs (values)'!$H$62:$KV$62,1,MATCH('Inputs (values)'!$H$11,'Inputs (values)'!$H$83:$KV$83,0))) -> 3.449789615 | AW22: =(INDEX('Inputs (values)'!$H$84:$KV$86,1,MATCH('Calculations (values)'!AW$21,'Inputs (values)'!$H$83:'Inputs (values)'!$KV$83,0))/INDEX('Inputs (values)'!$H$84:$KV$86,1,MATCH('Inputs (values)'!$H$10,'Inputs (values)'!$H$83:$KV$83,0)))*(INDEX('Inputs (values)'!$H$62:$KV$62,1,MATCH('Inputs (values)'!$H$12,'Inputs (values)'!$H$83:$KV$83,0))/INDEX('Inputs (values)'!$H$62:$KV$62,1,MATCH('Inputs (values)'!$H$11,'Inputs (values)'!$H$83:$KV$83,0))) -> 3.501148801 | AX22: =(INDEX('Inputs (values)'!$H$84:$KV$86,1,MATCH('Calculations (values)'!AX$21,'Inputs (values)'!$H$83:'Inputs (values)'!$KV$83,0))/INDEX('Inputs (values)'!$H$84:$KV$86,1,MATCH('Inputs (values)'!$H$10,'Inputs (values)'!$H$83:$KV$83,0)))*(INDEX('Inputs (values)'!$H$62:$KV$62,1,MATCH('Inputs (values)'!$H$12,'Inputs (values)'!$H$83:$KV$83,0))/INDEX('Inputs (values)'!$H$62:$KV$62,1,MATCH('Inputs (values)'!$H$11,'Inputs (values)'!$H$83:$KV$83,0))) -> 3.553214014 | AY22: =(INDEX('Inputs (values)'!$H$84:$KV$86,1,MATCH('Calculations (values)'!AY$21,'Inputs (values)'!$H$83:'Inputs (values)'!$KV$83,0))/INDEX('Inputs (values)'!$H$84:$KV$86,1,MATCH('Inputs (values)'!$H$10,'Inputs (values)'!$H$83:$KV$83,0)))*(INDEX('Inputs (values)'!$H$62:$KV$62,1,MATCH('Inputs (values)'!$H$12,'Inputs (values)'!$H$83:$KV$83,0))/INDEX('Inputs (values)'!$H$62:$KV$62,1,MATCH('Inputs (values)'!$H$11,'Inputs (values)'!$H$83:$KV$83,0))) -> 3.606796848 | AZ22: =(INDEX('Inputs (values)'!$H$84:$KV$86,1,MATCH('Calculations (values)'!AZ$21,'Inputs (values)'!$H$83:'Inputs (values)'!$KV$83,0))/INDEX('Inputs (values)'!$H$84:$KV$86,1,MATCH('Inputs (values)'!$H$10,'Inputs (values)'!$H$83:$KV$83,0)))*(INDEX('Inputs (values)'!$H$62:$KV$62,1,MATCH('Inputs (values)'!$H$12,'Inputs (values)'!$H$83:$KV$83,0))/INDEX('Inputs (values)'!$H$62:$KV$62,1,MATCH('Inputs (values)'!$H$11,'Inputs (values)'!$H$83:$KV$83,0))) -> 3.663110881 | BA22: =(INDEX('Inputs (values)'!$H$84:$KV$86,1,MATCH('Calculations (values)'!BA$21,'Inputs (values)'!$H$83:'Inputs (values)'!$KV$83,0))/INDEX('Inputs (values)'!$H$84:$KV$86,1,MATCH('Inputs (values)'!$H$10,'Inputs (values)'!$H$83:$KV$83,0)))*(INDEX('Inputs (values)'!$H$62:$KV$62,1,MATCH('Inputs (values)'!$H$12,'Inputs (values)'!$H$83:$KV$83,0))/INDEX('Inputs (values)'!$H$62:$KV$62,1,MATCH('Inputs (values)'!$H$11,'Inputs (values)'!$H$83:$KV$83,0))) -> 3.721633173 | BB22: =(INDEX('Inputs (values)'!$H$84:$KV$86,1,MATCH('Calculations (values)'!BB$21,'Inputs (values)'!$H$83:'Inputs (values)'!$KV$83,0))/INDEX('Inputs (values)'!$H$84:$KV$86,1,MATCH('Inputs (values)'!$H$10,'Inputs (values)'!$H$83:$KV$83,0)))*(INDEX('Inputs (values)'!$H$62:$KV$62,1,MATCH('Inputs (values)'!$H$12,'Inputs (values)'!$H$83:$KV$83,0))/INDEX('Inputs (values)'!$H$62:$KV$62,1,MATCH('Inputs (values)'!$H$11,'Inputs (values)'!$H$83:$KV$83,0))) -> 3.781277977 | BC22: =(INDEX('Inputs (values)'!$H$84:$KV$86,1,MATCH('Calculations (values)'!BC$21,'Inputs (values)'!$H$83:'Inputs (values)'!$KV$83,0))/INDEX('Inputs (values)'!$H$84:$KV$86,1,MATCH('Inputs (values)'!$H$10,'Inputs (values)'!$H$83:$KV$83,0)))*(INDEX('Inputs (values)'!$H$62:$KV$62,1,MATCH('Inputs (values)'!$H$12,'Inputs (values)'!$H$83:$KV$83,0))/INDEX('Inputs (values)'!$H$62:$KV$62,1,MATCH('Inputs (values)'!$H$11,'Inputs (values)'!$H$83:$KV$83,0))) -> 3.841686956 | BD22: =(INDEX('Inputs (values)'!$H$84:$KV$86,1,MATCH('Calculations (values)'!BD$21,'Inputs (values)'!$H$83:'Inputs (values)'!$KV$83,0))/INDEX('Inputs (values)'!$H$84:$KV$86,1,MATCH('Inputs (values)'!$H$10,'Inputs (values)'!$H$83:$KV$83,0)))*(INDEX('Inputs (values)'!$H$62:$KV$62,1,MATCH('Inputs (values)'!$H$12,'Inputs (values)'!$H$83:$KV$83,0))/INDEX('Inputs (values)'!$H$62:$KV$62,1,MATCH('Inputs (values)'!$H$11,'Inputs (values)'!$H$83:$KV$83,0))) -> 3.903077047 | BE22: =(INDEX('Inputs (values)'!$H$84:$KV$86,1,MATCH('Calculations (values)'!BE$21,'Inputs (values)'!$H$83:'Inputs (values)'!$KV$83,0))/INDEX('Inputs (values)'!$H$84:$KV$86,1,MATCH('Inputs (values)'!$H$10,'Inputs (values)'!$H$83:$KV$83,0)))*(INDEX('Inputs (values)'!$H$62:$KV$62,1,MATCH('Inputs (values)'!$H$12,'Inputs (values)'!$H$83:$KV$83,0))/INDEX('Inputs (values)'!$H$62:$KV$62,1,MATCH('Inputs (values)'!$H$11,'Inputs (values)'!$H$83:$KV$83,0))) -> 3.956147562 | BF22: =(INDEX('Inputs (values)'!$H$84:$KV$86,1,MATCH('Calculations (values)'!BF$21,'Inputs (values)'!$H$83:'Inputs (values)'!$KV$83,0))/INDEX('Inputs (values)'!$H$84:$KV$86,1,MATCH('Inputs (values)'!$H$10,'Inputs (values)'!$H$83:$KV$83,0)))*(INDEX('Inputs (values)'!$H$62:$KV$62,1,MATCH('Inputs (values)'!$H$12,'Inputs (values)'!$H$83:$KV$83,0))/INDEX('Inputs (values)'!$H$62:$KV$62,1,MATCH('Inputs (values)'!$H$11,'Inputs (values)'!$H$83:$KV$83,0))) -> 4.008559551 | BG22: =(INDEX('Inputs (values)'!$H$84:$KV$86,1,MATCH('Calculations (values)'!BG$21,'Inputs (values)'!$H$83:'Inputs (values)'!$KV$83,0))/INDEX('Inputs (values)'!$H$84:$KV$86,1,MATCH('Inputs (values)'!$H$10,'Inputs (values)'!$H$83:$KV$83,0)))*(INDEX('Inputs (values)'!$H$62:$KV$62,1,MATCH('Inputs (values)'!$H$12,'Inputs (values)'!$H$83:$KV$83,0))/INDEX('Inputs (values)'!$H$62:$KV$62,1,MATCH('Inputs (values)'!$H$11,'Inputs (values)'!$H$83:$KV$83,0))) -> 4.058862218 | BH22: =(INDEX('Inputs (values)'!$H$84:$KV$86,1,MATCH('Calculations (values)'!BH$21,'Inputs (values)'!$H$83:'Inputs (values)'!$KV$83,0))/INDEX('Inputs (values)'!$H$84:$KV$86,1,MATCH('Inputs (values)'!$H$10,'Inputs (values)'!$H$83:$KV$83,0)))*(INDEX('Inputs (values)'!$H$62:$KV$62,1,MATCH('Inputs (values)'!$H$12,'Inputs (values)'!$H$83:$KV$83,0))/INDEX('Inputs (values)'!$H$62:$KV$62,1,MATCH('Inputs (values)'!$H$11,'Inputs (values)'!$H$83:$KV$83,0))) -> 4.110004005 | BI22: =(INDEX('Inputs (values)'!$H$84:$KV$86,1,MATCH('Calculations (values)'!BI$21,'Inputs (values)'!$H$83:'Inputs (values)'!$KV$83,0))/INDEX('Inputs (values)'!$H$84:$KV$86,1,MATCH('Inputs (values)'!$H$10,'Inputs (values)'!$H$83:$KV$83,0)))*(INDEX('Inputs (values)'!$H$62:$KV$62,1,MATCH('Inputs (values)'!$H$12,'Inputs (values)'!$H$83:$KV$83,0))/INDEX('Inputs (values)'!$H$62:$KV$62,1,MATCH('Inputs (values)'!$H$11,'Inputs (values)'!$H$83:$KV$83,0))) -> 4.161082677 | BJ22: =(INDEX('Inputs (values)'!$H$84:$KV$86,1,MATCH('Calculations (values)'!BJ$21,'Inputs (values)'!$H$83:'Inputs (values)'!$KV$83,0))/INDEX('Inputs (values)'!$H$84:$KV$86,1,MATCH('Inputs (values)'!$H$10,'Inputs (values)'!$H$83:$KV$83,0)))*(INDEX('Inputs (values)'!$H$62:$KV$62,1,MATCH('Inputs (values)'!$H$12,'Inputs (values)'!$H$83:$KV$83,0))/INDEX('Inputs (values)'!$H$62:$KV$62,1,MATCH('Inputs (values)'!$H$11,'Inputs (values)'!$H$83:$KV$83,0))) -> 4.21178747 | BK22: =(INDEX('Inputs (values)'!$H$84:$KV$86,1,MATCH('Calculations (values)'!BK$21,'Inputs (values)'!$H$83:'Inputs (values)'!$KV$83,0))/INDEX('Inputs (values)'!$H$84:$KV$86,1,MATCH('Inputs (values)'!$H$10,'Inputs (values)'!$H$83:$KV$83,0)))*(INDEX('Inputs (values)'!$H$62:$KV$62,1,MATCH('Inputs (values)'!$H$12,'Inputs (values)'!$H$83:$KV$83,0))/INDEX('Inputs (values)'!$H$62:$KV$62,1,MATCH('Inputs (values)'!$H$11,'Inputs (values)'!$H$83:$KV$83,0))) -> 4.263027523 | BL22: =(INDEX('Inputs (values)'!$H$84:$KV$86,1,MATCH('Calculations (values)'!BL$21,'Inputs (values)'!$H$83:'Inputs (values)'!$KV$83,0))/INDEX('Inputs (values)'!$H$84:$KV$86,1,MATCH('Inputs (values)'!$H$10,'Inputs (values)'!$H$83:$KV$83,0)))*(INDEX('Inputs (values)'!$H$62:$KV$62,1,MATCH('Inputs (values)'!$H$12,'Inputs (values)'!$H$83:$KV$83,0))/INDEX('Inputs (values)'!$H$62:$KV$62,1,MATCH('Inputs (values)'!$H$11,'Inputs (values)'!$H$83:$KV$83,0))) -> 4.316466094 | BM22: =(INDEX('Inputs (values)'!$H$84:$KV$86,1,MATCH('Calculations (values)'!BM$21,'Inputs (values)'!$H$83:'Inputs (values)'!$KV$83,0))/INDEX('Inputs (values)'!$H$84:$KV$86,1,MATCH('Inputs (values)'!$H$10,'Inputs (values)'!$H$83:$KV$83,0)))*(INDEX('Inputs (values)'!$H$62:$KV$62,1,MATCH('Inputs (values)'!$H$12,'Inputs (values)'!$H$83:$KV$83,0))/INDEX('Inputs (values)'!$H$62:$KV$62,1,MATCH('Inputs (values)'!$H$11,'Inputs (values)'!$H$83:$KV$83,0))) -> 4.372061783 | BN22: =(INDEX('Inputs (values)'!$H$84:$KV$86,1,MATCH('Calculations (values)'!BN$21,'Inputs (values)'!$H$83:'Inputs (values)'!$KV$83,0))/INDEX('Inputs (values)'!$H$84:$KV$86,1,MATCH('Inputs (values)'!$H$10,'Inputs (values)'!$H$83:$KV$83,0)))*(INDEX('Inputs (values)'!$H$62:$KV$62,1,MATCH('Inputs (values)'!$H$12,'Inputs (values)'!$H$83:$KV$83,0))/INDEX('Inputs (values)'!$H$62:$KV$62,1,MATCH('Inputs (values)'!$H$11,'Inputs (values)'!$H$83:$KV$83,0))) -> 4.428605019 | BO22: =(INDEX('Inputs (values)'!$H$84:$KV$86,1,MATCH('Calculations (values)'!BO$21,'Inputs (values)'!$H$83:'Inputs (values)'!$KV$83,0))/INDEX('Inputs (values)'!$H$84:$KV$86,1,MATCH('Inputs (values)'!$H$10,'Inputs (values)'!$H$83:$KV$83,0)))*(INDEX('Inputs (values)'!$H$62:$KV$62,1,MATCH('Inputs (values)'!$H$12,'Inputs (values)'!$H$83:$KV$83,0))/INDEX('Inputs (values)'!$H$62:$KV$62,1,MATCH('Inputs (values)'!$H$11,'Inputs (values)'!$H$83:$KV$83,0))) -> 4.485255614 | BP22: =(INDEX('Inputs (values)'!$H$84:$KV$86,1,MATCH('Calculations (values)'!BP$21,'Inputs (values)'!$H$83:'Inputs (values)'!$KV$83,0))/INDEX('Inputs (values)'!$H$84:$KV$86,1,MATCH('Inputs (values)'!$H$10,'Inputs (values)'!$H$83:$KV$83,0)))*(INDEX('Inputs (values)'!$H$62:$KV$62,1,MATCH('Inputs (values)'!$H$12,'Inputs (values)'!$H$83:$KV$83,0))/INDEX('Inputs (values)'!$H$62:$KV$62,1,MATCH('Inputs (values)'!$H$11,'Inputs (values)'!$H$83:$KV$83,0))) -> 4.544499129 | BQ22: =(INDEX('Inputs (values)'!$H$84:$KV$86,1,MATCH('Calculations (values)'!BQ$21,'Inputs (values)'!$H$83:'Inputs (values)'!$KV$83,0))/INDEX('Inputs (values)'!$H$84:$KV$86,1,MATCH('Inputs (values)'!$H$10,'Inputs (values)'!$H$83:$KV$83,0)))*(INDEX('Inputs (values)'!$H$62:$KV$62,1,MATCH('Inputs (values)'!$H$12,'Inputs (values)'!$H$83:$KV$83,0))/INDEX('Inputs (values)'!$H$62:$KV$62,1,MATCH('Inputs (values)'!$H$11,'Inputs (values)'!$H$83:$KV$83,0))) -> 4.606004261 | BR22: =(INDEX('Inputs (values)'!$H$84:$KV$86,1,MATCH('Calculations (values)'!BR$21,'Inputs (values)'!$H$83:'Inputs (values)'!$KV$83,0))/INDEX('Inputs (values)'!$H$84:$KV$86,1,MATCH('Inputs (values)'!$H$10,'Inputs (values)'!$H$83:$KV$83,0)))*(INDEX('Inputs (values)'!$H$62:$KV$62,1,MATCH('Inputs (values)'!$H$12,'Inputs (values)'!$H$83:$KV$83,0))/INDEX('Inputs (values)'!$H$62:$KV$62,1,MATCH('Inputs (values)'!$H$11,'Inputs (values)'!$H$83:$KV$83,0))) -> 4.669066296 | BS22: =(INDEX('Inputs (values)'!$H$84:$KV$86,1,MATCH('Calculations (values)'!BS$21,'Inputs (values)'!$H$83:'Inputs (values)'!$KV$83,0))/INDEX('Inputs (values)'!$H$84:$KV$86,1,MATCH('Inputs (values)'!$H$10,'Inputs (values)'!$H$83:$KV$83,0)))*(INDEX('Inputs (values)'!$H$62:$KV$62,1,MATCH('Inputs (values)'!$H$12,'Inputs (values)'!$H$83:$KV$83,0))/INDEX('Inputs (values)'!$H$62:$KV$62,1,MATCH('Inputs (values)'!$H$11,'Inputs (values)'!$H$83:$KV$83,0))) -> 4.734199559 | BT22: =(INDEX('Inputs (values)'!$H$84:$KV$86,1,MATCH('Calculations (values)'!BT$21,'Inputs (values)'!$H$83:'Inputs (values)'!$KV$83,0))/INDEX('Inputs (values)'!$H$84:$KV$86,1,MATCH('Inputs (values)'!$H$10,'Inputs (values)'!$H$83:$KV$83,0)))*(INDEX('Inputs (values)'!$H$62:$KV$62,1,MATCH('Inputs (values)'!$H$12,'Inputs (values)'!$H$83:$KV$83,0))/INDEX('Inputs (values)'!$H$62:$KV$62,1,MATCH('Inputs (values)'!$H$11,'Inputs (values)'!$H$83:$KV$83,0))) -> 4.802178586 | BU22: =(INDEX('Inputs (values)'!$H$84:$KV$86,1,MATCH('Calculations (values)'!BU$21,'Inputs (values)'!$H$83:'Inputs (values)'!$KV$83,0))/INDEX('Inputs (values)'!$H$84:$KV$86,1,MATCH('Inputs (values)'!$H$10,'Inputs (values)'!$H$83:$KV$83,0)))*(INDEX('Inputs (values)'!$H$62:$KV$62,1,MATCH('Inputs (values)'!$H$12,'Inputs (values)'!$H$83:$KV$83,0))/INDEX('Inputs (values)'!$H$62:$KV$62,1,MATCH('Inputs (values)'!$H$11,'Inputs (values)'!$H$83:$KV$83,0))) -> 4.870553155 | BV22: =(INDEX('Inputs (values)'!$H$84:$KV$86,1,MATCH('Calculations (values)'!BV$21,'Inputs (values)'!$H$83:'Inputs (values)'!$KV$83,0))/INDEX('Inputs (values)'!$H$84:$KV$86,1,MATCH('Inputs (values)'!$H$10,'Inputs (values)'!$H$83:$KV$83,0)))*(INDEX('Inputs (values)'!$H$62:$KV$62,1,MATCH('Inputs (values)'!$H$12,'Inputs (values)'!$H$83:$KV$83,0))/INDEX('Inputs (values)'!$H$62:$KV$62,1,MATCH('Inputs (values)'!$H$11,'Inputs (values)'!$H$83:$KV$83,0))) -> 4.943289648 | BW22: =(INDEX('Inputs (values)'!$H$84:$KV$86,1,MATCH('Calculations (values)'!BW$21,'Inputs (values)'!$H$83:'Inputs (values)'!$KV$83,0))/INDEX('Inputs (values)'!$H$84:$KV$86,1,MATCH('Inputs (values)'!$H$10,'Inputs (values)'!$H$83:$KV$83,0)))*(INDEX('Inputs (values)'!$H$62:$KV$62,1,MATCH('Inputs (values)'!$H$12,'Inputs (values)'!$H$83:$KV$83,0))/INDEX('Inputs (values)'!$H$62:$KV$62,1,MATCH('Inputs (values)'!$H$11,'Inputs (values)'!$H$83:$KV$83,0))) -> 5.017211067 | BX22: =(INDEX('Inputs (values)'!$H$84:$KV$86,1,MATCH('Calculations (values)'!BX$21,'Inputs (values)'!$H$83:'Inputs (values)'!$KV$83,0))/INDEX('Inputs (values)'!$H$84:$KV$86,1,MATCH('Inputs (values)'!$H$10,'Inputs (values)'!$H$83:$KV$83,0)))*(INDEX('Inputs (values)'!$H$62:$KV$62,1,MATCH('Inputs (values)'!$H$12,'Inputs (values)'!$H$83:$KV$83,0))/INDEX('Inputs (values)'!$H$62:$KV$62,1,MATCH('Inputs (values)'!$H$11,'Inputs (values)'!$H$83:$KV$83,0))) -> 5.091943206 | BY22: =(INDEX('Inputs (values)'!$H$84:$KV$86,1,MATCH('Calculations (values)'!BY$21,'Inputs (values)'!$H$83:'Inputs (values)'!$KV$83,0))/INDEX('Inputs (values)'!$H$84:$KV$86,1,MATCH('Inputs (values)'!$H$10,'Inputs (values)'!$H$83:$KV$83,0)))*(INDEX('Inputs (values)'!$H$62:$KV$62,1,MATCH('Inputs (values)'!$H$12,'Inputs (values)'!$H$83:$KV$83,0))/INDEX('Inputs (values)'!$H$62:$KV$62,1,MATCH('Inputs (values)'!$H$11,'Inputs (values)'!$H$83:$KV$83,0))) -> 5.167817056 | BZ22: =(INDEX('Inputs (values)'!$H$84:$KV$86,1,MATCH('Calculations (values)'!BZ$21,'Inputs (values)'!$H$83:'Inputs (values)'!$KV$83,0))/INDEX('Inputs (values)'!$H$84:$KV$86,1,MATCH('Inputs (values)'!$H$10,'Inputs (values)'!$H$83:$KV$83,0)))*(INDEX('Inputs (values)'!$H$62:$KV$62,1,MATCH('Inputs (values)'!$H$12,'Inputs (values)'!$H$83:$KV$83,0))/INDEX('Inputs (values)'!$H$62:$KV$62,1,MATCH('Inputs (values)'!$H$11,'Inputs (values)'!$H$83:$KV$83,0))) -> 5.244937633 | CA22: =(INDEX('Inputs (values)'!$H$84:$KV$86,1,MATCH('Calculations (values)'!CA$21,'Inputs (values)'!$H$83:'Inputs (values)'!$KV$83,0))/INDEX('Inputs (values)'!$H$84:$KV$86,1,MATCH('Inputs (values)'!$H$10,'Inputs (values)'!$H$83:$KV$83,0)))*(INDEX('Inputs (values)'!$H$62:$KV$62,1,MATCH('Inputs (values)'!$H$12,'Inputs (values)'!$H$83:$KV$83,0))/INDEX('Inputs (values)'!$H$62:$KV$62,1,MATCH('Inputs (values)'!$H$11,'Inputs (values)'!$H$83:$KV$83,0))) -> 5.323244696 | CB22: =(INDEX('Inputs (values)'!$H$84:$KV$86,1,MATCH('Calculations (values)'!CB$21,'Inputs (values)'!$H$83:'Inputs (values)'!$KV$83,0))/INDEX('Inputs (values)'!$H$84:$KV$86,1,MATCH('Inputs (values)'!$H$10,'Inputs (values)'!$H$83:$KV$83,0)))*(INDEX('Inputs (values)'!$H$62:$KV$62,1,MATCH('Inputs (values)'!$H$12,'Inputs (values)'!$H$83:$KV$83,0))/INDEX('Inputs (values)'!$H$62:$KV$62,1,MATCH('Inputs (values)'!$H$11,'Inputs (values)'!$H$83:$KV$83,0))) -> 5.402605685 | CC22: =(INDEX('Inputs (values)'!$H$84:$KV$86,1,MATCH('Calculations (values)'!CC$21,'Inputs (values)'!$H$83:'Inputs (values)'!$KV$83,0))/INDEX('Inputs (values)'!$H$84:$KV$86,1,MATCH('Inputs (values)'!$H$10,'Inputs (values)'!$H$83:$KV$83,0)))*(INDEX('Inputs (values)'!$H$62:$KV$62,1,MATCH('Inputs (values)'!$H$12,'Inputs (values)'!$H$83:$KV$83,0))/INDEX('Inputs (values)'!$H$62:$KV$62,1,MATCH('Inputs (values)'!$H$11,'Inputs (values)'!$H$83:$KV$83,0))) -> 5.482963372 | CD22: =(INDEX('Inputs (values)'!$H$84:$KV$86,1,MATCH('Calculations (values)'!CD$21,'Inputs (values)'!$H$83:'Inputs (values)'!$KV$83,0))/INDEX('Inputs (values)'!$H$84:$KV$86,1,MATCH('Inputs (values)'!$H$10,'Inputs (values)'!$H$83:$KV$83,0)))*(INDEX('Inputs (values)'!$H$62:$KV$62,1,MATCH('Inputs (values)'!$H$12,'Inputs (values)'!$H$83:$KV$83,0))/INDEX('Inputs (values)'!$H$62:$KV$62,1,MATCH('Inputs (values)'!$H$11,'Inputs (values)'!$H$83:$KV$83,0))) -> 5.564274453 | CE22: =(INDEX('Inputs (values)'!$H$84:$KV$86,1,MATCH('Calculations (values)'!CE$21,'Inputs (values)'!$H$83:'Inputs (values)'!$KV$83,0))/INDEX('Inputs (values)'!$H$84:$KV$86,1,MATCH('Inputs (values)'!$H$10,'Inputs (values)'!$H$83:$KV$83,0)))*(INDEX('Inputs (values)'!$H$62:$KV$62,1,MATCH('Inputs (values)'!$H$12,'Inputs (values)'!$H$83:$KV$83,0))/INDEX('Inputs (values)'!$H$62:$KV$62,1,MATCH('Inputs (values)'!$H$11,'Inputs (values)'!$H$83:$KV$83,0))) -> 5.646512157 | CF22: =(INDEX('Inputs (values)'!$H$84:$KV$86,1,MATCH('Calculations (values)'!CF$21,'Inputs (values)'!$H$83:'Inputs (values)'!$KV$83,0))/INDEX('Inputs (values)'!$H$84:$KV$86,1,MATCH('Inputs (values)'!$H$10,'Inputs (values)'!$H$83:$KV$83,0)))*(INDEX('Inputs (values)'!$H$62:$KV$62,1,MATCH('Inputs (values)'!$H$12,'Inputs (values)'!$H$83:$KV$83,0))/INDEX('Inputs (values)'!$H$62:$KV$62,1,MATCH('Inputs (values)'!$H$11,'Inputs (values)'!$H$83:$KV$83,0))) -> 5.7299653 | CG22: =(INDEX('Inputs (values)'!$H$84:$KV$86,1,MATCH('Calculations (values)'!CG$21,'Inputs (values)'!$H$83:'Inputs (values)'!$KV$83,0))/INDEX('Inputs (values)'!$H$84:$KV$86,1,MATCH('Inputs (values)'!$H$10,'Inputs (values)'!$H$83:$KV$83,0)))*(INDEX('Inputs (values)'!$H$62:$KV$62,1,MATCH('Inputs (values)'!$H$12,'Inputs (values)'!$H$83:$KV$83,0))/INDEX('Inputs (values)'!$H$62:$KV$62,1,MATCH('Inputs (values)'!$H$11,'Inputs (values)'!$H$83:$KV$83,0))) -> 5.814651847 | CH22: =(INDEX('Inputs (values)'!$H$84:$KV$86,1,MATCH('Calculations (values)'!CH$21,'Inputs (values)'!$H$83:'Inputs (values)'!$KV$83,0))/INDEX('Inputs (values)'!$H$84:$KV$86,1,MATCH('Inputs (values)'!$H$10,'Inputs (values)'!$H$83:$KV$83,0)))*(INDEX('Inputs (values)'!$H$62:$KV$62,1,MATCH('Inputs (values)'!$H$12,'Inputs (values)'!$H$83:$KV$83,0))/INDEX('Inputs (values)'!$H$62:$KV$62,1,MATCH('Inputs (values)'!$H$11,'Inputs (values)'!$H$83:$KV$83,0))) -> 5.900590026 | CI22: =(INDEX('Inputs (values)'!$H$84:$KV$86,1,MATCH('Calculations (values)'!CI$21,'Inputs (values)'!$H$83:'Inputs (values)'!$KV$83,0))/INDEX('Inputs (values)'!$H$84:$KV$86,1,MATCH('Inputs (values)'!$H$10,'Inputs (values)'!$H$83:$KV$83,0)))*(INDEX('Inputs (values)'!$H$62:$KV$62,1,MATCH('Inputs (values)'!$H$12,'Inputs (values)'!$H$83:$KV$83,0))/INDEX('Inputs (values)'!$H$62:$KV$62,1,MATCH('Inputs (values)'!$H$11,'Inputs (values)'!$H$83:$KV$83,0))) -> 5.987798337 | CJ22: =(INDEX('Inputs (values)'!$H$84:$KV$86,1,MATCH('Calculations (values)'!CJ$21,'Inputs (values)'!$H$83:'Inputs (values)'!$KV$83,0))/INDEX('Inputs (values)'!$H$84:$KV$86,1,MATCH('Inputs (values)'!$H$10,'Inputs (values)'!$H$83:$KV$83,0)))*(INDEX('Inputs (values)'!$H$62:$KV$62,1,MATCH('Inputs (values)'!$H$12,'Inputs (values)'!$H$83:$KV$83,0))/INDEX('Inputs (values)'!$H$62:$KV$62,1,MATCH('Inputs (values)'!$H$11,'Inputs (values)'!$H$83:$KV$83,0))) -> 6.076295551 | CK22: =(INDEX('Inputs (values)'!$H$84:$KV$86,1,MATCH('Calculations (values)'!CK$21,'Inputs (values)'!$H$83:'Inputs (values)'!$KV$83,0))/INDEX('Inputs (values)'!$H$84:$KV$86,1,MATCH('Inputs (values)'!$H$10,'Inputs (values)'!$H$83:$KV$83,0)))*(INDEX('Inputs (values)'!$H$62:$KV$62,1,MATCH('Inputs (values)'!$H$12,'Inputs (values)'!$H$83:$KV$83,0))/INDEX('Inputs (values)'!$H$62:$KV$62,1,MATCH('Inputs (values)'!$H$11,'Inputs (values)'!$H$83:$KV$83,0))) -> 6.166100717 | CL22: =(INDEX('Inputs (values)'!$H$84:$KV$86,1,MATCH('Calculations (values)'!CL$21,'Inputs (values)'!$H$83:'Inputs (values)'!$KV$83,0))/INDEX('Inputs (values)'!$H$84:$KV$86,1,MATCH('Inputs (values)'!$H$10,'Inputs (values)'!$H$83:$KV$83,0)))*(INDEX('Inputs (values)'!$H$62:$KV$62,1,MATCH('Inputs (values)'!$H$12,'Inputs (values)'!$H$83:$KV$83,0))/INDEX('Inputs (values)'!$H$62:$KV$62,1,MATCH('Inputs (values)'!$H$11,'Inputs (values)'!$H$83:$KV$83,0))) -> 6.257233167 | CM22: =(INDEX('Inputs (values)'!$H$84:$KV$86,1,MATCH('Calculations (values)'!CM$21,'Inputs (values)'!$H$83:'Inputs (values)'!$KV$83,0))/INDEX('Inputs (values)'!$H$84:$KV$86,1,MATCH('Inputs (values)'!$H$10,'Inputs (values)'!$H$83:$KV$83,0)))*(INDEX('Inputs (values)'!$H$62:$KV$62,1,MATCH('Inputs (values)'!$H$12,'Inputs (values)'!$H$83:$KV$83,0))/INDEX('Inputs (values)'!$H$62:$KV$62,1,MATCH('Inputs (values)'!$H$11,'Inputs (values)'!$H$83:$KV$83,0))) -> 6.349712517 | CN22: =(INDEX('Inputs (values)'!$H$84:$KV$86,1,MATCH('Calculations (values)'!CN$21,'Inputs (values)'!$H$83:'Inputs (values)'!$KV$83,0))/INDEX('Inputs (values)'!$H$84:$KV$86,1,MATCH('Inputs (values)'!$H$10,'Inputs (values)'!$H$83:$KV$83,0)))*(INDEX('Inputs (values)'!$H$62:$KV$62,1,MATCH('Inputs (values)'!$H$12,'Inputs (values)'!$H$83:$KV$83,0))/INDEX('Inputs (values)'!$H$62:$KV$62,1,MATCH('Inputs (values)'!$H$11,'Inputs (values)'!$H$83:$KV$83,0))) -> 6.443558675 | CO22: =(INDEX('Inputs (values)'!$H$84:$KV$86,1,MATCH('Calculations (values)'!CO$21,'Inputs (values)'!$H$83:'Inputs (values)'!$KV$83,0))/INDEX('Inputs (values)'!$H$84:$KV$86,1,MATCH('Inputs (values)'!$H$10,'Inputs (values)'!$H$83:$KV$83,0)))*(INDEX('Inputs (values)'!$H$62:$KV$62,1,MATCH('Inputs (values)'!$H$12,'Inputs (values)'!$H$83:$KV$83,0))/INDEX('Inputs (values)'!$H$62:$KV$62,1,MATCH('Inputs (values)'!$H$11,'Inputs (values)'!$H$83:$KV$83,0))) -> 6.53879184 | CP22: =(INDEX('Inputs (values)'!$H$84:$KV$86,1,MATCH('Calculations (values)'!CP$21,'Inputs (values)'!$H$83:'Inputs (values)'!$KV$83,0))/INDEX('Inputs (values)'!$H$84:$KV$86,1,MATCH('Inputs (values)'!$H$10,'Inputs (values)'!$H$83:$KV$83,0)))*(INDEX('Inputs (values)'!$H$62:$KV$62,1,MATCH('Inputs (values)'!$H$12,'Inputs (values)'!$H$83:$KV$83,0))/INDEX('Inputs (values)'!$H$62:$KV$62,1,MATCH('Inputs (values)'!$H$11,'Inputs (values)'!$H$83:$KV$83,0))) -> 6.635432513 | CQ22: =(INDEX('Inputs (values)'!$H$84:$KV$86,1,MATCH('Calculations (values)'!CQ$21,'Inputs (values)'!$H$83:'Inputs (values)'!$KV$83,0))/INDEX('Inputs (values)'!$H$84:$KV$86,1,MATCH('Inputs (values)'!$H$10,'Inputs (values)'!$H$83:$KV$83,0)))*(INDEX('Inputs (values)'!$H$62:$KV$62,1,MATCH('Inputs (values)'!$H$12,'Inputs (values)'!$H$83:$KV$83,0))/INDEX('Inputs (values)'!$H$62:$KV$62,1,MATCH('Inputs (values)'!$H$11,'Inputs (values)'!$H$83:$KV$83,0))) -> 6.733501495 | CR22: =(INDEX('Inputs (values)'!$H$84:$KV$86,1,MATCH('Calculations (values)'!CR$21,'Inputs (values)'!$H$83:'Inputs (values)'!$KV$83,0))/INDEX('Inputs (values)'!$H$84:$KV$86,1,MATCH('Inputs (values)'!$H$10,'Inputs (values)'!$H$83:$KV$83,0)))*(INDEX('Inputs (values)'!$H$62:$KV$62,1,MATCH('Inputs (values)'!$H$12,'Inputs (values)'!$H$83:$KV$83,0))/INDEX('Inputs (values)'!$H$62:$KV$62,1,MATCH('Inputs (values)'!$H$11,'Inputs (values)'!$H$83:$KV$83,0))) -> 6.833019897 | CS22: =(INDEX('Inputs (values)'!$H$84:$KV$86,1,MATCH('Calculations (values)'!CS$21,'Inputs (values)'!$H$83:'Inputs (values)'!$KV$83,0))/INDEX('Inputs (values)'!$H$84:$KV$86,1,MATCH('Inputs (values)'!$H$10,'Inputs (values)'!$H$83:$KV$83,0)))*(INDEX('Inputs (values)'!$H$62:$KV$62,1,MATCH('Inputs (values)'!$H$12,'Inputs (values)'!$H$83:$KV$83,0))/INDEX('Inputs (values)'!$H$62:$KV$62,1,MATCH('Inputs (values)'!$H$11,'Inputs (values)'!$H$83:$KV$83,0))) -> 6.93400914 | CT22: =(INDEX('Inputs (values)'!$H$84:$KV$86,1,MATCH('Calculations (values)'!CT$21,'Inputs (values)'!$H$83:'Inputs (values)'!$KV$83,0))/INDEX('Inputs (values)'!$H$84:$KV$86,1,MATCH('Inputs (values)'!$H$10,'Inputs (values)'!$H$83:$KV$83,0)))*(INDEX('Inputs (values)'!$H$62:$KV$62,1,MATCH('Inputs (values)'!$H$12,'Inputs (values)'!$H$83:$KV$83,0))/INDEX('Inputs (values)'!$H$62:$KV$62,1,MATCH('Inputs (values)'!$H$11,'Inputs (values)'!$H$83:$KV$83,0))) -> 7.036490963 | CU22: =(INDEX('Inputs (values)'!$H$84:$KV$86,1,MATCH('Calculations (values)'!CU$21,'Inputs (values)'!$H$83:'Inputs (values)'!$KV$83,0))/INDEX('Inputs (values)'!$H$84:$KV$86,1,MATCH('Inputs (values)'!$H$10,'Inputs (values)'!$H$83:$KV$83,0)))*(INDEX('Inputs (values)'!$H$62:$KV$62,1,MATCH('Inputs (values)'!$H$12,'Inputs (values)'!$H$83:$KV$83,0))/INDEX('Inputs (values)'!$H$62:$KV$62,1,MATCH('Inputs (values)'!$H$11,'Inputs (values)'!$H$83:$KV$83,0))) -> 7.140487426 | CV22: =(INDEX('Inputs (values)'!$H$84:$KV$86,1,MATCH('Calculations (values)'!CV$21,'Inputs (values)'!$H$83:'Inputs (values)'!$KV$83,0))/INDEX('Inputs (values)'!$H$84:$KV$86,1,MATCH('Inputs (values)'!$H$10,'Inputs (values)'!$H$83:$KV$83,0)))*(INDEX('Inputs (values)'!$H$62:$KV$62,1,MATCH('Inputs (values)'!$H$12,'Inputs (values)'!$H$83:$KV$83,0))/INDEX('Inputs (values)'!$H$62:$KV$62,1,MATCH('Inputs (values)'!$H$11,'Inputs (values)'!$H$83:$KV$83,0))) -> 7.246020913 | CW22: =(INDEX('Inputs (values)'!$H$84:$KV$86,1,MATCH('Calculations (values)'!CW$21,'Inputs (values)'!$H$83:'Inputs (values)'!$KV$83,0))/INDEX('Inputs (values)'!$H$84:$KV$86,1,MATCH('Inputs (values)'!$H$10,'Inputs (values)'!$H$83:$KV$83,0)))*(INDEX('Inputs (values)'!$H$62:$KV$62,1,MATCH('Inputs (values)'!$H$12,'Inputs (values)'!$H$83:$KV$83,0))/INDEX('Inputs (values)'!$H$62:$KV$62,1,MATCH('Inputs (values)'!$H$11,'Inputs (values)'!$H$83:$KV$83,0))) -> 7.353114143 | CX22: =(INDEX('Inputs (values)'!$H$84:$KV$86,1,MATCH('Calculations (values)'!CX$21,'Inputs (values)'!$H$83:'Inputs (values)'!$KV$83,0))/INDEX('Inputs (values)'!$H$84:$KV$86,1,MATCH('Inputs (values)'!$H$10,'Inputs (values)'!$H$83:$KV$83,0)))*(INDEX('Inputs (values)'!$H$62:$KV$62,1,MATCH('Inputs (values)'!$H$12,'Inputs (values)'!$H$83:$KV$83,0))/INDEX('Inputs (values)'!$H$62:$KV$62,1,MATCH('Inputs (values)'!$H$11,'Inputs (values)'!$H$83:$KV$83,0))) -> 7.461790166 | CY22: =(INDEX('Inputs (values)'!$H$84:$KV$86,1,MATCH('Calculations (values)'!CY$21,'Inputs (values)'!$H$83:'Inputs (values)'!$KV$83,0))/INDEX('Inputs (values)'!$H$84:$KV$86,1,MATCH('Inputs (values)'!$H$10,'Inputs (values)'!$H$83:$KV$83,0)))*(INDEX('Inputs (values)'!$H$62:$KV$62,1,MATCH('Inputs (values)'!$H$12,'Inputs (values)'!$H$83:$KV$83,0))/INDEX('Inputs (values)'!$H$62:$KV$62,1,MATCH('Inputs (values)'!$H$11,'Inputs (values)'!$H$83:$KV$83,0))) -> 7.572072377 | CZ22: =(INDEX('Inputs (values)'!$H$84:$KV$86,1,MATCH('Calculations (values)'!CZ$21,'Inputs (values)'!$H$83:'Inputs (values)'!$KV$83,0))/INDEX('Inputs (values)'!$H$84:$KV$86,1,MATCH('Inputs (values)'!$H$10,'Inputs (values)'!$H$83:$KV$83,0)))*(INDEX('Inputs (values)'!$H$62:$KV$62,1,MATCH('Inputs (values)'!$H$12,'Inputs (values)'!$H$83:$KV$83,0))/INDEX('Inputs (values)'!$H$62:$KV$62,1,MATCH('Inputs (values)'!$H$11,'Inputs (values)'!$H$83:$KV$83,0))) -> 7.683984514 | DA22: =(INDEX('Inputs (values)'!$H$84:$KV$86,1,MATCH('Calculations (values)'!DA$21,'Inputs (values)'!$H$83:'Inputs (values)'!$KV$83,0))/INDEX('Inputs (values)'!$H$84:$KV$86,1,MATCH('Inputs (values)'!$H$10,'Inputs (values)'!$H$83:$KV$83,0)))*(INDEX('Inputs (values)'!$H$62:$KV$62,1,MATCH('Inputs (values)'!$H$12,'Inputs (values)'!$H$83:$KV$83,0))/INDEX('Inputs (values)'!$H$62:$KV$62,1,MATCH('Inputs (values)'!$H$11,'Inputs (values)'!$H$83:$KV$83,0))) -> 7.797550667 | DB22: =(INDEX('Inputs (values)'!$H$84:$KV$86,1,MATCH('Calculations (values)'!DB$21,'Inputs (values)'!$H$83:'Inputs (values)'!$KV$83,0))/INDEX('Inputs (values)'!$H$84:$KV$86,1,MATCH('Inputs (values)'!$H$10,'Inputs (values)'!$H$83:$KV$83,0)))*(INDEX('Inputs (values)'!$H$62:$KV$62,1,MATCH('Inputs (values)'!$H$12,'Inputs (values)'!$H$83:$KV$83,0))/INDEX('Inputs (values)'!$H$62:$KV$62,1,MATCH('Inputs (values)'!$H$11,'Inputs (values)'!$H$83:$KV$83,0))) -> 7.912795281 | DC22: =(INDEX('Inputs (values)'!$H$84:$KV$86,1,MATCH('Calculations (values)'!DC$21,'Inputs (values)'!$H$83:'Inputs (values)'!$KV$83,0))/INDEX('Inputs (values)'!$H$84:$KV$86,1,MATCH('Inputs (values)'!$H$10,'Inputs (values)'!$H$83:$KV$83,0)))*(INDEX('Inputs (values)'!$H$62:$KV$62,1,MATCH('Inputs (values)'!$H$12,'Inputs (values)'!$H$83:$KV$83,0))/INDEX('Inputs (values)'!$H$62:$KV$62,1,MATCH('Inputs (values)'!$H$11,'Inputs (values)'!$H$83:$KV$83,0))) -> 8.029743163 | DD22: =(INDEX('Inputs (values)'!$H$84:$KV$86,1,MATCH('Calculations (values)'!DD$21,'Inputs (values)'!$H$83:'Inputs (values)'!$KV$83,0))/INDEX('Inputs (values)'!$H$84:$KV$86,1,MATCH('Inputs (values)'!$H$10,'Inputs (values)'!$H$83:$KV$83,0)))*(INDEX('Inputs (values)'!$H$62:$KV$62,1,MATCH('Inputs (values)'!$H$12,'Inputs (values)'!$H$83:$KV$83,0))/INDEX('Inputs (values)'!$H$62:$KV$62,1,MATCH('Inputs (values)'!$H$11,'Inputs (values)'!$H$83:$KV$83,0))) -> 8.148419488 | DE22: =(INDEX('Inputs (values)'!$H$84:$KV$86,1,MATCH('Calculations (values)'!DE$21,'Inputs (values)'!$H$83:'Inputs (values)'!$KV$83,0))/INDEX('Inputs (values)'!$H$84:$KV$86,1,MATCH('Inputs (values)'!$H$10,'Inputs (values)'!$H$83:$KV$83,0)))*(INDEX('Inputs (values)'!$H$62:$KV$62,1,MATCH('Inputs (values)'!$H$12,'Inputs (values)'!$H$83:$KV$83,0))/INDEX('Inputs (values)'!$H$62:$KV$62,1,MATCH('Inputs (values)'!$H$11,'Inputs (values)'!$H$83:$KV$83,0))) -> 8.268849799 | DF22: =(INDEX('Inputs (values)'!$H$84:$KV$86,1,MATCH('Calculations (values)'!DF$21,'Inputs (values)'!$H$83:'Inputs (values)'!$KV$83,0))/INDEX('Inputs (values)'!$H$84:$KV$86,1,MATCH('Inputs (values)'!$H$10,'Inputs (values)'!$H$83:$KV$83,0)))*(INDEX('Inputs (values)'!$H$62:$KV$62,1,MATCH('Inputs (values)'!$H$12,'Inputs (values)'!$H$83:$KV$83,0))/INDEX('Inputs (values)'!$H$62:$KV$62,1,MATCH('Inputs (values)'!$H$11,'Inputs (values)'!$H$83:$KV$83,0))) -> 8.391060022 | DG22: =(INDEX('Inputs (values)'!$H$84:$KV$86,1,MATCH('Calculations (values)'!DG$21,'Inputs (values)'!$H$83:'Inputs (values)'!$KV$83,0))/INDEX('Inputs (values)'!$H$84:$KV$86,1,MATCH('Inputs (values)'!$H$10,'Inputs (values)'!$H$83:$KV$83,0)))*(INDEX('Inputs (values)'!$H$62:$KV$62,1,MATCH('Inputs (values)'!$H$12,'Inputs (values)'!$H$83:$KV$83,0))/INDEX('Inputs (values)'!$H$62:$KV$62,1,MATCH('Inputs (values)'!$H$11,'Inputs (values)'!$H$83:$KV$83,0))) -> 8.515076462 | DH22: =(INDEX('Inputs (values)'!$H$84:$KV$86,1,MATCH('Calculations (values)'!DH$21,'Inputs (values)'!$H$83:'Inputs (values)'!$KV$83,0))/INDEX('Inputs (values)'!$H$84:$KV$86,1,MATCH('Inputs (values)'!$H$10,'Inputs (values)'!$H$83:$KV$83,0)))*(INDEX('Inputs (values)'!$H$62:$KV$62,1,MATCH('Inputs (values)'!$H$12,'Inputs (values)'!$H$83:$KV$83,0))/INDEX('Inputs (values)'!$H$62:$KV$62,1,MATCH('Inputs (values)'!$H$11,'Inputs (values)'!$H$83:$KV$83,0))) -> 8.640925814 | DI22: =(INDEX('Inputs (values)'!$H$84:$KV$86,1,MATCH('Calculations (values)'!DI$21,'Inputs (values)'!$H$83:'Inputs (values)'!$KV$83,0))/INDEX('Inputs (values)'!$H$84:$KV$86,1,MATCH('Inputs (values)'!$H$10,'Inputs (values)'!$H$83:$KV$83,0)))*(INDEX('Inputs (values)'!$H$62:$KV$62,1,MATCH('Inputs (values)'!$H$12,'Inputs (values)'!$H$83:$KV$83,0))/INDEX('Inputs (values)'!$H$62:$KV$62,1,MATCH('Inputs (values)'!$H$11,'Inputs (values)'!$H$83:$KV$83,0))) -> 8.768635168 | DJ22: =(INDEX('Inputs (values)'!$H$84:$KV$86,1,MATCH('Calculations (values)'!DJ$21,'Inputs (values)'!$H$83:'Inputs (values)'!$KV$83,0))/INDEX('Inputs (values)'!$H$84:$KV$86,1,MATCH('Inputs (values)'!$H$10,'Inputs (values)'!$H$83:$KV$83,0)))*(INDEX('Inputs (values)'!$H$62:$KV$62,1,MATCH('Inputs (values)'!$H$12,'Inputs (values)'!$H$83:$KV$83,0))/INDEX('Inputs (values)'!$H$62:$KV$62,1,MATCH('Inputs (values)'!$H$11,'Inputs (values)'!$H$83:$KV$83,0))) -> 8.898232015 | DK22: =(INDEX('Inputs (values)'!$H$84:$KV$86,1,MATCH('Calculations (values)'!DK$21,'Inputs (values)'!$H$83:'Inputs (values)'!$KV$83,0))/INDEX('Inputs (values)'!$H$84:$KV$86,1,MATCH('Inputs (values)'!$H$10,'Inputs (values)'!$H$83:$KV$83,0)))*(INDEX('Inputs (values)'!$H$62:$KV$62,1,MATCH('Inputs (values)'!$H$12,'Inputs (values)'!$H$83:$KV$83,0))/INDEX('Inputs (values)'!$H$62:$KV$62,1,MATCH('Inputs (values)'!$H$11,'Inputs (values)'!$H$83:$KV$83,0))) -> 9.029744249 | DL22: =(INDEX('Inputs (values)'!$H$84:$KV$86,1,MATCH('Calculations (values)'!DL$21,'Inputs (values)'!$H$83:'Inputs (values)'!$KV$83,0))/INDEX('Inputs (values)'!$H$84:$KV$86,1,MATCH('Inputs (values)'!$H$10,'Inputs (values)'!$H$83:$KV$83,0)))*(INDEX('Inputs (values)'!$H$62:$KV$62,1,MATCH('Inputs (values)'!$H$12,'Inputs (values)'!$H$83:$KV$83,0))/INDEX('Inputs (values)'!$H$62:$KV$62,1,MATCH('Inputs (values)'!$H$11,'Inputs (values)'!$H$83:$KV$83,0))) -> 9.163200181 | DM22: =(INDEX('Inputs (values)'!$H$84:$KV$86,1,MATCH('Calculations (values)'!DM$21,'Inputs (values)'!$H$83:'Inputs (values)'!$KV$83,0))/INDEX('Inputs (values)'!$H$84:$KV$86,1,MATCH('Inputs (values)'!$H$10,'Inputs (values)'!$H$83:$KV$83,0)))*(INDEX('Inputs (values)'!$H$62:$KV$62,1,MATCH('Inputs (values)'!$H$12,'Inputs (values)'!$H$83:$KV$83,0))/INDEX('Inputs (values)'!$H$62:$KV$62,1,MATCH('Inputs (values)'!$H$11,'Inputs (values)'!$H$83:$KV$83,0))) -> 9.298628537 | DN22: =(INDEX('Inputs (values)'!$H$84:$KV$86,1,MATCH('Calculations (values)'!DN$21,'Inputs (values)'!$H$83:'Inputs (values)'!$KV$83,0))/INDEX('Inputs (values)'!$H$84:$KV$86,1,MATCH('Inputs (values)'!$H$10,'Inputs (values)'!$H$83:$KV$83,0)))*(INDEX('Inputs (values)'!$H$62:$KV$62,1,MATCH('Inputs (values)'!$H$12,'Inputs (values)'!$H$83:$KV$83,0))/INDEX('Inputs (values)'!$H$62:$KV$62,1,MATCH('Inputs (values)'!$H$11,'Inputs (values)'!$H$83:$KV$83,0))) -> 9.436058469 | DO22: =(INDEX('Inputs (values)'!$H$84:$KV$86,1,MATCH('Calculations (values)'!DO$21,'Inputs (values)'!$H$83:'Inputs (values)'!$KV$83,0))/INDEX('Inputs (values)'!$H$84:$KV$86,1,MATCH('Inputs (values)'!$H$10,'Inputs (values)'!$H$83:$KV$83,0)))*(INDEX('Inputs (values)'!$H$62:$KV$62,1,MATCH('Inputs (values)'!$H$12,'Inputs (values)'!$H$83:$KV$83,0))/INDEX('Inputs (values)'!$H$62:$KV$62,1,MATCH('Inputs (values)'!$H$11,'Inputs (values)'!$H$83:$KV$83,0))) -> 9.575519559 | DP22: =(INDEX('Inputs (values)'!$H$84:$KV$86,1,MATCH('Calculations (values)'!DP$21,'Inputs (values)'!$H$83:'Inputs (values)'!$KV$83,0))/INDEX('Inputs (values)'!$H$84:$KV$86,1,MATCH('Inputs (values)'!$H$10,'Inputs (values)'!$H$83:$KV$83,0)))*(INDEX('Inputs (values)'!$H$62:$KV$62,1,MATCH('Inputs (values)'!$H$12,'Inputs (values)'!$H$83:$KV$83,0))/INDEX('Inputs (values)'!$H$62:$KV$62,1,MATCH('Inputs (values)'!$H$11,'Inputs (values)'!$H$83:$KV$83,0))) -> 9.717041827 | DQ22: =(INDEX('Inputs (values)'!$H$84:$KV$86,1,MATCH('Calculations (values)'!DQ$21,'Inputs (values)'!$H$83:'Inputs (values)'!$KV$83,0))/INDEX('Inputs (values)'!$H$84:$KV$86,1,MATCH('Inputs (values)'!$H$10,'Inputs (values)'!$H$83:$KV$83,0)))*(INDEX('Inputs (values)'!$H$62:$KV$62,1,MATCH('Inputs (values)'!$H$12,'Inputs (values)'!$H$83:$KV$83,0))/INDEX('Inputs (values)'!$H$62:$KV$62,1,MATCH('Inputs (values)'!$H$11,'Inputs (values)'!$H$83:$KV$83,0))) -> 9.860655736 | DR22: =(INDEX('Inputs (values)'!$H$84:$KV$86,1,MATCH('Calculations (values)'!DR$21,'Inputs (values)'!$H$83:'Inputs (values)'!$KV$83,0))/INDEX('Inputs (values)'!$H$84:$KV$86,1,MATCH('Inputs (values)'!$H$10,'Inputs (values)'!$H$83:$KV$83,0)))*(INDEX('Inputs (values)'!$H$62:$KV$62,1,MATCH('Inputs (values)'!$H$12,'Inputs (values)'!$H$83:$KV$83,0))/INDEX('Inputs (values)'!$H$62:$KV$62,1,MATCH('Inputs (values)'!$H$11,'Inputs (values)'!$H$83:$KV$83,0))) -> 10.0063922 | DS22: =(INDEX('Inputs (values)'!$H$84:$KV$86,1,MATCH('Calculations (values)'!DS$21,'Inputs (values)'!$H$83:'Inputs (values)'!$KV$83,0))/INDEX('Inputs (values)'!$H$84:$KV$86,1,MATCH('Inputs (values)'!$H$10,'Inputs (values)'!$H$83:$KV$83,0)))*(INDEX('Inputs (values)'!$H$62:$KV$62,1,MATCH('Inputs (values)'!$H$12,'Inputs (values)'!$H$83:$KV$83,0))/INDEX('Inputs (values)'!$H$62:$KV$62,1,MATCH('Inputs (values)'!$H$11,'Inputs (values)'!$H$83:$KV$83,0))) -> 10.15428259 | DT22: =(INDEX('Inputs (values)'!$H$84:$KV$86,1,MATCH('Calculations (values)'!DT$21,'Inputs (values)'!$H$83:'Inputs (values)'!$KV$83,0))/INDEX('Inputs (values)'!$H$84:$KV$86,1,MATCH('Inputs (values)'!$H$10,'Inputs (values)'!$H$83:$KV$83,0)))*(INDEX('Inputs (values)'!$H$62:$KV$62,1,MATCH('Inputs (values)'!$H$12,'Inputs (values)'!$H$83:$KV$83,0))/INDEX('Inputs (values)'!$H$62:$KV$62,1,MATCH('Inputs (values)'!$H$11,'Inputs (values)'!$H$83:$KV$83,0))) -> 10.30435874 | DU22: =(INDEX('Inputs (values)'!$H$84:$KV$86,1,MATCH('Calculations (values)'!DU$21,'Inputs (values)'!$H$83:'Inputs (values)'!$KV$83,0))/INDEX('Inputs (values)'!$H$84:$KV$86,1,MATCH('Inputs (values)'!$H$10,'Inputs (values)'!$H$83:$KV$83,0)))*(INDEX('Inputs (values)'!$H$62:$KV$62,1,MATCH('Inputs (values)'!$H$12,'Inputs (values)'!$H$83:$KV$83,0))/INDEX('Inputs (values)'!$H$62:$KV$62,1,MATCH('Inputs (values)'!$H$11,'Inputs (values)'!$H$83:$KV$83,0))) -> 10.45665295 | DV22: =(INDEX('Inputs (values)'!$H$84:$KV$86,1,MATCH('Calculations (values)'!DV$21,'Inputs (values)'!$H$83:'Inputs (values)'!$KV$83,0))/INDEX('Inputs (values)'!$H$84:$KV$86,1,MATCH('Inputs (values)'!$H$10,'Inputs (values)'!$H$83:$KV$83,0)))*(INDEX('Inputs (values)'!$H$62:$KV$62,1,MATCH('Inputs (values)'!$H$12,'Inputs (values)'!$H$83:$KV$83,0))/INDEX('Inputs (values)'!$H$62:$KV$62,1,MATCH('Inputs (values)'!$H$11,'Inputs (values)'!$H$83:$KV$83,0))) -> 10.61119801 | DW22: =(INDEX('Inputs (values)'!$H$84:$KV$86,1,MATCH('Calculations (values)'!DW$21,'Inputs (values)'!$H$83:'Inputs (values)'!$KV$83,0))/INDEX('Inputs (values)'!$H$84:$KV$86,1,MATCH('Inputs (values)'!$H$10,'Inputs (values)'!$H$83:$KV$83,0)))*(INDEX('Inputs (values)'!$H$62:$KV$62,1,MATCH('Inputs (values)'!$H$12,'Inputs (values)'!$H$83:$KV$83,0))/INDEX('Inputs (values)'!$H$62:$KV$62,1,MATCH('Inputs (values)'!$H$11,'Inputs (values)'!$H$83:$KV$83,0))) -> 10.76802719 | DX22: =(INDEX('Inputs (values)'!$H$84:$KV$86,1,MATCH('Calculations (values)'!DX$21,'Inputs (values)'!$H$83:'Inputs (values)'!$KV$83,0))/INDEX('Inputs (values)'!$H$84:$KV$86,1,MATCH('Inputs (values)'!$H$10,'Inputs (values)'!$H$83:$KV$83,0)))*(INDEX('Inputs (values)'!$H$62:$KV$62,1,MATCH('Inputs (values)'!$H$12,'Inputs (values)'!$H$83:$KV$83,0))/INDEX('Inputs (values)'!$H$62:$KV$62,1,MATCH('Inputs (values)'!$H$11,'Inputs (values)'!$H$83:$KV$83,0))) -> 10.92717423 | DY22: =(INDEX('Inputs (values)'!$H$84:$KV$86,1,MATCH('Calculations (values)'!DY$21,'Inputs (values)'!$H$83:'Inputs (values)'!$KV$83,0))/INDEX('Inputs (values)'!$H$84:$KV$86,1,MATCH('Inputs (values)'!$H$10,'Inputs (values)'!$H$83:$KV$83,0)))*(INDEX('Inputs (values)'!$H$62:$KV$62,1,MATCH('Inputs (values)'!$H$12,'Inputs (values)'!$H$83:$KV$83,0))/INDEX('Inputs (values)'!$H$62:$KV$62,1,MATCH('Inputs (values)'!$H$11,'Inputs (values)'!$H$83:$KV$83,0))) -> 11.0886734 | DZ22: =(INDEX('Inputs (values)'!$H$84:$KV$86,1,MATCH('Calculations (values)'!DZ$21,'Inputs (values)'!$H$83:'Inputs (values)'!$KV$83,0))/INDEX('Inputs (values)'!$H$84:$KV$86,1,MATCH('Inputs (values)'!$H$10,'Inputs (values)'!$H$83:$KV$83,0)))*(INDEX('Inputs (values)'!$H$62:$KV$62,1,MATCH('Inputs (values)'!$H$12,'Inputs (values)'!$H$83:$KV$83,0))/INDEX('Inputs (values)'!$H$62:$KV$62,1,MATCH('Inputs (values)'!$H$11,'Inputs (values)'!$H$83:$KV$83,0))) -> 11.25255946 | EA22: =(INDEX('Inputs (values)'!$H$84:$KV$86,1,MATCH('Calculations (values)'!EA$21,'Inputs (values)'!$H$83:'Inputs (values)'!$KV$83,0))/INDEX('Inputs (values)'!$H$84:$KV$86,1,MATCH('Inputs (values)'!$H$10,'Inputs (values)'!$H$83:$KV$83,0)))*(INDEX('Inputs (values)'!$H$62:$KV$62,1,MATCH('Inputs (values)'!$H$12,'Inputs (values)'!$H$83:$KV$83,0))/INDEX('Inputs (values)'!$H$62:$KV$62,1,MATCH('Inputs (values)'!$H$11,'Inputs (values)'!$H$83:$KV$83,0))) -> 11.4188677 | EB22: =(INDEX('Inputs (values)'!$H$84:$KV$86,1,MATCH('Calculations (values)'!EB$21,'Inputs (values)'!$H$83:'Inputs (values)'!$KV$83,0))/INDEX('Inputs (values)'!$H$84:$KV$86,1,MATCH('Inputs (values)'!$H$10,'Inputs (values)'!$H$83:$KV$83,0)))*(INDEX('Inputs (values)'!$H$62:$KV$62,1,MATCH('Inputs (values)'!$H$12,'Inputs (values)'!$H$83:$KV$83,0))/INDEX('Inputs (values)'!$H$62:$KV$62,1,MATCH('Inputs (values)'!$H$11,'Inputs (values)'!$H$83:$KV$83,0))) -> 11.5876339 | EC22: =(INDEX('Inputs (values)'!$H$84:$KV$86,1,MATCH('Calculations (values)'!EC$21,'Inputs (values)'!$H$83:'Inputs (values)'!$KV$83,0))/INDEX('Inputs (values)'!$H$84:$KV$86,1,MATCH('Inputs (values)'!$H$10,'Inputs (values)'!$H$83:$KV$83,0)))*(INDEX('Inputs (values)'!$H$62:$KV$62,1,MATCH('Inputs (values)'!$H$12,'Inputs (values)'!$H$83:$KV$83,0))/INDEX('Inputs (values)'!$H$62:$KV$62,1,MATCH('Inputs (values)'!$H$11,'Inputs (values)'!$H$83:$KV$83,0))) -> 11.75889439 | ED22: =(INDEX('Inputs (values)'!$H$84:$KV$86,1,MATCH('Calculations (values)'!ED$21,'Inputs (values)'!$H$83:'Inputs (values)'!$KV$83,0))/INDEX('Inputs (values)'!$H$84:$KV$86,1,MATCH('Inputs (values)'!$H$10,'Inputs (values)'!$H$83:$KV$83,0)))*(INDEX('Inputs (values)'!$H$62:$KV$62,1,MATCH('Inputs (values)'!$H$12,'Inputs (values)'!$H$83:$KV$83,0))/INDEX('Inputs (values)'!$H$62:$KV$62,1,MATCH('Inputs (values)'!$H$11,'Inputs (values)'!$H$83:$KV$83,0))) -> 11.93268605 | EE22: =(INDEX('Inputs (values)'!$H$84:$KV$86,1,MATCH('Calculations (values)'!EE$21,'Inputs (values)'!$H$83:'Inputs (values)'!$KV$83,0))/INDEX('Inputs (values)'!$H$84:$KV$86,1,MATCH('Inputs (values)'!$H$10,'Inputs (values)'!$H$83:$KV$83,0)))*(INDEX('Inputs (values)'!$H$62:$KV$62,1,MATCH('Inputs (values)'!$H$12,'Inputs (values)'!$H$83:$KV$83,0))/INDEX('Inputs (values)'!$H$62:$KV$62,1,MATCH('Inputs (values)'!$H$11,'Inputs (values)'!$H$83:$KV$83,0))) -> 12.10904628 | EF22: =(INDEX('Inputs (values)'!$H$84:$KV$86,1,MATCH('Calculations (values)'!EF$21,'Inputs (values)'!$H$83:'Inputs (values)'!$KV$83,0))/INDEX('Inputs (values)'!$H$84:$KV$86,1,MATCH('Inputs (values)'!$H$10,'Inputs (values)'!$H$83:$KV$83,0)))*(INDEX('Inputs (values)'!$H$62:$KV$62,1,MATCH('Inputs (values)'!$H$12,'Inputs (values)'!$H$83:$KV$83,0))/INDEX('Inputs (values)'!$H$62:$KV$62,1,MATCH('Inputs (values)'!$H$11,'Inputs (values)'!$H$83:$KV$83,0))) -> 12.28801303 | EG22: =(INDEX('Inputs (values)'!$H$84:$KV$86,1,MATCH('Calculations (values)'!EG$21,'Inputs (values)'!$H$83:'Inputs (values)'!$KV$83,0))/INDEX('Inputs (values)'!$H$84:$KV$86,1,MATCH('Inputs (values)'!$H$10,'Inputs (values)'!$H$83:$KV$83,0)))*(INDEX('Inputs (values)'!$H$62:$KV$62,1,MATCH('Inputs (values)'!$H$12,'Inputs (values)'!$H$83:$KV$83,0))/INDEX('Inputs (values)'!$H$62:$KV$62,1,MATCH('Inputs (values)'!$H$11,'Inputs (values)'!$H$83:$KV$83,0))) -> 12.46962485 | EH22: =(INDEX('Inputs (values)'!$H$84:$KV$86,1,MATCH('Calculations (values)'!EH$21,'Inputs (values)'!$H$83:'Inputs (values)'!$KV$83,0))/INDEX('Inputs (values)'!$H$84:$KV$86,1,MATCH('Inputs (values)'!$H$10,'Inputs (values)'!$H$83:$KV$83,0)))*(INDEX('Inputs (values)'!$H$62:$KV$62,1,MATCH('Inputs (values)'!$H$12,'Inputs (values)'!$H$83:$KV$83,0))/INDEX('Inputs (values)'!$H$62:$KV$62,1,MATCH('Inputs (values)'!$H$11,'Inputs (values)'!$H$83:$KV$83,0))) -> 12.65392081 | EI22: =(INDEX('Inputs (values)'!$H$84:$KV$86,1,MATCH('Calculations (values)'!EI$21,'Inputs (values)'!$H$83:'Inputs (values)'!$KV$83,0))/INDEX('Inputs (values)'!$H$84:$KV$86,1,MATCH('Inputs (values)'!$H$10,'Inputs (values)'!$H$83:$KV$83,0)))*(INDEX('Inputs (values)'!$H$62:$KV$62,1,MATCH('Inputs (values)'!$H$12,'Inputs (values)'!$H$83:$KV$83,0))/INDEX('Inputs (values)'!$H$62:$KV$62,1,MATCH('Inputs (values)'!$H$11,'Inputs (values)'!$H$83:$KV$83,0))) -> 12.84094059 | EJ22: =(INDEX('Inputs (values)'!$H$84:$KV$86,1,MATCH('Calculations (values)'!EJ$21,'Inputs (values)'!$H$83:'Inputs (values)'!$KV$83,0))/INDEX('Inputs (values)'!$H$84:$KV$86,1,MATCH('Inputs (values)'!$H$10,'Inputs (values)'!$H$83:$KV$83,0)))*(INDEX('Inputs (values)'!$H$62:$KV$62,1,MATCH('Inputs (values)'!$H$12,'Inputs (values)'!$H$83:$KV$83,0))/INDEX('Inputs (values)'!$H$62:$KV$62,1,MATCH('Inputs (values)'!$H$11,'Inputs (values)'!$H$83:$KV$83,0))) -> 13.03072445 | EK22: =(INDEX('Inputs (values)'!$H$84:$KV$86,1,MATCH('Calculations (values)'!EK$21,'Inputs (values)'!$H$83:'Inputs (values)'!$KV$83,0))/INDEX('Inputs (values)'!$H$84:$KV$86,1,MATCH('Inputs (values)'!$H$10,'Inputs (values)'!$H$83:$KV$83,0)))*(INDEX('Inputs (values)'!$H$62:$KV$62,1,MATCH('Inputs (values)'!$H$12,'Inputs (values)'!$H$83:$KV$83,0))/INDEX('Inputs (values)'!$H$62:$KV$62,1,MATCH('Inputs (values)'!$H$11,'Inputs (values)'!$H$83:$KV$83,0))) -> 13.22331323 | EL22: =(INDEX('Inputs (values)'!$H$84:$KV$86,1,MATCH('Calculations (values)'!EL$21,'Inputs (values)'!$H$83:'Inputs (values)'!$KV$83,0))/INDEX('Inputs (values)'!$H$84:$KV$86,1,MATCH('Inputs (values)'!$H$10,'Inputs (values)'!$H$83:$KV$83,0)))*(INDEX('Inputs (values)'!$H$62:$KV$62,1,MATCH('Inputs (values)'!$H$12,'Inputs (values)'!$H$83:$KV$83,0))/INDEX('Inputs (values)'!$H$62:$KV$62,1,MATCH('Inputs (values)'!$H$11,'Inputs (values)'!$H$83:$KV$83,0))) -> 13.4187484 | EM22: =(INDEX('Inputs (values)'!$H$84:$KV$86,1,MATCH('Calculations (values)'!EM$21,'Inputs (values)'!$H$83:'Inputs (values)'!$KV$83,0))/INDEX('Inputs (values)'!$H$84:$KV$86,1,MATCH('Inputs (values)'!$H$10,'Inputs (values)'!$H$83:$KV$83,0)))*(INDEX('Inputs (values)'!$H$62:$KV$62,1,MATCH('Inputs (values)'!$H$12,'Inputs (values)'!$H$83:$KV$83,0))/INDEX('Inputs (values)'!$H$62:$KV$62,1,MATCH('Inputs (values)'!$H$11,'Inputs (values)'!$H$83:$KV$83,0))) -> 13.61707202 | EN22: =(INDEX('Inputs (values)'!$H$84:$KV$86,1,MATCH('Calculations (values)'!EN$21,'Inputs (values)'!$H$83:'Inputs (values)'!$KV$83,0))/INDEX('Inputs (values)'!$H$84:$KV$86,1,MATCH('Inputs (values)'!$H$10,'Inputs (values)'!$H$83:$KV$83,0)))*(INDEX('Inputs (values)'!$H$62:$KV$62,1,MATCH('Inputs (values)'!$H$12,'Inputs (values)'!$H$83:$KV$83,0))/INDEX('Inputs (values)'!$H$62:$KV$62,1,MATCH('Inputs (values)'!$H$11,'Inputs (values)'!$H$83:$KV$83,0))) -> 13.81832679 | EO22: =(INDEX('Inputs (values)'!$H$84:$KV$86,1,MATCH('Calculations (values)'!EO$21,'Inputs (values)'!$H$83:'Inputs (values)'!$KV$83,0))/INDEX('Inputs (values)'!$H$84:$KV$86,1,MATCH('Inputs (values)'!$H$10,'Inputs (values)'!$H$83:$KV$83,0)))*(INDEX('Inputs (values)'!$H$62:$KV$62,1,MATCH('Inputs (values)'!$H$12,'Inputs (values)'!$H$83:$KV$83,0))/INDEX('Inputs (values)'!$H$62:$KV$62,1,MATCH('Inputs (values)'!$H$11,'Inputs (values)'!$H$83:$KV$83,0))) -> 14.02255601 | EP22: =(INDEX('Inputs (values)'!$H$84:$KV$86,1,MATCH('Calculations (values)'!EP$21,'Inputs (values)'!$H$83:'Inputs (values)'!$KV$83,0))/INDEX('Inputs (values)'!$H$84:$KV$86,1,MATCH('Inputs (values)'!$H$10,'Inputs (values)'!$H$83:$KV$83,0)))*(INDEX('Inputs (values)'!$H$62:$KV$62,1,MATCH('Inputs (values)'!$H$12,'Inputs (values)'!$H$83:$KV$83,0))/INDEX('Inputs (values)'!$H$62:$KV$62,1,MATCH('Inputs (values)'!$H$11,'Inputs (values)'!$H$83:$KV$83,0))) -> 14.22980366 | EQ22: =(INDEX('Inputs (values)'!$H$84:$KV$86,1,MATCH('Calculations (values)'!EQ$21,'Inputs (values)'!$H$83:'Inputs (values)'!$KV$83,0))/INDEX('Inputs (values)'!$H$84:$KV$86,1,MATCH('Inputs (values)'!$H$10,'Inputs (values)'!$H$83:$KV$83,0)))*(INDEX('Inputs (values)'!$H$62:$KV$62,1,MATCH('Inputs (values)'!$H$12,'Inputs (values)'!$H$83:$KV$83,0))/INDEX('Inputs (values)'!$H$62:$KV$62,1,MATCH('Inputs (values)'!$H$11,'Inputs (values)'!$H$83:$KV$83,0))) -> 14.44011435 | ER22: =(INDEX('Inputs (values)'!$H$84:$KV$86,1,MATCH('Calculations (values)'!ER$21,'Inputs (values)'!$H$83:'Inputs (values)'!$KV$83,0))/INDEX('Inputs (values)'!$H$84:$KV$86,1,MATCH('Inputs (values)'!$H$10,'Inputs (values)'!$H$83:$KV$83,0)))*(INDEX('Inputs (values)'!$H$62:$KV$62,1,MATCH('Inputs (values)'!$H$12,'Inputs (values)'!$H$83:$KV$83,0))/INDEX('Inputs (values)'!$H$62:$KV$62,1,MATCH('Inputs (values)'!$H$11,'Inputs (values)'!$H$83:$KV$83,0))) -> 14.65353334 | ES22: =(INDEX('Inputs (values)'!$H$84:$KV$86,1,MATCH('Calculations (values)'!ES$21,'Inputs (values)'!$H$83:'Inputs (values)'!$KV$83,0))/INDEX('Inputs (values)'!$H$84:$KV$86,1,MATCH('Inputs (values)'!$H$10,'Inputs (values)'!$H$83:$KV$83,0)))*(INDEX('Inputs (values)'!$H$62:$KV$62,1,MATCH('Inputs (values)'!$H$12,'Inputs (values)'!$H$83:$KV$83,0))/INDEX('Inputs (values)'!$H$62:$KV$62,1,MATCH('Inputs (values)'!$H$11,'Inputs (values)'!$H$83:$KV$83,0))) -> 14.87010658 | ET22: =(INDEX('Inputs (values)'!$H$84:$KV$86,1,MATCH('Calculations (values)'!ET$21,'Inputs (values)'!$H$83:'Inputs (values)'!$KV$83,0))/INDEX('Inputs (values)'!$H$84:$KV$86,1,MATCH('Inputs (values)'!$H$10,'Inputs (values)'!$H$83:$KV$83,0)))*(INDEX('Inputs (values)'!$H$62:$KV$62,1,MATCH('Inputs (values)'!$H$12,'Inputs (values)'!$H$83:$KV$83,0))/INDEX('Inputs (values)'!$H$62:$KV$62,1,MATCH('Inputs (values)'!$H$11,'Inputs (values)'!$H$83:$KV$83,0))) -> 15.08988068 | EU22: =(INDEX('Inputs (values)'!$H$84:$KV$86,1,MATCH('Calculations (values)'!EU$21,'Inputs (values)'!$H$83:'Inputs (values)'!$KV$83,0))/INDEX('Inputs (values)'!$H$84:$KV$86,1,MATCH('Inputs (values)'!$H$10,'Inputs (values)'!$H$83:$KV$83,0)))*(INDEX('Inputs (values)'!$H$62:$KV$62,1,MATCH('Inputs (values)'!$H$12,'Inputs (values)'!$H$83:$KV$83,0))/INDEX('Inputs (values)'!$H$62:$KV$62,1,MATCH('Inputs (values)'!$H$11,'Inputs (values)'!$H$83:$KV$83,0))) -> 15.31290295 | EV22: =(INDEX('Inputs (values)'!$H$84:$KV$86,1,MATCH('Calculations (values)'!EV$21,'Inputs (values)'!$H$83:'Inputs (values)'!$KV$83,0))/INDEX('Inputs (values)'!$H$84:$KV$86,1,MATCH('Inputs (values)'!$H$10,'Inputs (values)'!$H$83:$KV$83,0)))*(INDEX('Inputs (values)'!$H$62:$KV$62,1,MATCH('Inputs (values)'!$H$12,'Inputs (values)'!$H$83:$KV$83,0))/INDEX('Inputs (values)'!$H$62:$KV$62,1,MATCH('Inputs (values)'!$H$11,'Inputs (values)'!$H$83:$KV$83,0))) -> 15.5392214 | EW22: =(INDEX('Inputs (values)'!$H$84:$KV$86,1,MATCH('Calculations (values)'!EW$21,'Inputs (values)'!$H$83:'Inputs (values)'!$KV$83,0))/INDEX('Inputs (values)'!$H$84:$KV$86,1,MATCH('Inputs (values)'!$H$10,'Inputs (values)'!$H$83:$KV$83,0)))*(INDEX('Inputs (values)'!$H$62:$KV$62,1,MATCH('Inputs (values)'!$H$12,'Inputs (values)'!$H$83:$KV$83,0))/INDEX('Inputs (values)'!$H$62:$KV$62,1,MATCH('Inputs (values)'!$H$11,'Inputs (values)'!$H$83:$KV$83,0))) -> 15.76888475 | EX22: =(INDEX('Inputs (values)'!$H$84:$KV$86,1,MATCH('Calculations (values)'!EX$21,'Inputs (values)'!$H$83:'Inputs (values)'!$KV$83,0))/INDEX('Inputs (values)'!$H$84:$KV$86,1,MATCH('Inputs (values)'!$H$10,'Inputs (values)'!$H$83:$KV$83,0)))*(INDEX('Inputs (values)'!$H$62:$KV$62,1,MATCH('Inputs (values)'!$H$12,'Inputs (values)'!$H$83:$KV$83,0))/INDEX('Inputs (values)'!$H$62:$KV$62,1,MATCH('Inputs (values)'!$H$11,'Inputs (values)'!$H$83:$KV$83,0))) -> 16.00194242 | EY22: =(INDEX('Inputs (values)'!$H$84:$KV$86,1,MATCH('Calculations (values)'!EY$21,'Inputs (values)'!$H$83:'Inputs (values)'!$KV$83,0))/INDEX('Inputs (values)'!$H$84:$KV$86,1,MATCH('Inputs (values)'!$H$10,'Inputs (values)'!$H$83:$KV$83,0)))*(INDEX('Inputs (values)'!$H$62:$KV$62,1,MATCH('Inputs (values)'!$H$12,'Inputs (values)'!$H$83:$KV$83,0))/INDEX('Inputs (values)'!$H$62:$KV$62,1,MATCH('Inputs (values)'!$H$11,'Inputs (values)'!$H$83:$KV$83,0))) -> 16.2384446 | EZ22: =(INDEX('Inputs (values)'!$H$84:$KV$86,1,MATCH('Calculations (values)'!EZ$21,'Inputs (values)'!$H$83:'Inputs (values)'!$KV$83,0))/INDEX('Inputs (values)'!$H$84:$KV$86,1,MATCH('Inputs (values)'!$H$10,'Inputs (values)'!$H$83:$KV$83,0)))*(INDEX('Inputs (values)'!$H$62:$KV$62,1,MATCH('Inputs (values)'!$H$12,'Inputs (values)'!$H$83:$KV$83,0))/INDEX('Inputs (values)'!$H$62:$KV$62,1,MATCH('Inputs (values)'!$H$11,'Inputs (values)'!$H$83:$KV$83,0))) -> 16.47844218 | FA22: =(INDEX('Inputs (values)'!$H$84:$KV$86,1,MATCH('Calculations (values)'!FA$21,'Inputs (values)'!$H$83:'Inputs (values)'!$KV$83,0))/INDEX('Inputs (values)'!$H$84:$KV$86,1,MATCH('Inputs (values)'!$H$10,'Inputs (values)'!$H$83:$KV$83,0)))*(INDEX('Inputs (values)'!$H$62:$KV$62,1,MATCH('Inputs (values)'!$H$12,'Inputs (values)'!$H$83:$KV$83,0))/INDEX('Inputs (values)'!$H$62:$KV$62,1,MATCH('Inputs (values)'!$H$11,'Inputs (values)'!$H$83:$KV$83,0))) -> 16.72198682 | FB22: =(INDEX('Inputs (values)'!$H$84:$KV$86,1,MATCH('Calculations (values)'!FB$21,'Inputs (values)'!$H$83:'Inputs (values)'!$KV$83,0))/INDEX('Inputs (values)'!$H$84:$KV$86,1,MATCH('Inputs (values)'!$H$10,'Inputs (values)'!$H$83:$KV$83,0)))*(INDEX('Inputs (values)'!$H$62:$KV$62,1,MATCH('Inputs (values)'!$H$12,'Inputs (values)'!$H$83:$KV$83,0))/INDEX('Inputs (values)'!$H$62:$KV$62,1,MATCH('Inputs (values)'!$H$11,'Inputs (values)'!$H$83:$KV$83,0))) -> 16.96913096 | FC22: =(INDEX('Inputs (values)'!$H$84:$KV$86,1,MATCH('Calculations (values)'!FC$21,'Inputs (values)'!$H$83:'Inputs (values)'!$KV$83,0))/INDEX('Inputs (values)'!$H$84:$KV$86,1,MATCH('Inputs (values)'!$H$10,'Inputs (values)'!$H$83:$KV$83,0)))*(INDEX('Inputs (values)'!$H$62:$KV$62,1,MATCH('Inputs (values)'!$H$12,'Inputs (values)'!$H$83:$KV$83,0))/INDEX('Inputs (values)'!$H$62:$KV$62,1,MATCH('Inputs (values)'!$H$11,'Inputs (values)'!$H$83:$KV$83,0))) -> 17.21992778 | FD22: =(INDEX('Inputs (values)'!$H$84:$KV$86,1,MATCH('Calculations (values)'!FD$21,'Inputs (values)'!$H$83:'Inputs (values)'!$KV$83,0))/INDEX('Inputs (values)'!$H$84:$KV$86,1,MATCH('Inputs (values)'!$H$10,'Inputs (values)'!$H$83:$KV$83,0)))*(INDEX('Inputs (values)'!$H$62:$KV$62,1,MATCH('Inputs (values)'!$H$12,'Inputs (values)'!$H$83:$KV$83,0))/INDEX('Inputs (values)'!$H$62:$KV$62,1,MATCH('Inputs (values)'!$H$11,'Inputs (values)'!$H$83:$KV$83,0))) -> 17.47443128 | FE22: =(INDEX('Inputs (values)'!$H$84:$KV$86,1,MATCH('Calculations (values)'!FE$21,'Inputs (values)'!$H$83:'Inputs (values)'!$KV$83,0))/INDEX('Inputs (values)'!$H$84:$KV$86,1,MATCH('Inputs (values)'!$H$10,'Inputs (values)'!$H$83:$KV$83,0)))*(INDEX('Inputs (values)'!$H$62:$KV$62,1,MATCH('Inputs (values)'!$H$12,'Inputs (values)'!$H$83:$KV$83,0))/INDEX('Inputs (values)'!$H$62:$KV$62,1,MATCH('Inputs (values)'!$H$11,'Inputs (values)'!$H$83:$KV$83,0))) -> 17.73269624 | FF22: =(INDEX('Inputs (values)'!$H$84:$KV$86,1,MATCH('Calculations (values)'!FF$21,'Inputs (values)'!$H$83:'Inputs (values)'!$KV$83,0))/INDEX('Inputs (values)'!$H$84:$KV$86,1,MATCH('Inputs (values)'!$H$10,'Inputs (values)'!$H$83:$KV$83,0)))*(INDEX('Inputs (values)'!$H$62:$KV$62,1,MATCH('Inputs (values)'!$H$12,'Inputs (values)'!$H$83:$KV$83,0))/INDEX('Inputs (values)'!$H$62:$KV$62,1,MATCH('Inputs (values)'!$H$11,'Inputs (values)'!$H$83:$KV$83,0))) -> 17.99477824 | FG22: =(INDEX('Inputs (values)'!$H$84:$KV$86,1,MATCH('Calculations (values)'!FG$21,'Inputs (values)'!$H$83:'Inputs (values)'!$KV$83,0))/INDEX('Inputs (values)'!$H$84:$KV$86,1,MATCH('Inputs (values)'!$H$10,'Inputs (values)'!$H$83:$KV$83,0)))*(INDEX('Inputs (values)'!$H$62:$KV$62,1,MATCH('Inputs (values)'!$H$12,'Inputs (values)'!$H$83:$KV$83,0))/INDEX('Inputs (values)'!$H$62:$KV$62,1,MATCH('Inputs (values)'!$H$11,'Inputs (values)'!$H$83:$KV$83,0))) -> 18.26073372 | FH22: =(INDEX('Inputs (values)'!$H$84:$KV$86,1,MATCH('Calculations (values)'!FH$21,'Inputs (values)'!$H$83:'Inputs (values)'!$KV$83,0))/INDEX('Inputs (values)'!$H$84:$KV$86,1,MATCH('Inputs (values)'!$H$10,'Inputs (values)'!$H$83:$KV$83,0)))*(INDEX('Inputs (values)'!$H$62:$KV$62,1,MATCH('Inputs (values)'!$H$12,'Inputs (values)'!$H$83:$KV$83,0))/INDEX('Inputs (values)'!$H$62:$KV$62,1,MATCH('Inputs (values)'!$H$11,'Inputs (values)'!$H$83:$KV$83,0))) -> 18.5306199 | FI22: =(INDEX('Inputs (values)'!$H$84:$KV$86,1,MATCH('Calculations (values)'!FI$21,'Inputs (values)'!$H$83:'Inputs (values)'!$KV$83,0))/INDEX('Inputs (values)'!$H$84:$KV$86,1,MATCH('Inputs (values)'!$H$10,'Inputs (values)'!$H$83:$KV$83,0)))*(INDEX('Inputs (values)'!$H$62:$KV$62,1,MATCH('Inputs (values)'!$H$12,'Inputs (values)'!$H$83:$KV$83,0))/INDEX('Inputs (values)'!$H$62:$KV$62,1,MATCH('Inputs (values)'!$H$11,'Inputs (values)'!$H$83:$KV$83,0))) -> 18.8044949 | FJ22: =(INDEX('Inputs (values)'!$H$84:$KV$86,1,MATCH('Calculations (values)'!FJ$21,'Inputs (values)'!$H$83:'Inputs (values)'!$KV$83,0))/INDEX('Inputs (values)'!$H$84:$KV$86,1,MATCH('Inputs (values)'!$H$10,'Inputs (values)'!$H$83:$KV$83,0)))*(INDEX('Inputs (values)'!$H$62:$KV$62,1,MATCH('Inputs (values)'!$H$12,'Inputs (values)'!$H$83:$KV$83,0))/INDEX('Inputs (values)'!$H$62:$KV$62,1,MATCH('Inputs (values)'!$H$11,'Inputs (values)'!$H$83:$KV$83,0))) -> 19.08241765 | FK22: =(INDEX('Inputs (values)'!$H$84:$KV$86,1,MATCH('Calculations (values)'!FK$21,'Inputs (values)'!$H$83:'Inputs (values)'!$KV$83,0))/INDEX('Inputs (values)'!$H$84:$KV$86,1,MATCH('Inputs (values)'!$H$10,'Inputs (values)'!$H$83:$KV$83,0)))*(INDEX('Inputs (values)'!$H$62:$KV$62,1,MATCH('Inputs (values)'!$H$12,'Inputs (values)'!$H$83:$KV$83,0))/INDEX('Inputs (values)'!$H$62:$KV$62,1,MATCH('Inputs (values)'!$H$11,'Inputs (values)'!$H$83:$KV$83,0))) -> 19.36444799 | FL22: =(INDEX('Inputs (values)'!$H$84:$KV$86,1,MATCH('Calculations (values)'!FL$21,'Inputs (values)'!$H$83:'Inputs (values)'!$KV$83,0))/INDEX('Inputs (values)'!$H$84:$KV$86,1,MATCH('Inputs (values)'!$H$10,'Inputs (values)'!$H$83:$KV$83,0)))*(INDEX('Inputs (values)'!$H$62:$KV$62,1,MATCH('Inputs (values)'!$H$12,'Inputs (values)'!$H$83:$KV$83,0))/INDEX('Inputs (values)'!$H$62:$KV$62,1,MATCH('Inputs (values)'!$H$11,'Inputs (values)'!$H$83:$KV$83,0))) -> 19.65064662 | FM22: =(INDEX('Inputs (values)'!$H$84:$KV$86,1,MATCH('Calculations (values)'!FM$21,'Inputs (values)'!$H$83:'Inputs (values)'!$KV$83,0))/INDEX('Inputs (values)'!$H$84:$KV$86,1,MATCH('Inputs (values)'!$H$10,'Inputs (values)'!$H$83:$KV$83,0)))*(INDEX('Inputs (values)'!$H$62:$KV$62,1,MATCH('Inputs (values)'!$H$12,'Inputs (values)'!$H$83:$KV$83,0))/INDEX('Inputs (values)'!$H$62:$KV$62,1,MATCH('Inputs (values)'!$H$11,'Inputs (values)'!$H$83:$KV$83,0))) -> 19.94107515 | FN22: =(INDEX('Inputs (values)'!$H$84:$KV$86,1,MATCH('Calculations (values)'!FN$21,'Inputs (values)'!$H$83:'Inputs (values)'!$KV$83,0))/INDEX('Inputs (values)'!$H$84:$KV$86,1,MATCH('Inputs (values)'!$H$10,'Inputs (values)'!$H$83:$KV$83,0)))*(INDEX('Inputs (values)'!$H$62:$KV$62,1,MATCH('Inputs (values)'!$H$12,'Inputs (values)'!$H$83:$KV$83,0))/INDEX('Inputs (values)'!$H$62:$KV$62,1,MATCH('Inputs (values)'!$H$11,'Inputs (values)'!$H$83:$KV$83,0))) -> 20.2357961 | FO22: =(INDEX('Inputs (values)'!$H$84:$KV$86,1,MATCH('Calculations (values)'!FO$21,'Inputs (values)'!$H$83:'Inputs (values)'!$KV$83,0))/INDEX('Inputs (values)'!$H$84:$KV$86,1,MATCH('Inputs (values)'!$H$10,'Inputs (values)'!$H$83:$KV$83,0)))*(INDEX('Inputs (values)'!$H$62:$KV$62,1,MATCH('Inputs (values)'!$H$12,'Inputs (values)'!$H$83:$KV$83,0))/INDEX('Inputs (values)'!$H$62:$KV$62,1,MATCH('Inputs (values)'!$H$11,'Inputs (values)'!$H$83:$KV$83,0))) -> 20.5348729 | FP22: =(INDEX('Inputs (values)'!$H$84:$KV$86,1,MATCH('Calculations (values)'!FP$21,'Inputs (values)'!$H$83:'Inputs (values)'!$KV$83,0))/INDEX('Inputs (values)'!$H$84:$KV$86,1,MATCH('Inputs (values)'!$H$10,'Inputs (values)'!$H$83:$KV$83,0)))*(INDEX('Inputs (values)'!$H$62:$KV$62,1,MATCH('Inputs (values)'!$H$12,'Inputs (values)'!$H$83:$KV$83,0))/INDEX('Inputs (values)'!$H$62:$KV$62,1,MATCH('Inputs (values)'!$H$11,'Inputs (values)'!$H$83:$KV$83,0))) -> 20.83836993 | FQ22: =(INDEX('Inputs (values)'!$H$84:$KV$86,1,MATCH('Calculations (values)'!FQ$21,'Inputs (values)'!$H$83:'Inputs (values)'!$KV$83,0))/INDEX('Inputs (values)'!$H$84:$KV$86,1,MATCH('Inputs (values)'!$H$10,'Inputs (values)'!$H$83:$KV$83,0)))*(INDEX('Inputs (values)'!$H$62:$KV$62,1,MATCH('Inputs (values)'!$H$12,'Inputs (values)'!$H$83:$KV$83,0))/INDEX('Inputs (values)'!$H$62:$KV$62,1,MATCH('Inputs (values)'!$H$11,'Inputs (values)'!$H$83:$KV$83,0))) -> 21.14635253 | FR22: =(INDEX('Inputs (values)'!$H$84:$KV$86,1,MATCH('Calculations (values)'!FR$21,'Inputs (values)'!$H$83:'Inputs (values)'!$KV$83,0))/INDEX('Inputs (values)'!$H$84:$KV$86,1,MATCH('Inputs (values)'!$H$10,'Inputs (values)'!$H$83:$KV$83,0)))*(INDEX('Inputs (values)'!$H$62:$KV$62,1,MATCH('Inputs (values)'!$H$12,'Inputs (values)'!$H$83:$KV$83,0))/INDEX('Inputs (values)'!$H$62:$KV$62,1,MATCH('Inputs (values)'!$H$11,'Inputs (values)'!$H$83:$KV$83,0))) -> 21.45888698 | FS22: =(INDEX('Inputs (values)'!$H$84:$KV$86,1,MATCH('Calculations (values)'!FS$21,'Inputs (values)'!$H$83:'Inputs (values)'!$KV$83,0))/INDEX('Inputs (values)'!$H$84:$KV$86,1,MATCH('Inputs (values)'!$H$10,'Inputs (values)'!$H$83:$KV$83,0)))*(INDEX('Inputs (values)'!$H$62:$KV$62,1,MATCH('Inputs (values)'!$H$12,'Inputs (values)'!$H$83:$KV$83,0))/INDEX('Inputs (values)'!$H$62:$KV$62,1,MATCH('Inputs (values)'!$H$11,'Inputs (values)'!$H$83:$KV$83,0))) -> 21.77604057 | FT22: =(INDEX('Inputs (values)'!$H$84:$KV$86,1,MATCH('Calculations (values)'!FT$21,'Inputs (values)'!$H$83:'Inputs (values)'!$KV$83,0))/INDEX('Inputs (values)'!$H$84:$KV$86,1,MATCH('Inputs (values)'!$H$10,'Inputs (values)'!$H$83:$KV$83,0)))*(INDEX('Inputs (values)'!$H$62:$KV$62,1,MATCH('Inputs (values)'!$H$12,'Inputs (values)'!$H$83:$KV$83,0))/INDEX('Inputs (values)'!$H$62:$KV$62,1,MATCH('Inputs (values)'!$H$11,'Inputs (values)'!$H$83:$KV$83,0))) -> 22.09788155 | FU22: =(INDEX('Inputs (values)'!$H$84:$KV$86,1,MATCH('Calculations (values)'!FU$21,'Inputs (values)'!$H$83:'Inputs (values)'!$KV$83,0))/INDEX('Inputs (values)'!$H$84:$KV$86,1,MATCH('Inputs (values)'!$H$10,'Inputs (values)'!$H$83:$KV$83,0)))*(INDEX('Inputs (values)'!$H$62:$KV$62,1,MATCH('Inputs (values)'!$H$12,'Inputs (values)'!$H$83:$KV$83,0))/INDEX('Inputs (values)'!$H$62:$KV$62,1,MATCH('Inputs (values)'!$H$11,'Inputs (values)'!$H$83:$KV$83,0))) -> 22.42447922 | FV22: =(INDEX('Inputs (values)'!$H$84:$KV$86,1,MATCH('Calculations (values)'!FV$21,'Inputs (values)'!$H$83:'Inputs (values)'!$KV$83,0))/INDEX('Inputs (values)'!$H$84:$KV$86,1,MATCH('Inputs (values)'!$H$10,'Inputs (values)'!$H$83:$KV$83,0)))*(INDEX('Inputs (values)'!$H$62:$KV$62,1,MATCH('Inputs (values)'!$H$12,'Inputs (values)'!$H$83:$KV$83,0))/INDEX('Inputs (values)'!$H$62:$KV$62,1,MATCH('Inputs (values)'!$H$11,'Inputs (values)'!$H$83:$KV$83,0))) -> 22.75590386 | FW22: =(INDEX('Inputs (values)'!$H$84:$KV$86,1,MATCH('Calculations (values)'!FW$21,'Inputs (values)'!$H$83:'Inputs (values)'!$KV$83,0))/INDEX('Inputs (values)'!$H$84:$KV$86,1,MATCH('Inputs (values)'!$H$10,'Inputs (values)'!$H$83:$KV$83,0)))*(INDEX('Inputs (values)'!$H$62:$KV$62,1,MATCH('Inputs (values)'!$H$12,'Inputs (values)'!$H$83:$KV$83,0))/INDEX('Inputs (values)'!$H$62:$KV$62,1,MATCH('Inputs (values)'!$H$11,'Inputs (values)'!$H$83:$KV$83,0))) -> 23.09222682 | FX22: =(INDEX('Inputs (values)'!$H$84:$KV$86,1,MATCH('Calculations (values)'!FX$21,'Inputs (values)'!$H$83:'Inputs (values)'!$KV$83,0))/INDEX('Inputs (values)'!$H$84:$KV$86,1,MATCH('Inputs (values)'!$H$10,'Inputs (values)'!$H$83:$KV$83,0)))*(INDEX('Inputs (values)'!$H$62:$KV$62,1,MATCH('Inputs (values)'!$H$12,'Inputs (values)'!$H$83:$KV$83,0))/INDEX('Inputs (values)'!$H$62:$KV$62,1,MATCH('Inputs (values)'!$H$11,'Inputs (values)'!$H$83:$KV$83,0))) -> 23.4335205 | FY22: =(INDEX('Inputs (values)'!$H$84:$KV$86,1,MATCH('Calculations (values)'!FY$21,'Inputs (values)'!$H$83:'Inputs (values)'!$KV$83,0))/INDEX('Inputs (values)'!$H$84:$KV$86,1,MATCH('Inputs (values)'!$H$10,'Inputs (values)'!$H$83:$KV$83,0)))*(INDEX('Inputs (values)'!$H$62:$KV$62,1,MATCH('Inputs (values)'!$H$12,'Inputs (values)'!$H$83:$KV$83,0))/INDEX('Inputs (values)'!$H$62:$KV$62,1,MATCH('Inputs (values)'!$H$11,'Inputs (values)'!$H$83:$KV$83,0))) -> 23.77985837 | FZ22: =(INDEX('Inputs (values)'!$H$84:$KV$86,1,MATCH('Calculations (values)'!FZ$21,'Inputs (values)'!$H$83:'Inputs (values)'!$KV$83,0))/INDEX('Inputs (values)'!$H$84:$KV$86,1,MATCH('Inputs (values)'!$H$10,'Inputs (values)'!$H$83:$KV$83,0)))*(INDEX('Inputs (values)'!$H$62:$KV$62,1,MATCH('Inputs (values)'!$H$12,'Inputs (values)'!$H$83:$KV$83,0))/INDEX('Inputs (values)'!$H$62:$KV$62,1,MATCH('Inputs (values)'!$H$11,'Inputs (values)'!$H$83:$KV$83,0))) -> 24.13131496 | GA22: =(INDEX('Inputs (values)'!$H$84:$KV$86,1,MATCH('Calculations (values)'!GA$21,'Inputs (values)'!$H$83:'Inputs (values)'!$KV$83,0))/INDEX('Inputs (values)'!$H$84:$KV$86,1,MATCH('Inputs (values)'!$H$10,'Inputs (values)'!$H$83:$KV$83,0)))*(INDEX('Inputs (values)'!$H$62:$KV$62,1,MATCH('Inputs (values)'!$H$12,'Inputs (values)'!$H$83:$KV$83,0))/INDEX('Inputs (values)'!$H$62:$KV$62,1,MATCH('Inputs (values)'!$H$11,'Inputs (values)'!$H$83:$KV$83,0))) -> 24.48796594 | GB22: =(INDEX('Inputs (values)'!$H$84:$KV$86,1,MATCH('Calculations (values)'!GB$21,'Inputs (values)'!$H$83:'Inputs (values)'!$KV$83,0))/INDEX('Inputs (values)'!$H$84:$KV$86,1,MATCH('Inputs (values)'!$H$10,'Inputs (values)'!$H$83:$KV$83,0)))*(INDEX('Inputs (values)'!$H$62:$KV$62,1,MATCH('Inputs (values)'!$H$12,'Inputs (values)'!$H$83:$KV$83,0))/INDEX('Inputs (values)'!$H$62:$KV$62,1,MATCH('Inputs (values)'!$H$11,'Inputs (values)'!$H$83:$KV$83,0))) -> 24.84988807 | GC22: =(INDEX('Inputs (values)'!$H$84:$KV$86,1,MATCH('Calculations (values)'!GC$21,'Inputs (values)'!$H$83:'Inputs (values)'!$KV$83,0))/INDEX('Inputs (values)'!$H$84:$KV$86,1,MATCH('Inputs (values)'!$H$10,'Inputs (values)'!$H$83:$KV$83,0)))*(INDEX('Inputs (values)'!$H$62:$KV$62,1,MATCH('Inputs (values)'!$H$12,'Inputs (values)'!$H$83:$KV$83,0))/INDEX('Inputs (values)'!$H$62:$KV$62,1,MATCH('Inputs (values)'!$H$11,'Inputs (values)'!$H$83:$KV$83,0))) -> 25.21715927 | GD22: =(INDEX('Inputs (values)'!$H$84:$KV$86,1,MATCH('Calculations (values)'!GD$21,'Inputs (values)'!$H$83:'Inputs (values)'!$KV$83,0))/INDEX('Inputs (values)'!$H$84:$KV$86,1,MATCH('Inputs (values)'!$H$10,'Inputs (values)'!$H$83:$KV$83,0)))*(INDEX('Inputs (values)'!$H$62:$KV$62,1,MATCH('Inputs (values)'!$H$12,'Inputs (values)'!$H$83:$KV$83,0))/INDEX('Inputs (values)'!$H$62:$KV$62,1,MATCH('Inputs (values)'!$H$11,'Inputs (values)'!$H$83:$KV$83,0))) -> 25.58985858 | GE22: =(INDEX('Inputs (values)'!$H$84:$KV$86,1,MATCH('Calculations (values)'!GE$21,'Inputs (values)'!$H$83:'Inputs (values)'!$KV$83,0))/INDEX('Inputs (values)'!$H$84:$KV$86,1,MATCH('Inputs (values)'!$H$10,'Inputs (values)'!$H$83:$KV$83,0)))*(INDEX('Inputs (values)'!$H$62:$KV$62,1,MATCH('Inputs (values)'!$H$12,'Inputs (values)'!$H$83:$KV$83,0))/INDEX('Inputs (values)'!$H$62:$KV$62,1,MATCH('Inputs (values)'!$H$11,'Inputs (values)'!$H$83:$KV$83,0))) -> 25.96806624 | GF22: =(INDEX('Inputs (values)'!$H$84:$KV$86,1,MATCH('Calculations (values)'!GF$21,'Inputs (values)'!$H$83:'Inputs (values)'!$KV$83,0))/INDEX('Inputs (values)'!$H$84:$KV$86,1,MATCH('Inputs (values)'!$H$10,'Inputs (values)'!$H$83:$KV$83,0)))*(INDEX('Inputs (values)'!$H$62:$KV$62,1,MATCH('Inputs (values)'!$H$12,'Inputs (values)'!$H$83:$KV$83,0))/INDEX('Inputs (values)'!$H$62:$KV$62,1,MATCH('Inputs (values)'!$H$11,'Inputs (values)'!$H$83:$KV$83,0))) -> 26.35186365 | GG22: =(INDEX('Inputs (values)'!$H$84:$KV$86,1,MATCH('Calculations (values)'!GG$21,'Inputs (values)'!$H$83:'Inputs (values)'!$KV$83,0))/INDEX('Inputs (values)'!$H$84:$KV$86,1,MATCH('Inputs (values)'!$H$10,'Inputs (values)'!$H$83:$KV$83,0)))*(INDEX('Inputs (values)'!$H$62:$KV$62,1,MATCH('Inputs (values)'!$H$12,'Inputs (values)'!$H$83:$KV$83,0))/INDEX('Inputs (values)'!$H$62:$KV$62,1,MATCH('Inputs (values)'!$H$11,'Inputs (values)'!$H$83:$KV$83,0))) -> 26.74133343 | GH22: =(INDEX('Inputs (values)'!$H$84:$KV$86,1,MATCH('Calculations (values)'!GH$21,'Inputs (values)'!$H$83:'Inputs (values)'!$KV$83,0))/INDEX('Inputs (values)'!$H$84:$KV$86,1,MATCH('Inputs (values)'!$H$10,'Inputs (values)'!$H$83:$KV$83,0)))*(INDEX('Inputs (values)'!$H$62:$KV$62,1,MATCH('Inputs (values)'!$H$12,'Inputs (values)'!$H$83:$KV$83,0))/INDEX('Inputs (values)'!$H$62:$KV$62,1,MATCH('Inputs (values)'!$H$11,'Inputs (values)'!$H$83:$KV$83,0))) -> 27.13655942 | GI22: =(INDEX('Inputs (values)'!$H$84:$KV$86,1,MATCH('Calculations (values)'!GI$21,'Inputs (values)'!$H$83:'Inputs (values)'!$KV$83,0))/INDEX('Inputs (values)'!$H$84:$KV$86,1,MATCH('Inputs (values)'!$H$10,'Inputs (values)'!$H$83:$KV$83,0)))*(INDEX('Inputs (values)'!$H$62:$KV$62,1,MATCH('Inputs (values)'!$H$12,'Inputs (values)'!$H$83:$KV$83,0))/INDEX('Inputs (values)'!$H$62:$KV$62,1,MATCH('Inputs (values)'!$H$11,'Inputs (values)'!$H$83:$KV$83,0))) -> 27.53762669 | GJ22: =(INDEX('Inputs (values)'!$H$84:$KV$86,1,MATCH('Calculations (values)'!GJ$21,'Inputs (values)'!$H$83:'Inputs (values)'!$KV$83,0))/INDEX('Inputs (values)'!$H$84:$KV$86,1,MATCH('Inputs (values)'!$H$10,'Inputs (values)'!$H$83:$KV$83,0)))*(INDEX('Inputs (values)'!$H$62:$KV$62,1,MATCH('Inputs (values)'!$H$12,'Inputs (values)'!$H$83:$KV$83,0))/INDEX('Inputs (values)'!$H$62:$KV$62,1,MATCH('Inputs (values)'!$H$11,'Inputs (values)'!$H$83:$KV$83,0))) -> 27.94462156 | GK22: =(INDEX('Inputs (values)'!$H$84:$KV$86,1,MATCH('Calculations (values)'!GK$21,'Inputs (values)'!$H$83:'Inputs (values)'!$KV$83,0))/INDEX('Inputs (values)'!$H$84:$KV$86,1,MATCH('Inputs (values)'!$H$10,'Inputs (values)'!$H$83:$KV$83,0)))*(INDEX('Inputs (values)'!$H$62:$KV$62,1,MATCH('Inputs (values)'!$H$12,'Inputs (values)'!$H$83:$KV$83,0))/INDEX('Inputs (values)'!$H$62:$KV$62,1,MATCH('Inputs (values)'!$H$11,'Inputs (values)'!$H$83:$KV$83,0))) -> 28.35763165 | GL22: =(INDEX('Inputs (values)'!$H$84:$KV$86,1,MATCH('Calculations (values)'!GL$21,'Inputs (values)'!$H$83:'Inputs (values)'!$KV$83,0))/INDEX('Inputs (values)'!$H$84:$KV$86,1,MATCH('Inputs (values)'!$H$10,'Inputs (values)'!$H$83:$KV$83,0)))*(INDEX('Inputs (values)'!$H$62:$KV$62,1,MATCH('Inputs (values)'!$H$12,'Inputs (values)'!$H$83:$KV$83,0))/INDEX('Inputs (values)'!$H$62:$KV$62,1,MATCH('Inputs (values)'!$H$11,'Inputs (values)'!$H$83:$KV$83,0))) -> 28.77674587 | GM22: =(INDEX('Inputs (values)'!$H$84:$KV$86,1,MATCH('Calculations (values)'!GM$21,'Inputs (values)'!$H$83:'Inputs (values)'!$KV$83,0))/INDEX('Inputs (values)'!$H$84:$KV$86,1,MATCH('Inputs (values)'!$H$10,'Inputs (values)'!$H$83:$KV$83,0)))*(INDEX('Inputs (values)'!$H$62:$KV$62,1,MATCH('Inputs (values)'!$H$12,'Inputs (values)'!$H$83:$KV$83,0))/INDEX('Inputs (values)'!$H$62:$KV$62,1,MATCH('Inputs (values)'!$H$11,'Inputs (values)'!$H$83:$KV$83,0))) -> 29.20205442 | GN22: =(INDEX('Inputs (values)'!$H$84:$KV$86,1,MATCH('Calculations (values)'!GN$21,'Inputs (values)'!$H$83:'Inputs (values)'!$KV$83,0))/INDEX('Inputs (values)'!$H$84:$KV$86,1,MATCH('Inputs (values)'!$H$10,'Inputs (values)'!$H$83:$KV$83,0)))*(INDEX('Inputs (values)'!$H$62:$KV$62,1,MATCH('Inputs (values)'!$H$12,'Inputs (values)'!$H$83:$KV$83,0))/INDEX('Inputs (values)'!$H$62:$KV$62,1,MATCH('Inputs (values)'!$H$11,'Inputs (values)'!$H$83:$KV$83,0))) -> 29.63364885 | GO22: =(INDEX('Inputs (values)'!$H$84:$KV$86,1,MATCH('Calculations (values)'!GO$21,'Inputs (values)'!$H$83:'Inputs (values)'!$KV$83,0))/INDEX('Inputs (values)'!$H$84:$KV$86,1,MATCH('Inputs (values)'!$H$10,'Inputs (values)'!$H$83:$KV$83,0)))*(INDEX('Inputs (values)'!$H$62:$KV$62,1,MATCH('Inputs (values)'!$H$12,'Inputs (values)'!$H$83:$KV$83,0))/INDEX('Inputs (values)'!$H$62:$KV$62,1,MATCH('Inputs (values)'!$H$11,'Inputs (values)'!$H$83:$KV$83,0))) -> 30.07162208 | GP22: =(INDEX('Inputs (values)'!$H$84:$KV$86,1,MATCH('Calculations (values)'!GP$21,'Inputs (values)'!$H$83:'Inputs (values)'!$KV$83,0))/INDEX('Inputs (values)'!$H$84:$KV$86,1,MATCH('Inputs (values)'!$H$10,'Inputs (values)'!$H$83:$KV$83,0)))*(INDEX('Inputs (values)'!$H$62:$KV$62,1,MATCH('Inputs (values)'!$H$12,'Inputs (values)'!$H$83:$KV$83,0))/INDEX('Inputs (values)'!$H$62:$KV$62,1,MATCH('Inputs (values)'!$H$11,'Inputs (values)'!$H$83:$KV$83,0))) -> 30.51606837 | GQ22: =(INDEX('Inputs (values)'!$H$84:$KV$86,1,MATCH('Calculations (values)'!GQ$21,'Inputs (values)'!$H$83:'Inputs (values)'!$KV$83,0))/INDEX('Inputs (values)'!$H$84:$KV$86,1,MATCH('Inputs (values)'!$H$10,'Inputs (values)'!$H$83:$KV$83,0)))*(INDEX('Inputs (values)'!$H$62:$KV$62,1,MATCH('Inputs (values)'!$H$12,'Inputs (values)'!$H$83:$KV$83,0))/INDEX('Inputs (values)'!$H$62:$KV$62,1,MATCH('Inputs (values)'!$H$11,'Inputs (values)'!$H$83:$KV$83,0))) -> 30.9670834 | GR22: =(INDEX('Inputs (values)'!$H$84:$KV$86,1,MATCH('Calculations (values)'!GR$21,'Inputs (values)'!$H$83:'Inputs (values)'!$KV$83,0))/INDEX('Inputs (values)'!$H$84:$KV$86,1,MATCH('Inputs (values)'!$H$10,'Inputs (values)'!$H$83:$KV$83,0)))*(INDEX('Inputs (values)'!$H$62:$KV$62,1,MATCH('Inputs (values)'!$H$12,'Inputs (values)'!$H$83:$KV$83,0))/INDEX('Inputs (values)'!$H$62:$KV$62,1,MATCH('Inputs (values)'!$H$11,'Inputs (values)'!$H$83:$KV$83,0))) -> 31.42476424 | GS22: =(INDEX('Inputs (values)'!$H$84:$KV$86,1,MATCH('Calculations (values)'!GS$21,'Inputs (values)'!$H$83:'Inputs (values)'!$KV$83,0))/INDEX('Inputs (values)'!$H$84:$KV$86,1,MATCH('Inputs (values)'!$H$10,'Inputs (values)'!$H$83:$KV$83,0)))*(INDEX('Inputs (values)'!$H$62:$KV$62,1,MATCH('Inputs (values)'!$H$12,'Inputs (values)'!$H$83:$KV$83,0))/INDEX('Inputs (values)'!$H$62:$KV$62,1,MATCH('Inputs (values)'!$H$11,'Inputs (values)'!$H$83:$KV$83,0))) -> 31.88920942 | GT22: =(INDEX('Inputs (values)'!$H$84:$KV$86,1,MATCH('Calculations (values)'!GT$21,'Inputs (values)'!$H$83:'Inputs (values)'!$KV$83,0))/INDEX('Inputs (values)'!$H$84:$KV$86,1,MATCH('Inputs (values)'!$H$10,'Inputs (values)'!$H$83:$KV$83,0)))*(INDEX('Inputs (values)'!$H$62:$KV$62,1,MATCH('Inputs (values)'!$H$12,'Inputs (values)'!$H$83:$KV$83,0))/INDEX('Inputs (values)'!$H$62:$KV$62,1,MATCH('Inputs (values)'!$H$11,'Inputs (values)'!$H$83:$KV$83,0))) -> 32.36051891 | GU22: =(INDEX('Inputs (values)'!$H$84:$KV$86,1,MATCH('Calculations (values)'!GU$21,'Inputs (values)'!$H$83:'Inputs (values)'!$KV$83,0))/INDEX('Inputs (values)'!$H$84:$KV$86,1,MATCH('Inputs (values)'!$H$10,'Inputs (values)'!$H$83:$KV$83,0)))*(INDEX('Inputs (values)'!$H$62:$KV$62,1,MATCH('Inputs (values)'!$H$12,'Inputs (values)'!$H$83:$KV$83,0))/INDEX('Inputs (values)'!$H$62:$KV$62,1,MATCH('Inputs (values)'!$H$11,'Inputs (values)'!$H$83:$KV$83,0))) -> 32.83879416 | GV22: =(INDEX('Inputs (values)'!$H$84:$KV$86,1,MATCH('Calculations (values)'!GV$21,'Inputs (values)'!$H$83:'Inputs (values)'!$KV$83,0))/INDEX('Inputs (values)'!$H$84:$KV$86,1,MATCH('Inputs (values)'!$H$10,'Inputs (values)'!$H$83:$KV$83,0)))*(INDEX('Inputs (values)'!$H$62:$KV$62,1,MATCH('Inputs (values)'!$H$12,'Inputs (values)'!$H$83:$KV$83,0))/INDEX('Inputs (values)'!$H$62:$KV$62,1,MATCH('Inputs (values)'!$H$11,'Inputs (values)'!$H$83:$KV$83,0))) -> 33.32413813 | GW22: =(INDEX('Inputs (values)'!$H$84:$KV$86,1,MATCH('Calculations (values)'!GW$21,'Inputs (values)'!$H$83:'Inputs (values)'!$KV$83,0))/INDEX('Inputs (values)'!$H$84:$KV$86,1,MATCH('Inputs (values)'!$H$10,'Inputs (values)'!$H$83:$KV$83,0)))*(INDEX('Inputs (values)'!$H$62:$KV$62,1,MATCH('Inputs (values)'!$H$12,'Inputs (values)'!$H$83:$KV$83,0))/INDEX('Inputs (values)'!$H$62:$KV$62,1,MATCH('Inputs (values)'!$H$11,'Inputs (values)'!$H$83:$KV$83,0))) -> 33.81665528 | GX22: =(INDEX('Inputs (values)'!$H$84:$KV$86,1,MATCH('Calculations (values)'!GX$21,'Inputs (values)'!$H$83:'Inputs (values)'!$KV$83,0))/INDEX('Inputs (values)'!$H$84:$KV$86,1,MATCH('Inputs (values)'!$H$10,'Inputs (values)'!$H$83:$KV$83,0)))*(INDEX('Inputs (values)'!$H$62:$KV$62,1,MATCH('Inputs (values)'!$H$12,'Inputs (values)'!$H$83:$KV$83,0))/INDEX('Inputs (values)'!$H$62:$KV$62,1,MATCH('Inputs (values)'!$H$11,'Inputs (values)'!$H$83:$KV$83,0))) -> 34.31645163 | GY22: =(INDEX('Inputs (values)'!$H$84:$KV$86,1,MATCH('Calculations (values)'!GY$21,'Inputs (values)'!$H$83:'Inputs (values)'!$KV$83,0))/INDEX('Inputs (values)'!$H$84:$KV$86,1,MATCH('Inputs (values)'!$H$10,'Inputs (values)'!$H$83:$KV$83,0)))*(INDEX('Inputs (values)'!$H$62:$KV$62,1,MATCH('Inputs (values)'!$H$12,'Inputs (values)'!$H$83:$KV$83,0))/INDEX('Inputs (values)'!$H$62:$KV$62,1,MATCH('Inputs (values)'!$H$11,'Inputs (values)'!$H$83:$KV$83,0))) -> 34.82363477 | GZ22: =(INDEX('Inputs (values)'!$H$84:$KV$86,1,MATCH('Calculations (values)'!GZ$21,'Inputs (values)'!$H$83:'Inputs (values)'!$KV$83,0))/INDEX('Inputs (values)'!$H$84:$KV$86,1,MATCH('Inputs (values)'!$H$10,'Inputs (values)'!$H$83:$KV$83,0)))*(INDEX('Inputs (values)'!$H$62:$KV$62,1,MATCH('Inputs (values)'!$H$12,'Inputs (values)'!$H$83:$KV$83,0))/INDEX('Inputs (values)'!$H$62:$KV$62,1,MATCH('Inputs (values)'!$H$11,'Inputs (values)'!$H$83:$KV$83,0))) -> 35.33831387 | HA22: =(INDEX('Inputs (values)'!$H$84:$KV$86,1,MATCH('Calculations (values)'!HA$21,'Inputs (values)'!$H$83:'Inputs (values)'!$KV$83,0))/INDEX('Inputs (values)'!$H$84:$KV$86,1,MATCH('Inputs (values)'!$H$10,'Inputs (values)'!$H$83:$KV$83,0)))*(INDEX('Inputs (values)'!$H$62:$KV$62,1,MATCH('Inputs (values)'!$H$12,'Inputs (values)'!$H$83:$KV$83,0))/INDEX('Inputs (values)'!$H$62:$KV$62,1,MATCH('Inputs (values)'!$H$11,'Inputs (values)'!$H$83:$KV$83,0))) -> 35.86059971 | HB22: =(INDEX('Inputs (values)'!$H$84:$KV$86,1,MATCH('Calculations (values)'!HB$21,'Inputs (values)'!$H$83:'Inputs (values)'!$KV$83,0))/INDEX('Inputs (values)'!$H$84:$KV$86,1,MATCH('Inputs (values)'!$H$10,'Inputs (values)'!$H$83:$KV$83,0)))*(INDEX('Inputs (values)'!$H$62:$KV$62,1,MATCH('Inputs (values)'!$H$12,'Inputs (values)'!$H$83:$KV$83,0))/INDEX('Inputs (values)'!$H$62:$KV$62,1,MATCH('Inputs (values)'!$H$11,'Inputs (values)'!$H$83:$KV$83,0))) -> 36.39060473 | HC22: =(INDEX('Inputs (values)'!$H$84:$KV$86,1,MATCH('Calculations (values)'!HC$21,'Inputs (values)'!$H$83:'Inputs (values)'!$KV$83,0))/INDEX('Inputs (values)'!$H$84:$KV$86,1,MATCH('Inputs (values)'!$H$10,'Inputs (values)'!$H$83:$KV$83,0)))*(INDEX('Inputs (values)'!$H$62:$KV$62,1,MATCH('Inputs (values)'!$H$12,'Inputs (values)'!$H$83:$KV$83,0))/INDEX('Inputs (values)'!$H$62:$KV$62,1,MATCH('Inputs (values)'!$H$11,'Inputs (values)'!$H$83:$KV$83,0))) -> 36.92844301 | HD22: =(INDEX('Inputs (values)'!$H$84:$KV$86,1,MATCH('Calculations (values)'!HD$21,'Inputs (values)'!$H$83:'Inputs (values)'!$KV$83,0))/INDEX('Inputs (values)'!$H$84:$KV$86,1,MATCH('Inputs (values)'!$H$10,'Inputs (values)'!$H$83:$KV$83,0)))*(INDEX('Inputs (values)'!$H$62:$KV$62,1,MATCH('Inputs (values)'!$H$12,'Inputs (values)'!$H$83:$KV$83,0))/INDEX('Inputs (values)'!$H$62:$KV$62,1,MATCH('Inputs (values)'!$H$11,'Inputs (values)'!$H$83:$KV$83,0))) -> 37.47423031 | HE22: =(INDEX('Inputs (values)'!$H$84:$KV$86,1,MATCH('Calculations (values)'!HE$21,'Inputs (values)'!$H$83:'Inputs (values)'!$KV$83,0))/INDEX('Inputs (values)'!$H$84:$KV$86,1,MATCH('Inputs (values)'!$H$10,'Inputs (values)'!$H$83:$KV$83,0)))*(INDEX('Inputs (values)'!$H$62:$KV$62,1,MATCH('Inputs (values)'!$H$12,'Inputs (values)'!$H$83:$KV$83,0))/INDEX('Inputs (values)'!$H$62:$KV$62,1,MATCH('Inputs (values)'!$H$11,'Inputs (values)'!$H$83:$KV$83,0))) -> 38.02808413 | HF22: =(INDEX('Inputs (values)'!$H$84:$KV$86,1,MATCH('Calculations (values)'!HF$21,'Inputs (values)'!$H$83:'Inputs (values)'!$KV$83,0))/INDEX('Inputs (values)'!$H$84:$KV$86,1,MATCH('Inputs (values)'!$H$10,'Inputs (values)'!$H$83:$KV$83,0)))*(INDEX('Inputs (values)'!$H$62:$KV$62,1,MATCH('Inputs (values)'!$H$12,'Inputs (values)'!$H$83:$KV$83,0))/INDEX('Inputs (values)'!$H$62:$KV$62,1,MATCH('Inputs (values)'!$H$11,'Inputs (values)'!$H$83:$KV$83,0))) -> 38.59012368 | HG22: =(INDEX('Inputs (values)'!$H$84:$KV$86,1,MATCH('Calculations (values)'!HG$21,'Inputs (values)'!$H$83:'Inputs (values)'!$KV$83,0))/INDEX('Inputs (values)'!$H$84:$KV$86,1,MATCH('Inputs (values)'!$H$10,'Inputs (values)'!$H$83:$KV$83,0)))*(INDEX('Inputs (values)'!$H$62:$KV$62,1,MATCH('Inputs (values)'!$H$12,'Inputs (values)'!$H$83:$KV$83,0))/INDEX('Inputs (values)'!$H$62:$KV$62,1,MATCH('Inputs (values)'!$H$11,'Inputs (values)'!$H$83:$KV$83,0))) -> 39.16046994 | HH22: =(INDEX('Inputs (values)'!$H$84:$KV$86,1,MATCH('Calculations (values)'!HH$21,'Inputs (values)'!$H$83:'Inputs (values)'!$KV$83,0))/INDEX('Inputs (values)'!$H$84:$KV$86,1,MATCH('Inputs (values)'!$H$10,'Inputs (values)'!$H$83:$KV$83,0)))*(INDEX('Inputs (values)'!$H$62:$KV$62,1,MATCH('Inputs (values)'!$H$12,'Inputs (values)'!$H$83:$KV$83,0))/INDEX('Inputs (values)'!$H$62:$KV$62,1,MATCH('Inputs (values)'!$H$11,'Inputs (values)'!$H$83:$KV$83,0))) -> 39.7392457 | HI22: =(INDEX('Inputs (values)'!$H$84:$KV$86,1,MATCH('Calculations (values)'!HI$21,'Inputs (values)'!$H$83:'Inputs (values)'!$KV$83,0))/INDEX('Inputs (values)'!$H$84:$KV$86,1,MATCH('Inputs (values)'!$H$10,'Inputs (values)'!$H$83:$KV$83,0)))*(INDEX('Inputs (values)'!$H$62:$KV$62,1,MATCH('Inputs (values)'!$H$12,'Inputs (values)'!$H$83:$KV$83,0))/INDEX('Inputs (values)'!$H$62:$KV$62,1,MATCH('Inputs (values)'!$H$11,'Inputs (values)'!$H$83:$KV$83,0))) -> 40.32657552 | HJ22: =(INDEX('Inputs (values)'!$H$84:$KV$86,1,MATCH('Calculations (values)'!HJ$21,'Inputs (values)'!$H$83:'Inputs (values)'!$KV$83,0))/INDEX('Inputs (values)'!$H$84:$KV$86,1,MATCH('Inputs (values)'!$H$10,'Inputs (values)'!$H$83:$KV$83,0)))*(INDEX('Inputs (values)'!$H$62:$KV$62,1,MATCH('Inputs (values)'!$H$12,'Inputs (values)'!$H$83:$KV$83,0))/INDEX('Inputs (values)'!$H$62:$KV$62,1,MATCH('Inputs (values)'!$H$11,'Inputs (values)'!$H$83:$KV$83,0))) -> 40.92258583 | HK22: =(INDEX('Inputs (values)'!$H$84:$KV$86,1,MATCH('Calculations (values)'!HK$21,'Inputs (values)'!$H$83:'Inputs (values)'!$KV$83,0))/INDEX('Inputs (values)'!$H$84:$KV$86,1,MATCH('Inputs (values)'!$H$10,'Inputs (values)'!$H$83:$KV$83,0)))*(INDEX('Inputs (values)'!$H$62:$KV$62,1,MATCH('Inputs (values)'!$H$12,'Inputs (values)'!$H$83:$KV$83,0))/INDEX('Inputs (values)'!$H$62:$KV$62,1,MATCH('Inputs (values)'!$H$11,'Inputs (values)'!$H$83:$KV$83,0))) -> 41.52740493 | HL22: =(INDEX('Inputs (values)'!$H$84:$KV$86,1,MATCH('Calculations (values)'!HL$21,'Inputs (values)'!$H$83:'Inputs (values)'!$KV$83,0))/INDEX('Inputs (values)'!$H$84:$KV$86,1,MATCH('Inputs (values)'!$H$10,'Inputs (values)'!$H$83:$KV$83,0)))*(INDEX('Inputs (values)'!$H$62:$KV$62,1,MATCH('Inputs (values)'!$H$12,'Inputs (values)'!$H$83:$KV$83,0))/INDEX('Inputs (values)'!$H$62:$KV$62,1,MATCH('Inputs (values)'!$H$11,'Inputs (values)'!$H$83:$KV$83,0))) -> 42.14116302 | HM22: =(INDEX('Inputs (values)'!$H$84:$KV$86,1,MATCH('Calculations (values)'!HM$21,'Inputs (values)'!$H$83:'Inputs (values)'!$KV$83,0))/INDEX('Inputs (values)'!$H$84:$KV$86,1,MATCH('Inputs (values)'!$H$10,'Inputs (values)'!$H$83:$KV$83,0)))*(INDEX('Inputs (values)'!$H$62:$KV$62,1,MATCH('Inputs (values)'!$H$12,'Inputs (values)'!$H$83:$KV$83,0))/INDEX('Inputs (values)'!$H$62:$KV$62,1,MATCH('Inputs (values)'!$H$11,'Inputs (values)'!$H$83:$KV$83,0))) -> 42.7639922 | HN22: =(INDEX('Inputs (values)'!$H$84:$KV$86,1,MATCH('Calculations (values)'!HN$21,'Inputs (values)'!$H$83:'Inputs (values)'!$KV$83,0))/INDEX('Inputs (values)'!$H$84:$KV$86,1,MATCH('Inputs (values)'!$H$10,'Inputs (values)'!$H$83:$KV$83,0)))*(INDEX('Inputs (values)'!$H$62:$KV$62,1,MATCH('Inputs (values)'!$H$12,'Inputs (values)'!$H$83:$KV$83,0))/INDEX('Inputs (values)'!$H$62:$KV$62,1,MATCH('Inputs (values)'!$H$11,'Inputs (values)'!$H$83:$KV$83,0))) -> 43.39602653 | HO22: =(INDEX('Inputs (values)'!$H$84:$KV$86,1,MATCH('Calculations (values)'!HO$21,'Inputs (values)'!$H$83:'Inputs (values)'!$KV$83,0))/INDEX('Inputs (values)'!$H$84:$KV$86,1,MATCH('Inputs (values)'!$H$10,'Inputs (values)'!$H$83:$KV$83,0)))*(INDEX('Inputs (values)'!$H$62:$KV$62,1,MATCH('Inputs (values)'!$H$12,'Inputs (values)'!$H$83:$KV$83,0))/INDEX('Inputs (values)'!$H$62:$KV$62,1,MATCH('Inputs (values)'!$H$11,'Inputs (values)'!$H$83:$KV$83,0))) -> 44.03740208 | HP22: =(INDEX('Inputs (values)'!$H$84:$KV$86,1,MATCH('Calculations (values)'!HP$21,'Inputs (values)'!$H$83:'Inputs (values)'!$KV$83,0))/INDEX('Inputs (values)'!$H$84:$KV$86,1,MATCH('Inputs (values)'!$H$10,'Inputs (values)'!$H$83:$KV$83,0)))*(INDEX('Inputs (values)'!$H$62:$KV$62,1,MATCH('Inputs (values)'!$H$12,'Inputs (values)'!$H$83:$KV$83,0))/INDEX('Inputs (values)'!$H$62:$KV$62,1,MATCH('Inputs (values)'!$H$11,'Inputs (values)'!$H$83:$KV$83,0))) -> 44.6882569 | HQ22: =(INDEX('Inputs (values)'!$H$84:$KV$86,1,MATCH('Calculations (values)'!HQ$21,'Inputs (values)'!$H$83:'Inputs (values)'!$KV$83,0))/INDEX('Inputs (values)'!$H$84:$KV$86,1,MATCH('Inputs (values)'!$H$10,'Inputs (values)'!$H$83:$KV$83,0)))*(INDEX('Inputs (values)'!$H$62:$KV$62,1,MATCH('Inputs (values)'!$H$12,'Inputs (values)'!$H$83:$KV$83,0))/INDEX('Inputs (values)'!$H$62:$KV$62,1,MATCH('Inputs (values)'!$H$11,'Inputs (values)'!$H$83:$KV$83,0))) -> 45.34873108 | HR22: =(INDEX('Inputs (values)'!$H$84:$KV$86,1,MATCH('Calculations (values)'!HR$21,'Inputs (values)'!$H$83:'Inputs (values)'!$KV$83,0))/INDEX('Inputs (values)'!$H$84:$KV$86,1,MATCH('Inputs (values)'!$H$10,'Inputs (values)'!$H$83:$KV$83,0)))*(INDEX('Inputs (values)'!$H$62:$KV$62,1,MATCH('Inputs (values)'!$H$12,'Inputs (values)'!$H$83:$KV$83,0))/INDEX('Inputs (values)'!$H$62:$KV$62,1,MATCH('Inputs (values)'!$H$11,'Inputs (values)'!$H$83:$KV$83,0))) -> 46.0189668 | HS22: =(INDEX('Inputs (values)'!$H$84:$KV$86,1,MATCH('Calculations (values)'!HS$21,'Inputs (values)'!$H$83:'Inputs (values)'!$KV$83,0))/INDEX('Inputs (values)'!$H$84:$KV$86,1,MATCH('Inputs (values)'!$H$10,'Inputs (values)'!$H$83:$KV$83,0)))*(INDEX('Inputs (values)'!$H$62:$KV$62,1,MATCH('Inputs (values)'!$H$12,'Inputs (values)'!$H$83:$KV$83,0))/INDEX('Inputs (values)'!$H$62:$KV$62,1,MATCH('Inputs (values)'!$H$11,'Inputs (values)'!$H$83:$KV$83,0))) -> 46.69910834 | HT22: =(INDEX('Inputs (values)'!$H$84:$KV$86,1,MATCH('Calculations (values)'!HT$21,'Inputs (values)'!$H$83:'Inputs (values)'!$KV$83,0))/INDEX('Inputs (values)'!$H$84:$KV$86,1,MATCH('Inputs (values)'!$H$10,'Inputs (values)'!$H$83:$KV$83,0)))*(INDEX('Inputs (values)'!$H$62:$KV$62,1,MATCH('Inputs (values)'!$H$12,'Inputs (values)'!$H$83:$KV$83,0))/INDEX('Inputs (values)'!$H$62:$KV$62,1,MATCH('Inputs (values)'!$H$11,'Inputs (values)'!$H$83:$KV$83,0))) -> 47.38930208 | HU22: =(INDEX('Inputs (values)'!$H$84:$KV$86,1,MATCH('Calculations (values)'!HU$21,'Inputs (values)'!$H$83:'Inputs (values)'!$KV$83,0))/INDEX('Inputs (values)'!$H$84:$KV$86,1,MATCH('Inputs (values)'!$H$10,'Inputs (values)'!$H$83:$KV$83,0)))*(INDEX('Inputs (values)'!$H$62:$KV$62,1,MATCH('Inputs (values)'!$H$12,'Inputs (values)'!$H$83:$KV$83,0))/INDEX('Inputs (values)'!$H$62:$KV$62,1,MATCH('Inputs (values)'!$H$11,'Inputs (values)'!$H$83:$KV$83,0))) -> 48.08969661 | HV22: =(INDEX('Inputs (values)'!$H$84:$KV$86,1,MATCH('Calculations (values)'!HV$21,'Inputs (values)'!$H$83:'Inputs (values)'!$KV$83,0))/INDEX('Inputs (values)'!$H$84:$KV$86,1,MATCH('Inputs (values)'!$H$10,'Inputs (values)'!$H$83:$KV$83,0)))*(INDEX('Inputs (values)'!$H$62:$KV$62,1,MATCH('Inputs (values)'!$H$12,'Inputs (values)'!$H$83:$KV$83,0))/INDEX('Inputs (values)'!$H$62:$KV$62,1,MATCH('Inputs (values)'!$H$11,'Inputs (values)'!$H$83:$KV$83,0))) -> 48.80044269 | HW22: =(INDEX('Inputs (values)'!$H$84:$KV$86,1,MATCH('Calculations (values)'!HW$21,'Inputs (values)'!$H$83:'Inputs (values)'!$KV$83,0))/INDEX('Inputs (values)'!$H$84:$KV$86,1,MATCH('Inputs (values)'!$H$10,'Inputs (values)'!$H$83:$KV$83,0)))*(INDEX('Inputs (values)'!$H$62:$KV$62,1,MATCH('Inputs (values)'!$H$12,'Inputs (values)'!$H$83:$KV$83,0))/INDEX('Inputs (values)'!$H$62:$KV$62,1,MATCH('Inputs (values)'!$H$11,'Inputs (values)'!$H$83:$KV$83,0))) -> 49.5216933 | HX22: =(INDEX('Inputs (values)'!$H$84:$KV$86,1,MATCH('Calculations (values)'!HX$21,'Inputs (values)'!$H$83:'Inputs (values)'!$KV$83,0))/INDEX('Inputs (values)'!$H$84:$KV$86,1,MATCH('Inputs (values)'!$H$10,'Inputs (values)'!$H$83:$KV$83,0)))*(INDEX('Inputs (values)'!$H$62:$KV$62,1,MATCH('Inputs (values)'!$H$12,'Inputs (values)'!$H$83:$KV$83,0))/INDEX('Inputs (values)'!$H$62:$KV$62,1,MATCH('Inputs (values)'!$H$11,'Inputs (values)'!$H$83:$KV$83,0))) -> 50.2536037 | HY22: =(INDEX('Inputs (values)'!$H$84:$KV$86,1,MATCH('Calculations (values)'!HY$21,'Inputs (values)'!$H$83:'Inputs (values)'!$KV$83,0))/INDEX('Inputs (values)'!$H$84:$KV$86,1,MATCH('Inputs (values)'!$H$10,'Inputs (values)'!$H$83:$KV$83,0)))*(INDEX('Inputs (values)'!$H$62:$KV$62,1,MATCH('Inputs (values)'!$H$12,'Inputs (values)'!$H$83:$KV$83,0))/INDEX('Inputs (values)'!$H$62:$KV$62,1,MATCH('Inputs (values)'!$H$11,'Inputs (values)'!$H$83:$KV$83,0))) -> 50.99633143 | HZ22: =(INDEX('Inputs (values)'!$H$84:$KV$86,1,MATCH('Calculations (values)'!HZ$21,'Inputs (values)'!$H$83:'Inputs (values)'!$KV$83,0))/INDEX('Inputs (values)'!$H$84:$KV$86,1,MATCH('Inputs (values)'!$H$10,'Inputs (values)'!$H$83:$KV$83,0)))*(INDEX('Inputs (values)'!$H$62:$KV$62,1,MATCH('Inputs (values)'!$H$12,'Inputs (values)'!$H$83:$KV$83,0))/INDEX('Inputs (values)'!$H$62:$KV$62,1,MATCH('Inputs (values)'!$H$11,'Inputs (values)'!$H$83:$KV$83,0))) -> 51.75003638 | IA22: =(INDEX('Inputs (values)'!$H$84:$KV$86,1,MATCH('Calculations (values)'!IA$21,'Inputs (values)'!$H$83:'Inputs (values)'!$KV$83,0))/INDEX('Inputs (values)'!$H$84:$KV$86,1,MATCH('Inputs (values)'!$H$10,'Inputs (values)'!$H$83:$KV$83,0)))*(INDEX('Inputs (values)'!$H$62:$KV$62,1,MATCH('Inputs (values)'!$H$12,'Inputs (values)'!$H$83:$KV$83,0))/INDEX('Inputs (values)'!$H$62:$KV$62,1,MATCH('Inputs (values)'!$H$11,'Inputs (values)'!$H$83:$KV$83,0))) -> 52.51488078 | IB22: =(INDEX('Inputs (values)'!$H$84:$KV$86,1,MATCH('Calculations (values)'!IB$21,'Inputs (values)'!$H$83:'Inputs (values)'!$KV$83,0))/INDEX('Inputs (values)'!$H$84:$KV$86,1,MATCH('Inputs (values)'!$H$10,'Inputs (values)'!$H$83:$KV$83,0)))*(INDEX('Inputs (values)'!$H$62:$KV$62,1,MATCH('Inputs (values)'!$H$12,'Inputs (values)'!$H$83:$KV$83,0))/INDEX('Inputs (values)'!$H$62:$KV$62,1,MATCH('Inputs (values)'!$H$11,'Inputs (values)'!$H$83:$KV$83,0))) -> 53.29102927 | IC22: =(INDEX('Inputs (values)'!$H$84:$KV$86,1,MATCH('Calculations (values)'!IC$21,'Inputs (values)'!$H$83:'Inputs (values)'!$KV$83,0))/INDEX('Inputs (values)'!$H$84:$KV$86,1,MATCH('Inputs (values)'!$H$10,'Inputs (values)'!$H$83:$KV$83,0)))*(INDEX('Inputs (values)'!$H$62:$KV$62,1,MATCH('Inputs (values)'!$H$12,'Inputs (values)'!$H$83:$KV$83,0))/INDEX('Inputs (values)'!$H$62:$KV$62,1,MATCH('Inputs (values)'!$H$11,'Inputs (values)'!$H$83:$KV$83,0))) -> 54.07864892 | ID22: =(INDEX('Inputs (values)'!$H$84:$KV$86,1,MATCH('Calculations (values)'!ID$21,'Inputs (values)'!$H$83:'Inputs (values)'!$KV$83,0))/INDEX('Inputs (values)'!$H$84:$KV$86,1,MATCH('Inputs (values)'!$H$10,'Inputs (values)'!$H$83:$KV$83,0)))*(INDEX('Inputs (values)'!$H$62:$KV$62,1,MATCH('Inputs (values)'!$H$12,'Inputs (values)'!$H$83:$KV$83,0))/INDEX('Inputs (values)'!$H$62:$KV$62,1,MATCH('Inputs (values)'!$H$11,'Inputs (values)'!$H$83:$KV$83,0))) -> 54.87790926 | IE22: =(INDEX('Inputs (values)'!$H$84:$KV$86,1,MATCH('Calculations (values)'!IE$21,'Inputs (values)'!$H$83:'Inputs (values)'!$KV$83,0))/INDEX('Inputs (values)'!$H$84:$KV$86,1,MATCH('Inputs (values)'!$H$10,'Inputs (values)'!$H$83:$KV$83,0)))*(INDEX('Inputs (values)'!$H$62:$KV$62,1,MATCH('Inputs (values)'!$H$12,'Inputs (values)'!$H$83:$KV$83,0))/INDEX('Inputs (values)'!$H$62:$KV$62,1,MATCH('Inputs (values)'!$H$11,'Inputs (values)'!$H$83:$KV$83,0))) -> 55.68898235 | IF22: =(INDEX('Inputs (values)'!$H$84:$KV$86,1,MATCH('Calculations (values)'!IF$21,'Inputs (values)'!$H$83:'Inputs (values)'!$KV$83,0))/INDEX('Inputs (values)'!$H$84:$KV$86,1,MATCH('Inputs (values)'!$H$10,'Inputs (values)'!$H$83:$KV$83,0)))*(INDEX('Inputs (values)'!$H$62:$KV$62,1,MATCH('Inputs (values)'!$H$12,'Inputs (values)'!$H$83:$KV$83,0))/INDEX('Inputs (values)'!$H$62:$KV$62,1,MATCH('Inputs (values)'!$H$11,'Inputs (values)'!$H$83:$KV$83,0))) -> 56.51204276 | IG22: =(INDEX('Inputs (values)'!$H$84:$KV$86,1,MATCH('Calculations (values)'!IG$21,'Inputs (values)'!$H$83:'Inputs (values)'!$KV$83,0))/INDEX('Inputs (values)'!$H$84:$KV$86,1,MATCH('Inputs (values)'!$H$10,'Inputs (values)'!$H$83:$KV$83,0)))*(INDEX('Inputs (values)'!$H$62:$KV$62,1,MATCH('Inputs (values)'!$H$12,'Inputs (values)'!$H$83:$KV$83,0))/INDEX('Inputs (values)'!$H$62:$KV$62,1,MATCH('Inputs (values)'!$H$11,'Inputs (values)'!$H$83:$KV$83,0))) -> 57.34726767 | IH22: =(INDEX('Inputs (values)'!$H$84:$KV$86,1,MATCH('Calculations (values)'!IH$21,'Inputs (values)'!$H$83:'Inputs (values)'!$KV$83,0))/INDEX('Inputs (values)'!$H$84:$KV$86,1,MATCH('Inputs (values)'!$H$10,'Inputs (values)'!$H$83:$KV$83,0)))*(INDEX('Inputs (values)'!$H$62:$KV$62,1,MATCH('Inputs (values)'!$H$12,'Inputs (values)'!$H$83:$KV$83,0))/INDEX('Inputs (values)'!$H$62:$KV$62,1,MATCH('Inputs (values)'!$H$11,'Inputs (values)'!$H$83:$KV$83,0))) -> 58.19483686 | II22: =(INDEX('Inputs (values)'!$H$84:$KV$86,1,MATCH('Calculations (values)'!II$21,'Inputs (values)'!$H$83:'Inputs (values)'!$KV$83,0))/INDEX('Inputs (values)'!$H$84:$KV$86,1,MATCH('Inputs (values)'!$H$10,'Inputs (values)'!$H$83:$KV$83,0)))*(INDEX('Inputs (values)'!$H$62:$KV$62,1,MATCH('Inputs (values)'!$H$12,'Inputs (values)'!$H$83:$KV$83,0))/INDEX('Inputs (values)'!$H$62:$KV$62,1,MATCH('Inputs (values)'!$H$11,'Inputs (values)'!$H$83:$KV$83,0))) -> 59.05493278 | IJ22: =(INDEX('Inputs (values)'!$H$84:$KV$86,1,MATCH('Calculations (values)'!IJ$21,'Inputs (values)'!$H$83:'Inputs (values)'!$KV$83,0))/INDEX('Inputs (values)'!$H$84:$KV$86,1,MATCH('Inputs (values)'!$H$10,'Inputs (values)'!$H$83:$KV$83,0)))*(INDEX('Inputs (values)'!$H$62:$KV$62,1,MATCH('Inputs (values)'!$H$12,'Inputs (values)'!$H$83:$KV$83,0))/INDEX('Inputs (values)'!$H$62:$KV$62,1,MATCH('Inputs (values)'!$H$11,'Inputs (values)'!$H$83:$KV$83,0))) -> 59.92774057 | IK22: =(INDEX('Inputs (values)'!$H$84:$KV$86,1,MATCH('Calculations (values)'!IK$21,'Inputs (values)'!$H$83:'Inputs (values)'!$KV$83,0))/INDEX('Inputs (values)'!$H$84:$KV$86,1,MATCH('Inputs (values)'!$H$10,'Inputs (values)'!$H$83:$KV$83,0)))*(INDEX('Inputs (values)'!$H$62:$KV$62,1,MATCH('Inputs (values)'!$H$12,'Inputs (values)'!$H$83:$KV$83,0))/INDEX('Inputs (values)'!$H$62:$KV$62,1,MATCH('Inputs (values)'!$H$11,'Inputs (values)'!$H$83:$KV$83,0))) -> 60.8134481 | IL22: =(INDEX('Inputs (values)'!$H$84:$KV$86,1,MATCH('Calculations (values)'!IL$21,'Inputs (values)'!$H$83:'Inputs (values)'!$KV$83,0))/INDEX('Inputs (values)'!$H$84:$KV$86,1,MATCH('Inputs (values)'!$H$10,'Inputs (values)'!$H$83:$KV$83,0)))*(INDEX('Inputs (values)'!$H$62:$KV$62,1,MATCH('Inputs (values)'!$H$12,'Inputs (values)'!$H$83:$KV$83,0))/INDEX('Inputs (values)'!$H$62:$KV$62,1,MATCH('Inputs (values)'!$H$11,'Inputs (values)'!$H$83:$KV$83,0))) -> 61.71224602 | IM22: =(INDEX('Inputs (values)'!$H$84:$KV$86,1,MATCH('Calculations (values)'!IM$21,'Inputs (values)'!$H$83:'Inputs (values)'!$KV$83,0))/INDEX('Inputs (values)'!$H$84:$KV$86,1,MATCH('Inputs (values)'!$H$10,'Inputs (values)'!$H$83:$KV$83,0)))*(INDEX('Inputs (values)'!$H$62:$KV$62,1,MATCH('Inputs (values)'!$H$12,'Inputs (values)'!$H$83:$KV$83,0))/INDEX('Inputs (values)'!$H$62:$KV$62,1,MATCH('Inputs (values)'!$H$11,'Inputs (values)'!$H$83:$KV$83,0))) -> 62.62432781 | IN22: =(INDEX('Inputs (values)'!$H$84:$KV$86,1,MATCH('Calculations (values)'!IN$21,'Inputs (values)'!$H$83:'Inputs (values)'!$KV$83,0))/INDEX('Inputs (values)'!$H$84:$KV$86,1,MATCH('Inputs (values)'!$H$10,'Inputs (values)'!$H$83:$KV$83,0)))*(INDEX('Inputs (values)'!$H$62:$KV$62,1,MATCH('Inputs (values)'!$H$12,'Inputs (values)'!$H$83:$KV$83,0))/INDEX('Inputs (values)'!$H$62:$KV$62,1,MATCH('Inputs (values)'!$H$11,'Inputs (values)'!$H$83:$KV$83,0))) -> 63.5498898 | IO22: =(INDEX('Inputs (values)'!$H$84:$KV$86,1,MATCH('Calculations (values)'!IO$21,'Inputs (values)'!$H$83:'Inputs (values)'!$KV$83,0))/INDEX('Inputs (values)'!$H$84:$KV$86,1,MATCH('Inputs (values)'!$H$10,'Inputs (values)'!$H$83:$KV$83,0)))*(INDEX('Inputs (values)'!$H$62:$KV$62,1,MATCH('Inputs (values)'!$H$12,'Inputs (values)'!$H$83:$KV$83,0))/INDEX('Inputs (values)'!$H$62:$KV$62,1,MATCH('Inputs (values)'!$H$11,'Inputs (values)'!$H$83:$KV$83,0))) -> 64.48913121 | IP22: =(INDEX('Inputs (values)'!$H$84:$KV$86,1,MATCH('Calculations (values)'!IP$21,'Inputs (values)'!$H$83:'Inputs (values)'!$KV$83,0))/INDEX('Inputs (values)'!$H$84:$KV$86,1,MATCH('Inputs (values)'!$H$10,'Inputs (values)'!$H$83:$KV$83,0)))*(INDEX('Inputs (values)'!$H$62:$KV$62,1,MATCH('Inputs (values)'!$H$12,'Inputs (values)'!$H$83:$KV$83,0))/INDEX('Inputs (values)'!$H$62:$KV$62,1,MATCH('Inputs (values)'!$H$11,'Inputs (values)'!$H$83:$KV$83,0))) -> 65.44225423 | IQ22: =(INDEX('Inputs (values)'!$H$84:$KV$86,1,MATCH('Calculations (values)'!IQ$21,'Inputs (values)'!$H$83:'Inputs (values)'!$KV$83,0))/INDEX('Inputs (values)'!$H$84:$KV$86,1,MATCH('Inputs (values)'!$H$10,'Inputs (values)'!$H$83:$KV$83,0)))*(INDEX('Inputs (values)'!$H$62:$KV$62,1,MATCH('Inputs (values)'!$H$12,'Inputs (values)'!$H$83:$KV$83,0))/INDEX('Inputs (values)'!$H$62:$KV$62,1,MATCH('Inputs (values)'!$H$11,'Inputs (values)'!$H$83:$KV$83,0))) -> 66.40946402 | IR22: =(INDEX('Inputs (values)'!$H$84:$KV$86,1,MATCH('Calculations (values)'!IR$21,'Inputs (values)'!$H$83:'Inputs (values)'!$KV$83,0))/INDEX('Inputs (values)'!$H$84:$KV$86,1,MATCH('Inputs (values)'!$H$10,'Inputs (values)'!$H$83:$KV$83,0)))*(INDEX('Inputs (values)'!$H$62:$KV$62,1,MATCH('Inputs (values)'!$H$12,'Inputs (values)'!$H$83:$KV$83,0))/INDEX('Inputs (values)'!$H$62:$KV$62,1,MATCH('Inputs (values)'!$H$11,'Inputs (values)'!$H$83:$KV$83,0))) -> 67.39096877 | IS22: =(INDEX('Inputs (values)'!$H$84:$KV$86,1,MATCH('Calculations (values)'!IS$21,'Inputs (values)'!$H$83:'Inputs (values)'!$KV$83,0))/INDEX('Inputs (values)'!$H$84:$KV$86,1,MATCH('Inputs (values)'!$H$10,'Inputs (values)'!$H$83:$KV$83,0)))*(INDEX('Inputs (values)'!$H$62:$KV$62,1,MATCH('Inputs (values)'!$H$12,'Inputs (values)'!$H$83:$KV$83,0))/INDEX('Inputs (values)'!$H$62:$KV$62,1,MATCH('Inputs (values)'!$H$11,'Inputs (values)'!$H$83:$KV$83,0))) -> 68.38697976 | IT22: =(INDEX('Inputs (values)'!$H$84:$KV$86,1,MATCH('Calculations (values)'!IT$21,'Inputs (values)'!$H$83:'Inputs (values)'!$KV$83,0))/INDEX('Inputs (values)'!$H$84:$KV$86,1,MATCH('Inputs (values)'!$H$10,'Inputs (values)'!$H$83:$KV$83,0)))*(INDEX('Inputs (values)'!$H$62:$KV$62,1,MATCH('Inputs (values)'!$H$12,'Inputs (values)'!$H$83:$KV$83,0))/INDEX('Inputs (values)'!$H$62:$KV$62,1,MATCH('Inputs (values)'!$H$11,'Inputs (values)'!$H$83:$KV$83,0))) -> 69.39771139 | IU22: =(INDEX('Inputs (values)'!$H$84:$KV$86,1,MATCH('Calculations (values)'!IU$21,'Inputs (values)'!$H$83:'Inputs (values)'!$KV$83,0))/INDEX('Inputs (values)'!$H$84:$KV$86,1,MATCH('Inputs (values)'!$H$10,'Inputs (values)'!$H$83:$KV$83,0)))*(INDEX('Inputs (values)'!$H$62:$KV$62,1,MATCH('Inputs (values)'!$H$12,'Inputs (values)'!$H$83:$KV$83,0))/INDEX('Inputs (values)'!$H$62:$KV$62,1,MATCH('Inputs (values)'!$H$11,'Inputs (values)'!$H$83:$KV$83,0))) -> 70.42338122 | IV22: =(INDEX('Inputs (values)'!$H$84:$KV$86,1,MATCH('Calculations (values)'!IV$21,'Inputs (values)'!$H$83:'Inputs (values)'!$KV$83,0))/INDEX('Inputs (values)'!$H$84:$KV$86,1,MATCH('Inputs (values)'!$H$10,'Inputs (values)'!$H$83:$KV$83,0)))*(INDEX('Inputs (values)'!$H$62:$KV$62,1,MATCH('Inputs (values)'!$H$12,'Inputs (values)'!$H$83:$KV$83,0))/INDEX('Inputs (values)'!$H$62:$KV$62,1,MATCH('Inputs (values)'!$H$11,'Inputs (values)'!$H$83:$KV$83,0))) -> 71.46421003 | IW22: =(INDEX('Inputs (values)'!$H$84:$KV$86,1,MATCH('Calculations (values)'!IW$21,'Inputs (values)'!$H$83:'Inputs (values)'!$KV$83,0))/INDEX('Inputs (values)'!$H$84:$KV$86,1,MATCH('Inputs (values)'!$H$10,'Inputs (values)'!$H$83:$KV$83,0)))*(INDEX('Inputs (values)'!$H$62:$KV$62,1,MATCH('Inputs (values)'!$H$12,'Inputs (values)'!$H$83:$KV$83,0))/INDEX('Inputs (values)'!$H$62:$KV$62,1,MATCH('Inputs (values)'!$H$11,'Inputs (values)'!$H$83:$KV$83,0))) -> 72.52042187 | IX22: =(INDEX('Inputs (values)'!$H$84:$KV$86,1,MATCH('Calculations (values)'!IX$21,'Inputs (values)'!$H$83:'Inputs (values)'!$KV$83,0))/INDEX('Inputs (values)'!$H$84:$KV$86,1,MATCH('Inputs (values)'!$H$10,'Inputs (values)'!$H$83:$KV$83,0)))*(INDEX('Inputs (values)'!$H$62:$KV$62,1,MATCH('Inputs (values)'!$H$12,'Inputs (values)'!$H$83:$KV$83,0))/INDEX('Inputs (values)'!$H$62:$KV$62,1,MATCH('Inputs (values)'!$H$11,'Inputs (values)'!$H$83:$KV$83,0))) -> 73.59224408 | IY22: =(INDEX('Inputs (values)'!$H$84:$KV$86,1,MATCH('Calculations (values)'!IY$21,'Inputs (values)'!$H$83:'Inputs (values)'!$KV$83,0))/INDEX('Inputs (values)'!$H$84:$KV$86,1,MATCH('Inputs (values)'!$H$10,'Inputs (values)'!$H$83:$KV$83,0)))*(INDEX('Inputs (values)'!$H$62:$KV$62,1,MATCH('Inputs (values)'!$H$12,'Inputs (values)'!$H$83:$KV$83,0))/INDEX('Inputs (values)'!$H$62:$KV$62,1,MATCH('Inputs (values)'!$H$11,'Inputs (values)'!$H$83:$KV$83,0))) -> 74.67990739 | IZ22: =(INDEX('Inputs (values)'!$H$84:$KV$86,1,MATCH('Calculations (values)'!IZ$21,'Inputs (values)'!$H$83:'Inputs (values)'!$KV$83,0))/INDEX('Inputs (values)'!$H$84:$KV$86,1,MATCH('Inputs (values)'!$H$10,'Inputs (values)'!$H$83:$KV$83,0)))*(INDEX('Inputs (values)'!$H$62:$KV$62,1,MATCH('Inputs (values)'!$H$12,'Inputs (values)'!$H$83:$KV$83,0))/INDEX('Inputs (values)'!$H$62:$KV$62,1,MATCH('Inputs (values)'!$H$11,'Inputs (values)'!$H$83:$KV$83,0))) -> 75.78364592 | JA22: =(INDEX('Inputs (values)'!$H$84:$KV$86,1,MATCH('Calculations (values)'!JA$21,'Inputs (values)'!$H$83:'Inputs (values)'!$KV$83,0))/INDEX('Inputs (values)'!$H$84:$KV$86,1,MATCH('Inputs (values)'!$H$10,'Inputs (values)'!$H$83:$KV$83,0)))*(INDEX('Inputs (values)'!$H$62:$KV$62,1,MATCH('Inputs (values)'!$H$12,'Inputs (values)'!$H$83:$KV$83,0))/INDEX('Inputs (values)'!$H$62:$KV$62,1,MATCH('Inputs (values)'!$H$11,'Inputs (values)'!$H$83:$KV$83,0))) -> 76.90369725 | JB22: =(INDEX('Inputs (values)'!$H$84:$KV$86,1,MATCH('Calculations (values)'!JB$21,'Inputs (values)'!$H$83:'Inputs (values)'!$KV$83,0))/INDEX('Inputs (values)'!$H$84:$KV$86,1,MATCH('Inputs (values)'!$H$10,'Inputs (values)'!$H$83:$KV$83,0)))*(INDEX('Inputs (values)'!$H$62:$KV$62,1,MATCH('Inputs (values)'!$H$12,'Inputs (values)'!$H$83:$KV$83,0))/INDEX('Inputs (values)'!$H$62:$KV$62,1,MATCH('Inputs (values)'!$H$11,'Inputs (values)'!$H$83:$KV$83,0))) -> 78.04030249 | JC22: =(INDEX('Inputs (values)'!$H$84:$KV$86,1,MATCH('Calculations (values)'!JC$21,'Inputs (values)'!$H$83:'Inputs (values)'!$KV$83,0))/INDEX('Inputs (values)'!$H$84:$KV$86,1,MATCH('Inputs (values)'!$H$10,'Inputs (values)'!$H$83:$KV$83,0)))*(INDEX('Inputs (values)'!$H$62:$KV$62,1,MATCH('Inputs (values)'!$H$12,'Inputs (values)'!$H$83:$KV$83,0))/INDEX('Inputs (values)'!$H$62:$KV$62,1,MATCH('Inputs (values)'!$H$11,'Inputs (values)'!$H$83:$KV$83,0))) -> 79.19370628 | JD22: =(INDEX('Inputs (values)'!$H$84:$KV$86,1,MATCH('Calculations (values)'!JD$21,'Inputs (values)'!$H$83:'Inputs (values)'!$KV$83,0))/INDEX('Inputs (values)'!$H$84:$KV$86,1,MATCH('Inputs (values)'!$H$10,'Inputs (values)'!$H$83:$KV$83,0)))*(INDEX('Inputs (values)'!$H$62:$KV$62,1,MATCH('Inputs (values)'!$H$12,'Inputs (values)'!$H$83:$KV$83,0))/INDEX('Inputs (values)'!$H$62:$KV$62,1,MATCH('Inputs (values)'!$H$11,'Inputs (values)'!$H$83:$KV$83,0))) -> 80.36415691 | JE22: =(INDEX('Inputs (values)'!$H$84:$KV$86,1,MATCH('Calculations (values)'!JE$21,'Inputs (values)'!$H$83:'Inputs (values)'!$KV$83,0))/INDEX('Inputs (values)'!$H$84:$KV$86,1,MATCH('Inputs (values)'!$H$10,'Inputs (values)'!$H$83:$KV$83,0)))*(INDEX('Inputs (values)'!$H$62:$KV$62,1,MATCH('Inputs (values)'!$H$12,'Inputs (values)'!$H$83:$KV$83,0))/INDEX('Inputs (values)'!$H$62:$KV$62,1,MATCH('Inputs (values)'!$H$11,'Inputs (values)'!$H$83:$KV$83,0))) -> 81.55190633 | JF22: =(INDEX('Inputs (values)'!$H$84:$KV$86,1,MATCH('Calculations (values)'!JF$21,'Inputs (values)'!$H$83:'Inputs (values)'!$KV$83,0))/INDEX('Inputs (values)'!$H$84:$KV$86,1,MATCH('Inputs (values)'!$H$10,'Inputs (values)'!$H$83:$KV$83,0)))*(INDEX('Inputs (values)'!$H$62:$KV$62,1,MATCH('Inputs (values)'!$H$12,'Inputs (values)'!$H$83:$KV$83,0))/INDEX('Inputs (values)'!$H$62:$KV$62,1,MATCH('Inputs (values)'!$H$11,'Inputs (values)'!$H$83:$KV$83,0))) -> 82.7572102 | JG22: =(INDEX('Inputs (values)'!$H$84:$KV$86,1,MATCH('Calculations (values)'!JG$21,'Inputs (values)'!$H$83:'Inputs (values)'!$KV$83,0))/INDEX('Inputs (values)'!$H$84:$KV$86,1,MATCH('Inputs (values)'!$H$10,'Inputs (values)'!$H$83:$KV$83,0)))*(INDEX('Inputs (values)'!$H$62:$KV$62,1,MATCH('Inputs (values)'!$H$12,'Inputs (values)'!$H$83:$KV$83,0))/INDEX('Inputs (values)'!$H$62:$KV$62,1,MATCH('Inputs (values)'!$H$11,'Inputs (values)'!$H$83:$KV$83,0))) -> 83.98032796 | JH22: =(INDEX('Inputs (values)'!$H$84:$KV$86,1,MATCH('Calculations (values)'!JH$21,'Inputs (values)'!$H$83:'Inputs (values)'!$KV$83,0))/INDEX('Inputs (values)'!$H$84:$KV$86,1,MATCH('Inputs (values)'!$H$10,'Inputs (values)'!$H$83:$KV$83,0)))*(INDEX('Inputs (values)'!$H$62:$KV$62,1,MATCH('Inputs (values)'!$H$12,'Inputs (values)'!$H$83:$KV$83,0))/INDEX('Inputs (values)'!$H$62:$KV$62,1,MATCH('Inputs (values)'!$H$11,'Inputs (values)'!$H$83:$KV$83,0))) -> 85.22152291 | JI22: =(INDEX('Inputs (values)'!$H$84:$KV$86,1,MATCH('Calculations (values)'!JI$21,'Inputs (values)'!$H$83:'Inputs (values)'!$KV$83,0))/INDEX('Inputs (values)'!$H$84:$KV$86,1,MATCH('Inputs (values)'!$H$10,'Inputs (values)'!$H$83:$KV$83,0)))*(INDEX('Inputs (values)'!$H$62:$KV$62,1,MATCH('Inputs (values)'!$H$12,'Inputs (values)'!$H$83:$KV$83,0))/INDEX('Inputs (values)'!$H$62:$KV$62,1,MATCH('Inputs (values)'!$H$11,'Inputs (values)'!$H$83:$KV$83,0))) -> 86.48106221 | JJ22: =(INDEX('Inputs (values)'!$H$84:$KV$86,1,MATCH('Calculations (values)'!JJ$21,'Inputs (values)'!$H$83:'Inputs (values)'!$KV$83,0))/INDEX('Inputs (values)'!$H$84:$KV$86,1,MATCH('Inputs (values)'!$H$10,'Inputs (values)'!$H$83:$KV$83,0)))*(INDEX('Inputs (values)'!$H$62:$KV$62,1,MATCH('Inputs (values)'!$H$12,'Inputs (values)'!$H$83:$KV$83,0))/INDEX('Inputs (values)'!$H$62:$KV$62,1,MATCH('Inputs (values)'!$H$11,'Inputs (values)'!$H$83:$KV$83,0))) -> 87.75921698 | JK22: =(INDEX('Inputs (values)'!$H$84:$KV$86,1,MATCH('Calculations (values)'!JK$21,'Inputs (values)'!$H$83:'Inputs (values)'!$KV$83,0))/INDEX('Inputs (values)'!$H$84:$KV$86,1,MATCH('Inputs (values)'!$H$10,'Inputs (values)'!$H$83:$KV$83,0)))*(INDEX('Inputs (values)'!$H$62:$KV$62,1,MATCH('Inputs (values)'!$H$12,'Inputs (values)'!$H$83:$KV$83,0))/INDEX('Inputs (values)'!$H$62:$KV$62,1,MATCH('Inputs (values)'!$H$11,'Inputs (values)'!$H$83:$KV$83,0))) -> 89.05626237 | JL22: =(INDEX('Inputs (values)'!$H$84:$KV$86,1,MATCH('Calculations (values)'!JL$21,'Inputs (values)'!$H$83:'Inputs (values)'!$KV$83,0))/INDEX('Inputs (values)'!$H$84:$KV$86,1,MATCH('Inputs (values)'!$H$10,'Inputs (values)'!$H$83:$KV$83,0)))*(INDEX('Inputs (values)'!$H$62:$KV$62,1,MATCH('Inputs (values)'!$H$12,'Inputs (values)'!$H$83:$KV$83,0))/INDEX('Inputs (values)'!$H$62:$KV$62,1,MATCH('Inputs (values)'!$H$11,'Inputs (values)'!$H$83:$KV$83,0))) -> 90.37247755 | JM22: =(INDEX('Inputs (values)'!$H$84:$KV$86,1,MATCH('Calculations (values)'!JM$21,'Inputs (values)'!$H$83:'Inputs (values)'!$KV$83,0))/INDEX('Inputs (values)'!$H$84:$KV$86,1,MATCH('Inputs (values)'!$H$10,'Inputs (values)'!$H$83:$KV$83,0)))*(INDEX('Inputs (values)'!$H$62:$KV$62,1,MATCH('Inputs (values)'!$H$12,'Inputs (values)'!$H$83:$KV$83,0))/INDEX('Inputs (values)'!$H$62:$KV$62,1,MATCH('Inputs (values)'!$H$11,'Inputs (values)'!$H$83:$KV$83,0))) -> 91.70814585 | JN22: =(INDEX('Inputs (values)'!$H$84:$KV$86,1,MATCH('Calculations (values)'!JN$21,'Inputs (values)'!$H$83:'Inputs (values)'!$KV$83,0))/INDEX('Inputs (values)'!$H$84:$KV$86,1,MATCH('Inputs (values)'!$H$10,'Inputs (values)'!$H$83:$KV$83,0)))*(INDEX('Inputs (values)'!$H$62:$KV$62,1,MATCH('Inputs (values)'!$H$12,'Inputs (values)'!$H$83:$KV$83,0))/INDEX('Inputs (values)'!$H$62:$KV$62,1,MATCH('Inputs (values)'!$H$11,'Inputs (values)'!$H$83:$KV$83,0))) -> 93.06355479 | JO22: =(INDEX('Inputs (values)'!$H$84:$KV$86,1,MATCH('Calculations (values)'!JO$21,'Inputs (values)'!$H$83:'Inputs (values)'!$KV$83,0))/INDEX('Inputs (values)'!$H$84:$KV$86,1,MATCH('Inputs (values)'!$H$10,'Inputs (values)'!$H$83:$KV$83,0)))*(INDEX('Inputs (values)'!$H$62:$KV$62,1,MATCH('Inputs (values)'!$H$12,'Inputs (values)'!$H$83:$KV$83,0))/INDEX('Inputs (values)'!$H$62:$KV$62,1,MATCH('Inputs (values)'!$H$11,'Inputs (values)'!$H$83:$KV$83,0))) -> 94.43899612 | JP22: =(INDEX('Inputs (values)'!$H$84:$KV$86,1,MATCH('Calculations (values)'!JP$21,'Inputs (values)'!$H$83:'Inputs (values)'!$KV$83,0))/INDEX('Inputs (values)'!$H$84:$KV$86,1,MATCH('Inputs (values)'!$H$10,'Inputs (values)'!$H$83:$KV$83,0)))*(INDEX('Inputs (values)'!$H$62:$KV$62,1,MATCH('Inputs (values)'!$H$12,'Inputs (values)'!$H$83:$KV$83,0))/INDEX('Inputs (values)'!$H$62:$KV$62,1,MATCH('Inputs (values)'!$H$11,'Inputs (values)'!$H$83:$KV$83,0))) -> 95.83476591 | JQ22: =(INDEX('Inputs (values)'!$H$84:$KV$86,1,MATCH('Calculations (values)'!JQ$21,'Inputs (values)'!$H$83:'Inputs (values)'!$KV$83,0))/INDEX('Inputs (values)'!$H$84:$KV$86,1,MATCH('Inputs (values)'!$H$10,'Inputs (values)'!$H$83:$KV$83,0)))*(INDEX('Inputs (values)'!$H$62:$KV$62,1,MATCH('Inputs (values)'!$H$12,'Inputs (values)'!$H$83:$KV$83,0))/INDEX('Inputs (values)'!$H$62:$KV$62,1,MATCH('Inputs (values)'!$H$11,'Inputs (values)'!$H$83:$KV$83,0))) -> 97.25116461 | JR22: =(INDEX('Inputs (values)'!$H$84:$KV$86,1,MATCH('Calculations (values)'!JR$21,'Inputs (values)'!$H$83:'Inputs (values)'!$KV$83,0))/INDEX('Inputs (values)'!$H$84:$KV$86,1,MATCH('Inputs (values)'!$H$10,'Inputs (values)'!$H$83:$KV$83,0)))*(INDEX('Inputs (values)'!$H$62:$KV$62,1,MATCH('Inputs (values)'!$H$12,'Inputs (values)'!$H$83:$KV$83,0))/INDEX('Inputs (values)'!$H$62:$KV$62,1,MATCH('Inputs (values)'!$H$11,'Inputs (values)'!$H$83:$KV$83,0))) -> 98.6884971 | JS22: =(INDEX('Inputs (values)'!$H$84:$KV$86,1,MATCH('Calculations (values)'!JS$21,'Inputs (values)'!$H$83:'Inputs (values)'!$KV$83,0))/INDEX('Inputs (values)'!$H$84:$KV$86,1,MATCH('Inputs (values)'!$H$10,'Inputs (values)'!$H$83:$KV$83,0)))*(INDEX('Inputs (values)'!$H$62:$KV$62,1,MATCH('Inputs (values)'!$H$12,'Inputs (values)'!$H$83:$KV$83,0))/INDEX('Inputs (values)'!$H$62:$KV$62,1,MATCH('Inputs (values)'!$H$11,'Inputs (values)'!$H$83:$KV$83,0))) -> 100.1470728 | JT22: =(INDEX('Inputs (values)'!$H$84:$KV$86,1,MATCH('Calculations (values)'!JT$21,'Inputs (values)'!$H$83:'Inputs (values)'!$KV$83,0))/INDEX('Inputs (values)'!$H$84:$KV$86,1,MATCH('Inputs (values)'!$H$10,'Inputs (values)'!$H$83:$KV$83,0)))*(INDEX('Inputs (values)'!$H$62:$KV$62,1,MATCH('Inputs (values)'!$H$12,'Inputs (values)'!$H$83:$KV$83,0))/INDEX('Inputs (values)'!$H$62:$KV$62,1,MATCH('Inputs (values)'!$H$11,'Inputs (values)'!$H$83:$KV$83,0))) -> 101.6272056 | JU22: =(INDEX('Inputs (values)'!$H$84:$KV$86,1,MATCH('Calculations (values)'!JU$21,'Inputs (values)'!$H$83:'Inputs (values)'!$KV$83,0))/INDEX('Inputs (values)'!$H$84:$KV$86,1,MATCH('Inputs (values)'!$H$10,'Inputs (values)'!$H$83:$KV$83,0)))*(INDEX('Inputs (values)'!$H$62:$KV$62,1,MATCH('Inputs (values)'!$H$12,'Inputs (values)'!$H$83:$KV$83,0))/INDEX('Inputs (values)'!$H$62:$KV$62,1,MATCH('Inputs (values)'!$H$11,'Inputs (values)'!$H$83:$KV$83,0))) -> 103.1292142 | JV22: =(INDEX('Inputs (values)'!$H$84:$KV$86,1,MATCH('Calculations (values)'!JV$21,'Inputs (values)'!$H$83:'Inputs (values)'!$KV$83,0))/INDEX('Inputs (values)'!$H$84:$KV$86,1,MATCH('Inputs (values)'!$H$10,'Inputs (values)'!$H$83:$KV$83,0)))*(INDEX('Inputs (values)'!$H$62:$KV$62,1,MATCH('Inputs (values)'!$H$12,'Inputs (values)'!$H$83:$KV$83,0))/INDEX('Inputs (values)'!$H$62:$KV$62,1,MATCH('Inputs (values)'!$H$11,'Inputs (values)'!$H$83:$KV$83,0))) -> 104.6534219 | JW22: =(INDEX('Inputs (values)'!$H$84:$KV$86,1,MATCH('Calculations (values)'!JW$21,'Inputs (values)'!$H$83:'Inputs (values)'!$KV$83,0))/INDEX('Inputs (values)'!$H$84:$KV$86,1,MATCH('Inputs (values)'!$H$10,'Inputs (values)'!$H$83:$KV$83,0)))*(INDEX('Inputs (values)'!$H$62:$KV$62,1,MATCH('Inputs (values)'!$H$12,'Inputs (values)'!$H$83:$KV$83,0))/INDEX('Inputs (values)'!$H$62:$KV$62,1,MATCH('Inputs (values)'!$H$11,'Inputs (values)'!$H$83:$KV$83,0))) -> 106.2001567 | JX22: =(INDEX('Inputs (values)'!$H$84:$KV$86,1,MATCH('Calculations (values)'!JX$21,'Inputs (values)'!$H$83:'Inputs (values)'!$KV$83,0))/INDEX('Inputs (values)'!$H$84:$KV$86,1,MATCH('Inputs (values)'!$H$10,'Inputs (values)'!$H$83:$KV$83,0)))*(INDEX('Inputs (values)'!$H$62:$KV$62,1,MATCH('Inputs (values)'!$H$12,'Inputs (values)'!$H$83:$KV$83,0))/INDEX('Inputs (values)'!$H$62:$KV$62,1,MATCH('Inputs (values)'!$H$11,'Inputs (values)'!$H$83:$KV$83,0))) ->  | JY22: =(INDEX('Inputs (values)'!$H$84:$KV$86,1,MATCH('Calculations (values)'!JY$21,'Inputs (values)'!$H$83:'Inputs (values)'!$KV$83,0))/INDEX('Inputs (values)'!$H$84:$KV$86,1,MATCH('Inputs (values)'!$H$10,'Inputs (values)'!$H$83:$KV$83,0)))*(INDEX('Inputs (values)'!$H$62:$KV$62,1,MATCH('Inputs (values)'!$H$12,'Inputs (values)'!$H$83:$KV$83,0))/INDEX('Inputs (values)'!$H$62:$KV$62,1,MATCH('Inputs (values)'!$H$11,'Inputs (values)'!$H$83:$KV$83,0))) ->  | JZ22: =(INDEX('Inputs (values)'!$H$84:$KV$86,1,MATCH('Calculations (values)'!JZ$21,'Inputs (values)'!$H$83:'Inputs (values)'!$KV$83,0))/INDEX('Inputs (values)'!$H$84:$KV$86,1,MATCH('Inputs (values)'!$H$10,'Inputs (values)'!$H$83:$KV$83,0)))*(INDEX('Inputs (values)'!$H$62:$KV$62,1,MATCH('Inputs (values)'!$H$12,'Inputs (values)'!$H$83:$KV$83,0))/INDEX('Inputs (values)'!$H$62:$KV$62,1,MATCH('Inputs (values)'!$H$11,'Inputs (values)'!$H$83:$KV$83,0))) ->  | KA22: =(INDEX('Inputs (values)'!$H$84:$KV$86,1,MATCH('Calculations (values)'!KA$21,'Inputs (values)'!$H$83:'Inputs (values)'!$KV$83,0))/INDEX('Inputs (values)'!$H$84:$KV$86,1,MATCH('Inputs (values)'!$H$10,'Inputs (values)'!$H$83:$KV$83,0)))*(INDEX('Inputs (values)'!$H$62:$KV$62,1,MATCH('Inputs (values)'!$H$12,'Inputs (values)'!$H$83:$KV$83,0))/INDEX('Inputs (values)'!$H$62:$KV$62,1,MATCH('Inputs (values)'!$H$11,'Inputs (values)'!$H$83:$KV$83,0))) -> 
